Workbook

Sheet Field of Play
B1: 1 | C1: 2 | D1: 3 | E1: 4 | F1: 5 | G1: 6 | H1: 7 | I1: 8 | J1: 9 | K1: 10 | L1: 11 | M1: R | N1: H | O1: E
A2: ='Game Info'!B2 -> 1986Mets | B2: 0 | C2: 0 | D2: 0 | E2: 0 | F2: 0 | G2: 3 | H2: 0 | I2: 3 | J2: 0 | M2: =SUM(B2:L2) -> 6 | N2: ='Game Info'!B7 -> 12 | O2: ='Game Info'!B9 -> 0
A3: ='Game Info'!B1 -> 1995Braves | B3: 0 | C3: 1 | D3: 0 | E3: 0 | F3: 0 | G3: 0 | H3: 0 | I3: 0 | J3: X | M3: =SUM(B3:L3) -> 1 | N3: ='Game Info'!B8 -> 1 | O3: ='Game Info'!B10 -> 0
Q4: THE MATCH UP
K5: Away | L5: 1 | M5: ='Game Info'!O2 -> CF | N5: ='Game Info'!P2 -> M Wilson | O5: =IF('Game Info'!Q2="","",'Game Info'!Q2) ->  | Q5: Baseline Batting Average: | T5: ='Settings & Expansion'!D1 -> 0.261
K6: =A2 -> 1986Mets | L6: 2 | M6: ='Game Info'!O3 -> 2B | N6: ='Game Info'!P3 -> W Backman | O6: =IF('Game Info'!Q3="","",'Game Info'!Q3) ->  | Q6: ='Game Info'!C23&" Contact Rating:" -> G Carter Contact Rating: | S6: : | T6: ='Game Info'!D23 -> 49
L7: 3 | M7: ='Game Info'!O4 -> 1B | N7: ='Game Info'!P4 -> K Hernandez | O7: =IF('Game Info'!Q4="","",'Game Info'!Q4) ->  | Q7: ='Game Info'!C13&" Effectiveness:" -> M Wohlers Effectiveness: | S7: : | T7: ='Game Info'!D13 -> 44
L8: 4 | M8: ='Game Info'!O5 -> C | N8: ='Game Info'!P5 -> G Carter | O8: =IF('Game Info'!Q5="","",'Game Info'!Q5) -> * | Q8: =IF(M32="Normal Depth","Infield at Normal Depth","Infield In") -> Infield at Normal Depth | S8: : | T8: =IF(M32="Normal Depth",0,50) -> 0 | U8: =IF(OR(T9<0.21,T9>0.35),"*","") -> 
L9: 5 | M9: ='Game Info'!O6 -> RF | N9: ='Game Info'!P6 -> D Strawberry | O9: =IF('Game Info'!Q6="","",'Game Info'!Q6) ->  | Q9: Batter's Adjusted Average: | T9: =(IF(T5*1000+2*(T6-T7)<210,210,IF(T5*1000+2*(T6-T7)>350,IF(T6<101,350,T5*1000+2*(T6-T7)),T5*1000+2*(T6-T7))))/1000+T8/1000 -> 0.271
L10: 6 | M10: ='Game Info'!O7 -> 3B | N10: ='Game Info'!P7 -> R Knight | O10: =IF('Game Info'!Q7="","",'Game Info'!Q7) -> 
L11: 7 | M11: ='Game Info'!O8 -> LF | N11: ='Game Info'!P8 -> L Dykstra | O11: =IF('Game Info'!Q8="","",'Game Info'!Q8) ->  | Q11: =IF((T5+T6/1000-T7/1000+T8/1000)<0.21,"*minimum batting average of .210",IF(T9>0.35,"*maximum batting average of .350 unless the batter is a .350+ hitter","")) -> 
L12: 8 | M12: ='Game Info'!O9 -> SS | N12: ='Game Info'!P9 -> R Santana | O12: =IF('Game Info'!Q9="","",'Game Info'!Q9) -> 
L13: 9 | M13: ='Game Info'!O10 -> P | N13: ='Game Info'!P10 -> S Fernandez | O13: =IF('Game Info'!Q10="","",'Game Info'!Q10) -> 
M15: Pitching | N15: ='Game Info'!P12 -> S Fernandez | O15: ='Game Info'!T12 -> 44 | Q15: ON THE BASES
Q16: ="First Base: "&IF('Game Info'!C24=""," Empty"," "&'Game Info'!C24) -> First Base: Empty | S16: =IF('Game Info'!C24="","","Speed: "&'Game Info'!F24) -> 
K17: Home | L17: 1 | M17: ='Game Info'!F2 -> CF | N17: ='Game Info'!G2 -> M Grissom | O17: =IF('Game Info'!H2="","",'Game Info'!H2) ->  | Q17: ="Second Base: "&IF('Game Info'!C25="","Empty",'Game Info'!C25) -> Second Base: Empty | S17: =IF('Game Info'!C25="","","Speed: "&'Game Info'!F25) -> 
K18: =A3 -> 1995Braves | L18: 2 | M18: ='Game Info'!F3 -> 2B | N18: ='Game Info'!G3 -> M Lemke | O18: =IF('Game Info'!H3="","",'Game Info'!H3) ->  | Q18: ="Third Base: "&IF('Game Info'!C26=""," Empty"," "&'Game Info'!C26) -> Third Base: Empty | S18: =IF('Game Info'!C26="","","Speed: "&'Game Info'!F26) -> 
L19: 3 | M19: ='Game Info'!F4 -> 3B | N19: ='Game Info'!G4 -> C Jones | O19: =IF('Game Info'!H4="","",'Game Info'!H4) -> 
E20: Landis | L20: 4 | M20: ='Game Info'!F5 -> 1B | N20: ='Game Info'!G5 -> F McGriff | O20: =IF('Game Info'!H5="","",'Game Info'!H5) -> *
E21: 153 | L21: 5 | M21: ='Game Info'!F6 -> RF | N21: ='Game Info'!G6 -> D Justice
L22: 6 | M22: ='Game Info'!F7 -> LF | N22: ='Game Info'!G7 -> R Klesko | O22: =IF('Game Info'!H7="","",'Game Info'!H7) -> 
L23: 7 | M23: ='Game Info'!F8 -> C | N23: ='Game Info'!G8 -> J Lopez | O23: =IF('Game Info'!H8="","",'Game Info'!H8) -> 
L24: 8 | M24: ='Game Info'!F9 -> SS | N24: ='Game Info'!G9 -> R Belliard | O24: =IF('Game Info'!H9="","",'Game Info'!H9) -> 
L25: 9 | M25: ='Game Info'!F10 -> P | N25: ='Game Info'!G10 -> M Wohlers | O25: =IF('Game Info'!H10="","",'Game Info'!H10) -> 
M27: Pitching | N27: ='Game Info'!G12 -> M Wohlers | O27: ='Game Info'!K12 -> 44
L29: Outs | M29: ='Game Info'!B4 -> 0
L30: Inning | M30: ='Game Info'!B6 -> 10 | N30: ='Game Info'!C6 -> Top
M32: Normal Depth

Sheet Game Info
A1: Home Team | B1: 1995Braves | C1: Fielding | I1: Contact | J1: Power | K1: Speed | L1: Def/Arm | M1: Bunt | R1: Contact | S1: Power | T1: Speed | U1: Def/Arm | V1: Bunt
A2: Away Team | B2: 1986Mets | C2: =IF(C1="Batting","Fielding","Batting") -> Batting | E2: Home Lineup | F2: =INDIRECT(B1&"!N1") -> CF | G2: =INDIRECT(B1&"!O1") -> M Grissom | I2: =VLOOKUP(G2,INDIRECT($B$1&"!A1:F100"),3,FALSE) -> 46 | J2: =VLOOKUP(G2,INDIRECT($B$1&"!A1:F100"),4,FALSE) -> 42 | K2: =IFERROR(VLOOKUP(G2,INDIRECT($B$1&"!A11:F100"),5,FALSE),20) -> 75 | L2: =IFERROR(VLOOKUP(G2,INDIRECT($B$1&"!A1:F100"),6,FALSE),0) -> 70 | M2: =IF(VLOOKUP(G2,INDIRECT($B$1&"!A1:G100"),7,FALSE)=0,50,VLOOKUP(G2,INDIRECT($B$1&"!A1:G100"),7,FALSE)) -> 70 | N2: Away Lineup | O2: =INDIRECT(B2&"!N1") -> CF | P2: =INDIRECT(B2&"!O1") -> M Wilson | R2: =IFERROR(VLOOKUP(P2,INDIRECT($B$2&"!A1:F100"),3,FALSE),20) -> 66 | S2: =IFERROR(VLOOKUP(P2,INDIRECT($B$2&"!A1:F100"),4,FALSE),20) -> 60 | T2: =IFERROR(VLOOKUP(P2,INDIRECT($B$2&"!A1:F100"),5,FALSE),20) -> 70 | U2: =IFERROR(VLOOKUP(P2,INDIRECT($B$2&"!A1:F100"),6,FALSE),0) -> 60 | V2: =IF(VLOOKUP(P2,INDIRECT($B$2&"!A1:G100"),7,FALSE)=0,50,VLOOKUP(P2,INDIRECT($B$2&"!A1:G100"),7,FALSE)) -> 65
F3: =INDIRECT(B1&"!N2") -> 2B | G3: =INDIRECT(B1&"!O2") -> M Lemke | I3: =VLOOKUP(G3,INDIRECT($B$1&"!A1:F100"),3,FALSE) -> 43 | J3: =VLOOKUP(G3,INDIRECT($B$1&"!A1:F100"),4,FALSE) -> 39 | K3: 60 | L3: 20 | M3: 70 | O3: =INDIRECT(B2&"!N2") -> 2B | P3: =INDIRECT(B2&"!O2") -> W Backman | R3: 81 | S3: 47 | T3: 65 | U3: =IFERROR(VLOOKUP(P3,INDIRECT($B$2&"!A1:F100"),6,FALSE),0) -> 20 | V3: 65
A4: Outs | B4: 0 | F4: =INDIRECT(B1&"!N3") -> 3B | G4: =INDIRECT(B1&"!O3") -> C Jones | I4: 49 | J4: 56 | K4: 65 | L4: 40 | M4: 55 | O4: =INDIRECT(B2&"!N3") -> 1B | P4: =INDIRECT(B2&"!O3") -> K Hernandez | R4: 76 | S4: 65 | T4: 55 | U4: =IFERROR(VLOOKUP(P4,INDIRECT($B$2&"!A1:F100"),6,FALSE),0) -> 20 | V4: 40
F5: =INDIRECT(B1&"!N4") -> 1B | G5: =INDIRECT(B1&"!O4") -> F McGriff | H5: * | I5: 57 | J5: 63 | K5: 40 | L5: 20 | M5: 30 | O5: =INDIRECT(B2&"!N4") -> C | P5: =INDIRECT(B2&"!O4") -> G Carter | Q5: * | R5: 49 | S5: 63 | T5: 55 | U5: =IFERROR(VLOOKUP(P5,INDIRECT($B$2&"!A1:F100"),6,FALSE),0) -> 75 | V5: 55
A6: Inning | B6: 10 | C6: =IF(C1="Fielding","Top","Bottom") -> Top | F6: =INDIRECT(B1&"!N5") -> RF | G6: =INDIRECT(B1&"!O5") -> D Justice | I6: 43 | J6: 61 | K6: 65 | L6: 80 | M6: 55 | O6: =INDIRECT(B2&"!N5") -> RF | P6: =INDIRECT(B2&"!O5") -> D Strawberry | R6: 51 | S6: 82 | T6: 70 | U6: =IFERROR(VLOOKUP(P6,INDIRECT($B$2&"!A1:F100"),6,FALSE),0) -> 70 | V6: 40
A7: Away Hits | B7: 12 | F7: =INDIRECT(B1&"!N6") -> LF | G7: =INDIRECT(B1&"!O6") -> R Klesko | I7: 71 | J7: 85 | K7: 55 | L7: 50 | M7: 25 | O7: =INDIRECT(B2&"!N6") -> 3B | P7: =INDIRECT(B2&"!O6") -> R Knight | R7: 70 | S7: 58 | T7: 60 | U7: =IFERROR(VLOOKUP(P7,INDIRECT($B$2&"!A1:F100"),6,FALSE),0) -> 20 | V7: 50
A8: Home Hits | B8: 1 | F8: =INDIRECT(B1&"!N7") -> C | G8: =INDIRECT(B1&"!O7") -> J Lopez | I8: 74 | J8: 65 | K8: 45 | L8: 55 | M8: 40 | O8: =INDIRECT(B2&"!N7") -> LF | P8: =INDIRECT(B2&"!O7") -> L Dykstra | R8: 69 | S8: 64 | T8: 75 | U8: 65 | V8: 65
A9: Away Errors | B9: 0 | F9: =INDIRECT(B1&"!N8") -> SS | G9: =INDIRECT(B1&"!O8") -> R Belliard | I9: 28 | J9: 18 | K9: 60 | L9: 20 | M9: 65 | O9: =INDIRECT(B2&"!N8") -> SS | P9: =INDIRECT(B2&"!O8") -> R Santana | R9: 30 | S9: 11 | T9: 65 | U9: 20 | V9: 70
A10: Home Errors | B10: 0 | F10: =INDIRECT(B1&"!N9") -> P | G10: =INDIRECT(B1&"!O9") -> M Wohlers | I10: =IF(F10="P",20,IFERROR(VLOOKUP(G10,INDIRECT($B$1&"!A1:F100"),3,FALSE),20)) -> 20 | J10: =IF(F10="P",10,VLOOKUP(G10,INDIRECT($B$1&"!A1:F100"),4,FALSE)) -> 10 | K10: =IF(F10="P",25,IFERROR(VLOOKUP(G10,INDIRECT($B$1&"!A1:F100"),5,FALSE),20)) -> 25 | L10: =IFERROR(VLOOKUP(G10,INDIRECT($B$1&"!A1:F100"),6,FALSE),0) -> LF | M10: =IF(F10="P",60,IF(VLOOKUP(G10,INDIRECT($B$1&"!A1:G100"),7,FALSE)=0,50,VLOOKUP(G10,INDIRECT($B$1&"!A1:G100"),7,FALSE))) -> 60 | O10: =INDIRECT(B2&"!N9") -> P | P10: =INDIRECT(B2&"!O9") -> S Fernandez | R10: =IF(O10="P",20,IFERROR(VLOOKUP(P10,INDIRECT($B$2&"!A1:F100"),3,FALSE),20)) -> 20 | S10: =IF(O10="P",10,IFERROR(VLOOKUP(P10,INDIRECT($B$2&"!A1:F100"),4,FALSE),20)) -> 10 | T10: =IF(O10="P",25,IFERROR(VLOOKUP(P10,INDIRECT($B$2&"!A1:F100"),5,FALSE),20)) -> 25 | U10: =IFERROR(VLOOKUP(P10,INDIRECT($B$2&"!A1:F100"),6,FALSE),0) -> RF | V10: =IF(O10="P",60,IF(VLOOKUP(P10,INDIRECT($B$2&"!A1:G100"),7,FALSE)=0,50,VLOOKUP(P10,INDIRECT($B$2&"!A1:G100"),7,FALSE))) -> 60
A11: Infield In? | B11: N | C11: =IF(B11="N",1.3,0.4) -> 1.3 | I11: Effectiveness | J11: Stamina | K11: Total | R11: Effectiveness | S11: Stamina | T11: Total
F12: =INDIRECT(B1&"!N11") -> P | G12: =INDIRECT(B1&"!O11") -> M Wohlers | I12: =IFERROR(VLOOKUP(G12,INDIRECT($B$1&"!A1:F100"),3,FALSE),10) -> 71 | J12: =IFERROR(VLOOKUP(G12,INDIRECT($B$1&"!A1:F100"),4,FALSE),3) -> 3 | K12: =IF(F12<>"P",0,IF(J12=1,IF(H13>24,IF(I12>50,50-(H13-24),I12-(H13-24)),I12),IF(J12=2,IF(H13>6,IF(I12>50,50-2*(H13-6),I12-2*(H13-6)),I12),IF(J12=3,IF(H13>3,IF(I12>50,50-3*(H13-3),I12-3*(H13-3)),I12),50)))) -> 44 | O12: =INDIRECT(B2&"!N11") -> P | P12: =INDIRECT(B2&"!O11") -> S Fernandez | R12: =IFERROR(VLOOKUP(P12,INDIRECT($B$2&"!A1:F100"),3,FALSE),10) -> 64 | S12: =IFERROR(VLOOKUP(P12,INDIRECT($B$2&"!A1:F100"),4,FALSE),3) -> 1 | T12: =IF(O12<>"P",0,IF(S12=1,IF(Q13>24,IF(R12>50,50-(Q13-24),R12-(Q13-24)),R12),IF(S12=2,IF(Q13>6,IF(R12>50,50-2*(Q13-6),R12-2*(Q13-6)),R12),IF(S12=3,IF(Q13>3,IF(R12>50,50-3*(Q13-3),R12-3*(Q13-3)),R12),50)))) -> 44
A13: Fielding | B13: P | C13: =IF($C$1="Batting",INDIRECT(B2&"!O11"),INDIRECT(B1&"!O11")) -> M Wohlers | D13: =IF(C1="Fielding",VLOOKUP(C13,G12:K12,5,FALSE),VLOOKUP(C13,P12:T12,5,FALSE)) -> 44 | G13: Batters Faced | H13: 5 | P13: Batters Faced | Q13: 30
B14: C | C14: =IF($C$1="Batting",VLOOKUP(B14,$O$2:$P$12,2,FALSE),VLOOKUP(B14,$F$2:$G$12,2,FALSE)) -> J Lopez | D14: =IF(C1="Fielding",VLOOKUP(C14,G2:L10,6,FALSE),VLOOKUP(C14,P2:U10,6,FALSE)) -> 55 | F14: Mound visit? | O14: Mound visit?
B15: 1B | C15: F McGriff
B16: 2B | C16: M Lemke
B17: 3B | C17: C Jones
B18: SS | C18: R Belliard
B19: LF | C19: R Klesko | D19: =IF(C1="Fielding",VLOOKUP(C19,G2:L10,6,FALSE),VLOOKUP(C19,P2:U10,6,FALSE)) -> 50 | E19: =C19&" ("&D19&")" -> R Klesko (50)
B20: CF | C20: M Grissom | D20: =IF(C1="Fielding",VLOOKUP(C20,G2:L10,6,FALSE),VLOOKUP(C20,P2:U10,6,FALSE)) -> 70 | E20: =C20&" ("&D20&")" -> M Grissom (70)
B21: RF | C21: D Justice | D21: =IF(C1="Fielding",VLOOKUP(C21,G2:L10,6,FALSE),VLOOKUP(C21,P2:U10,6,FALSE)) -> 80 | E21: D Justice (80)
D22: Contact | E22: Power | F22: Speed | G22: Bunt | H22: Speed +/-
A23: 0 | B23: At bat | C23: =IF(C1="Fielding",INDEX(P:P,MATCH("*",Q:Q,0)),INDEX(G:G,MATCH("*",H:H,0))) -> G Carter | D23: =IFERROR(VLOOKUP(C23,G2:K10,3,FALSE),0)+IFERROR(VLOOKUP(C23,P2:T10,3,FALSE),0) -> 49 | E23: =IFERROR(VLOOKUP(C23,G2:K10,4,FALSE),0)+IFERROR(VLOOKUP(C23,P2:T10,4,FALSE),0) -> 63 | F23: =IFERROR(VLOOKUP(C23,G2:K10,5,FALSE),0)+IFERROR(VLOOKUP(C23,P2:T10,5,FALSE),0) -> 55 | G23: =IFERROR(VLOOKUP(C23,G2:M10,7,FALSE),0)+IFERROR(VLOOKUP(C23,P2:V10,7,FALSE),0) -> 55 | H23: =F23-50 -> 5
A24: 1 | B24: 1st base | D24: =IFERROR(VLOOKUP(C24,G2:K10,3,FALSE),0)+IFERROR(VLOOKUP(C24,P2:T10,3,FALSE),0) -> 0 | E24: =IFERROR(VLOOKUP(C24,G2:K10,4,FALSE),0)+IFERROR(VLOOKUP(C24,P2:T10,4,FALSE),0) -> 0 | F24: =IFERROR(VLOOKUP(C24,G2:K10,5,FALSE),0)+IFERROR(VLOOKUP(C24,P2:T10,5,FALSE),0) -> 0 | G24: =IFERROR(VLOOKUP(C24,G2:M10,7,FALSE),0)+IFERROR(VLOOKUP(C24,P2:V10,7,FALSE),0) -> 0 | H24: =F24-50 -> -50
A25: 2 | B25: 2nd base | D25: =IFERROR(VLOOKUP(C25,G2:K10,3,FALSE),0)+IFERROR(VLOOKUP(C25,P2:T10,3,FALSE),0) -> 0 | E25: =IFERROR(VLOOKUP(C25,G2:K10,4,FALSE),0)+IFERROR(VLOOKUP(C25,P2:T10,4,FALSE),0) -> 0 | F25: =IFERROR(VLOOKUP(C25,G2:K10,5,FALSE),0)+IFERROR(VLOOKUP(C25,P2:T10,5,FALSE),0) -> 0 | G25: =IFERROR(VLOOKUP(C25,G2:M10,7,FALSE),0)+IFERROR(VLOOKUP(C25,P2:V10,7,FALSE),0) -> 0 | H25: =F25-50 -> -50
A26: 3 | B26: 3rd base | D26: =IFERROR(VLOOKUP(C26,G2:K10,3,FALSE),0)+IFERROR(VLOOKUP(C26,P2:T10,3,FALSE),0) -> 0 | E26: =IFERROR(VLOOKUP(C26,G2:K10,4,FALSE),0)+IFERROR(VLOOKUP(C26,P2:T10,4,FALSE),0) -> 0 | F26: =IFERROR(VLOOKUP(C26,G2:K10,5,FALSE),0)+IFERROR(VLOOKUP(C26,P2:T10,5,FALSE),0) -> 0 | G26: =IFERROR(VLOOKUP(C26,G2:M10,7,FALSE),0)+IFERROR(VLOOKUP(C26,P2:V10,7,FALSE),0) -> 0 | H26: -50
C28: =COUNTA(C23:C26) -> 1
A30: Hit direction | B30: right-center field | C30: =IF(B30="left field",C19,IF(B30="left-center field",C20,IF(B30="center field",C20,IF(B30="right-center field",C21,IF(B30="right field",C21,""))))) -> D Justice | D30: =VLOOKUP(C30,C13:D21,2,FALSE) -> 80 | E30: 18
A32: Score difference | C32: =ABS('Field of Play'!M2-'Field of Play'!M3) -> 5
A34: Out Player | B34: second baseman
A37: Clear bases marker in B38
B38: 1
A39: Inning Over
A41: Grounder scoring chances: | C41: 90
A43: Winning | B43: 1986Mets | C43: 1986Mets
A44: Losing | B44: 1995Braves | C44: 1995Braves
A46: Scoring P | B46: G McMichael

Sheet Settings & Expansion
A1: Baseline batting average: | D1: 0.261 | M1: Statistical Averages By Year
M2: Year | N2: Avg BA | O2: Avg SLG% | P2: WHIP
A3: GAME PLAY | M3: 2010 | N3: 0.2575 | O3: 0.403 | P3: 1.347
M4: 2009 | N4: 0.263 | O4: 0.4185 | P4: 1.3905
M5: 2008 | N5: 0.264 | O5: 0.4165 | P5: 1.391
A6: Welcome to Will Morrison's Excel Baseball. This page is designed to help with any game play questions that may come up. | M6: 2007 | N6: 0.2685 | O6: 0.423 | P6: 1.4065
A7: I recommend using Excel's search function if there is something specific you are looking for. | M7: 2006 | N7: 0.27 | O7: 0.432 | P7: 1.4085
M8: 2005 | N8: 0.265 | O8: 0.419 | P8: 1.369
A9: When the game starts, you will be prompted to select the teams that are playing. After you do so, you will need to select the | M9: 2004 | N9: 0.2665 | O9: 0.428 | P9: 1.401
A10: starting pitchers. If you are continuing a game in progress, just click the "Continue Game" button and the window will close. | M10: 2003 | N10: 0.2645 | O10: 0.4225 | P10: 1.3835
M11: 2002 | N11: 0.2615 | O11: 0.417 | P11: 1.376
A12: The main button you will be using is the "SWING!" button. This will prompt the pitcher to deliver the pitch and the event to | M12: 2001 | N12: 0.264 | O12: 0.4265 | P12: 1.3795
A13: occur. The other gameplay buttons on the "Field of Play" tab are "Mound Visit", "Toggle Infield Depth" and "Game Options". | M13: 2000 | N13: 0.271 | O13: 0.4375 | P13: 1.4695
M14: 1999 | N14: 0.2715 | O14: 0.434 | P14: 1.4645
A15: Mound Visit - This button allows the manager a chance to come settle down the pitcher. Just as in real baseball, sometimes | M15: 1998 | N15: 0.2665 | O15: 0.421 | P15: 1.405
B16: this is beneficial and sometimes it is detrimental. Based on 50/50 odds, the pitcher will either react like he has | M16: 1997 | N16: 0.267 | O16: 0.419 | P16: 1.4125
B17: pitched to fewer batters or more batters. | M17: 1996 | N17: 0.2695 | O17: 0.4265 | P17: 1.44
M18: 1995 | N18: 0.2665 | O18: 0.4175 | P18: 1.4215
A19: Toggle Infield Depth - This button draws the infield in or moves them back. If the infield is in, the defensive team will have a | M19: 1994 | N19: 0.27 | O19: 0.4245 | P19: 1.43
B20: better chance of gunning down a runner trying to score on a groundout. However, the batter's batting average will | M20: 1993 | N20: 0.2655 | O20: 0.4035 | P20: 1.3875
B21: increase by 50 points. The infield depth is reset to normal after each play. | M21: 1992 | N21: 0.2555 | O21: 0.3765 | P21: 1.325
M22: 1991 | N22: 0.255 | O22: 0.384 | P22: 1.3355
A23: Game Options - This button will lead to a number of managerial options: | M23: 1990 | N23: 0.2575 | O23: 0.3855 | P23: 1.3475
B24: Steal A Base | M24: 1989 | N24: 0.2535 | O24: 0.3745 | P24: 1.318
B25: Sacrifice Bunt | M25: 1988 | N25: 0.2535 | O25: 0.377 | P25: 1.304
B26: Issue an Intentional Walk | M26: 1987 | N26: 0.263 | O26: 0.4145 | P26: 1.39
B27: Throw at the Batter | M27: 1986 | N27: 0.2575 | O27: 0.394 | P27: 1.3545
B28: Pinch Hit or Defensive Substitution | M28: 1985 | N28: 0.2565 | O28: 0.39 | P28: 1.342
B29: Call to the Bullpen | M29: 1984 | N29: 0.2595 | O29: 0.3835 | P29: 1.3425
B30: Start a New Game | M30: 1983 | N30: 0.2605 | O30: 0.3885 | P30: 1.349
B31: Link to www.mlb.com | M31: 1982 | N31: 0.261 | O31: 0.3875 | P31: 1.343
M32: 1981 | N32: 0.2555 | O32: 0.3685 | P32: 1.3155
B33: To return to the game, click on the picture icon in the middle of the window. | M33: 1980 | N33: 0.264 | O33: 0.3865 | P33: 1.3535
M34: 1979 | N34: 0.2655 | O34: 0.3965 | P34: 1.3725
A35: The "Field of Play" tab (where the game is played) also has two other buttons. The first is About The Designer, which is just a | M35: 1978 | N35: 0.2575 | O35: 0.3785 | P35: 1.334
B36: short bio about me and how to get a hold of me with any questions or comments. The second is the Boss Button, | M36: 1977 | N36: 0.264 | O36: 0.4005 | P36: 1.3725
B37: which will close all the tabs except a new one called "Production" and has some data and a couple graphs that look | M37: 1976 | N37: 0.2555 | O37: 0.361 | P37: 1.317
B38: look it could be business-related. There is a button on that page all the way at the bottom that will take you back to | M38: 1975 | N38: 0.2575 | O38: 0.374 | P38: 1.361
B39: the game. | M39: 1974 | N39: 0.2565 | O39: 0.369 | P39: 1.343
M40: 1973 | N40: 0.2565 | O40: 0.3785 | P40: 1.3505
A41: Everything on the Game Info tab should not be adjusted during the game. If changes are made and then saved, the game will | M41: 1972 | N41: 0.2435 | O41: 0.354 | P41: 1.2605
B42: not run correctly, so make sure you do not move things around. It can be helpful to look at that page though and look | M42: 1971 | N42: 0.2495 | O42: 0.365 | P42: 1.2965
B43: at player ratings. | M43: 1970 | N43: 0.254 | O43: 0.3855 | P43: 1.356
M44: 1969 | N44: 0.248 | O44: 0.369 | P44: 1.319
A45: NUMBER RATING EXPLANATION | M45: 1968 | N45: 0.2365 | O45: 0.34 | P45: 1.193
M46: 1967 | N46: 0.2425 | O46: 0.357 | P46: 1.238
M47: 1966 | N47: 0.248 | O47: 0.3765 | P47: 1.258
A48: If you would like to adjust ratings for a player, you may do so at any time but it has to be in the right place. Each team has its own | M48: 1965 | N48: 0.2455 | O48: 0.3715 | P48: 1.2675
B49: tab and that is where the changes need to be made. To the right of each player, there are numbers listed for various | M49: 1964 | N49: 0.2505 | O49: 0.378 | P49: 1.28
B50: facets of the game. Here is how each of these numbers affect the game: | M50: 1963 | N50: 0.246 | O50: 0.372 | P50: 1.2585
M51: 1962 | N51: 0.258 | O51: 0.3935 | P51: 1.3605
B52: PITCHERS | M52: 1961 | N52: 0.259 | O52: 0.4 | P52: 1.3725
B53: 1) Effectiveness - This measures how good a pitcher is by comparing their WHIP to the league average. Pitchers | M53: 1960 | N53: 0.255 | O53: 0.388 | P53: 1.343
C54: start with an effectiveness rating of 50. A WHIP of 0.80 is the high mark, earning 100 points. A WHIP of | M54: 1959 | N54: 0.2565 | O54: 0.392 | P54: 1.3495
C55: 1.80 is the low mark, which would be an effectiveness rating of 0. Any WHIP can be converted to a raw | M55: 1958 | N55: 0.258 | O55: 0.394 | P55: 1.3495
C56: score by using the formula y = -90.909x + 172.7272. | M56: 1957 | N56: 0.2575 | O56: 0.391 | P56: 1.3445
B57: 2) Stamina - This is more of a classification system than a true numerical ranking. 1 is for starting pitchers, 2 is for | M57: 1956 | N57: 0.258 | O57: 0.3975 | P57: 1.3875
C58: middle relievers and 3 is for short relievers. Starters tire more slowly, middle relievers more quickly and | M58: 1955 | N58: 0.2585 | O58: 0.394 | P58: 1.393
C59: short relievers normally tire after one inning. | M59: 1954 | N59: 0.261 | O59: 0.39 | P59: 1.398
M60: 1953 | N60: 0.264 | O60: 0.397 | P60: 1.4135
B61: HITTERS | M61: 1952 | N61: 0.253 | O61: 0.3695 | P61: 1.3535
B62: 1) Contact - This number is derived from comparing a player's batting average to the league average of .261. A | M62: 1951 | N62: 0.261 | O62: 0.3855 | P62: 1.4165
C63: batting average of exactly .261 earns a contact score of 50 and an average of .350 earns a 100 rating. | M63: 1950 | N63: 0.266 | O63: 0.4015 | P63: 1.48
C64: Any batting average can be converted to a raw score by the formula y = 561.7977x - 96.6292. | M64: 1949 | N64: 0.2625 | O64: 0.384 | P64: 1.46
C65: It will not change the players' ratings but you can adjust the standard in-game batting average at the top | M65: 1948 | N65: 0.2635 | O65: 0.3825 | P65: 1.452
C66: of this page. So if a batter and a pitcher have matching contact and effectiveness ratings, they will hit | M66: 1947 | N66: 0.2605 | O66: 0.377 | P66: 1.4155
C67: the average at the top of the page. The default setting is .261. If a hitter has a contact score higher than | M67: 1946 | N67: 0.256 | O67: 0.3595 | P67: 1.3695
C68: the pitcher's effectiveness score by 10 points, then the hitter will hit .261 + .010 = .271 against that | M68: 1945 | N68: 0.26 | O68: 0.355 | P68: 1.377
C69: particular pitcher. | M69: 1944 | N69: 0.2605 | O69: 0.358 | P69: 1.354
B70: 2) Power - When the game generates a home run, a batter must also pass the power test. The probability of hitting a | M70: 1943 | N70: 0.2535 | O70: 0.344 | P70: 1.331
C71: home run increases the higher power rating they have. This number is calculated by taking their slugging | M71: 1942 | N71: 0.253 | O71: 0.35 | P71: 1.3465
C72: percentage and comparing it to an approximate league average of .400. A slugging percentage of .400 | M72: 1941 | N72: 0.262 | O72: 0.375 | P72: 1.4155
C73: earns the player a power rating of 50 and a slugging percentage of .650 earns them a 100. Any slugging | M73: 1940 | N73: 0.2675 | O73: 0.3915 | P73: 1.4185
C74: percentage can be converted to a raw score by the formula y = 200x - 30. The game randomly generates | M74: 1939 | N74: 0.2755 | O74: 0.3965 | P74: 1.459
C75: a number between 0 and 100 and if the hitter's power score is higher than that number, then the batter | M75: 1938 | N75: 0.274 | O75: 0.3955 | P75: 1.4745
C76: will hit a home run if the random number before had determined a deep drive. If they do not pass the | M76: 1937 | N76: 0.2765 | O76: 0.3985 | P76: 1.47
C77: power test, the batter will hit a double. | M77: 1936 | N77: 0.2835 | O77: 0.4035 | P77: 1.51
B78: 3) Speed - This number affects stolen bases and baserunning plays like scoring from second base on a single. | M78: 1935 | N78: 0.2785 | O78: 0.3965 | P78: 1.4575
C79: This number is harder to quantify as good baserunners are not always the fastest. Consider 50 average | M79: 1934 | N79: 0.279 | O79: 0.3965 | P79: 1.465
C80: with 0 being Cecil Fielder and 100 being Rickey Henderson. | M80: 1933 | N80: 0.2695 | O80: 0.376 | P80: 1.3845
B81: 4) Arm - The arm rating really only affects outfielders and catchers. Infielders do not have arm ratings as infield range | M81: 1932 | N81: 0.2765 | O81: 0.4 | P81: 1.4305
C82: is taken into account into the hit probabilities. I am hoping to fix this in later versions if I ever get around | M82: 1931 | N82: 0.278 | O82: 0.3915 | P82: 1.4415
C83: to it. Just like speed, this is harder to quantify so it is kind of a judgment call. Roberto Clemente would be | M83: 1930 | N83: 0.2955 | O83: 0.4345 | P83: 1.521
C84: 100 and Johnny Damon would be a 20. Similarly, Johnny Bench would be a 100 and Mike Piazza would | M84: 1929 | N84: 0.289 | O84: 0.4165 | P84: 1.494
C85: a 20 or so. All players who are not catchers or outfielders should be listed as 20 so if they are put in those | M85: 1928 | N85: 0.281 | O85: 0.397 | P85: 1.4265
C86: positions, they will perform poorly. Don't set it equal to 0, no outfielder is completely inept. | M86: 1927 | N86: 0.284 | O86: 0.3925 | P86: 1.428
B87: 5) Bunt - This number is setting the percentage of time they can sacrifice successfully. Bunt execution percentage is | M87: 1926 | N87: 0.2805 | O87: 0.389 | P87: 1.4235
C88: a stat I have never seen so use yout best judgment here as well. | M88: 1925 | N88: 0.292 | O88: 0.411 | P88: 1.497
M89: 1924 | N89: 0.2865 | O89: 0.3945 | P89: 1.439
A90: EXPANSION | M90: 1923 | N90: 0.2845 | O90: 0.3915 | P90: 1.4395
M91: 1922 | N91: 0.2885 | O91: 0.401 | P91: 1.4385
M92: 1921 | N92: 0.2905 | O92: 0.4025 | P92: 1.435
A93: This workbook is not currently set up for the addition of other teams. Adding other teams would require manual changes in the | M93: 1920 | N93: 0.2765 | O93: 0.372 | P93: 1.3525
A94: code. If you want to take a crack at adding new teams, go for it, just remember that the workbook is very particular about what | M94: 1919 | N94: 0.263 | O94: 0.348 | P94: 1.272
A95: data is going in what cells. One number in the wrong place can cause the game to crash. I am planning on adding other teams | M95: 1918 | N95: 0.254 | O95: 0.325 | P95: 1.239
A96: as new season gets played. I am also interested in putting together a workbook of the greatest teams in baseball history. If | M96: 1917 | N96: 0.2485 | O96: 0.324 | P96: 1.2105
A97: there are modifications you would like to see or if you want to provide me a list of teams you would like to have in a workbook, | M97: 1916 | N97: 0.2475 | O97: 0.326 | P97: 1.217
A98: please email me at will.e.morrison@gmail.com. | M98: 1915 | N98: 0.248 | O98: 0.3285 | P98: 1.24
M99: 1914 | N99: 0.2495 | O99: 0.3285 | P99: 1.241
M100: 1913 | N100: 0.259 | O100: 0.345 | P100: 1.2845
M101: 1912 | N101: 0.2685 | O101: 0.3585 | P101: 1.3555
M102: 1911 | N102: 0.2665 | O102: 0.357 | P102: 1.3525
M103: 1910 | N103: 0.2495 | O103: 0.3255 | P103: 1.2435
M104: 1909 | N104: 0.244 | O104: 0.3115 | P104: 1.184
M105: 1908 | N105: 0.239 | O105: 0.305 | P105: 1.137
M106: 1907 | N106: 0.245 | O106: 0.309 | P106: 1.19
M107: 1906 | N107: 0.2465 | O107: 0.314 | P107: 1.1955
M108: 1905 | N108: 0.248 | O108: 0.323 | P108: 1.205
M109: 1904 | N109: 0.2465 | O109: 0.3215 | P109: 1.1865
M110: 1903 | N110: 0.262 | O110: 0.3465 | P110: 1.2835
M111: 1902 | N111: 0.267 | O111: 0.3435 | P111: 1.308
M112: 1901 | N112: 0.272 | O112: 0.3595 | P112: 1.3525
M113: 1900 | N113: 0.279 | O113: 0.366 | P113: 1.408
M114: 1899 | N114: 0.282 | O114: 0.366 | P114: 1.43
M115: 1898 | N115: 0.271 | O115: 0.347 | P115: 1.382
M116: 1897 | N116: 0.292 | O116: 0.386 | P116: 1.518
M117: 1896 | N117: 0.29 | O117: 0.387 | P117: 1.526
M118: 1895 | N118: 0.296 | O118: 0.4 | P118: 1.59
M119: 1894 | N119: 0.309 | O119: 0.435 | P119: 1.712
M120: 1893 | N120: 0.28 | O120: 0.379 | P120: 1.591
M121: 1892 | N121: 0.245 | O121: 0.328 | P121: 1.355
M122: 1891 | N122: 0.252 | O122: 0.342 | P122: 1.398
M123: 1890 | N123: 0.254 | O123: 0.342 | P123: 1.4
M124: 1889 | N124: 0.266 | O124: 0.361 | P124: 1.455
M125: 1888 | N125: 0.239 | O125: 0.325 | P125: 1.155
M126: 1887 | N126: 0.269 | O126: 0.381 | P126: 1.391
M127: 1886 | N127: 0.251 | O127: 0.342 | P127: 1.281
M128: 1885 | N128: 0.241 | O128: 0.322 | P128: 1.2
M129: 1884 | N129: 0.247 | O129: 0.34 | P129: 1.229
M130: 1883 | N130: 0.262 | O130: 0.36 | P130: 1.255
M131: 1882 | N131: 0.251 | O131: 0.342 | P131: 1.188
M132: 1881 | N132: 0.26 | O132: 0.338 | P132: 1.23
M133: 1880 | N133: 0.245 | O133: 0.32 | P133: 1.108
M134: 1879 | N134: 0.255 | O134: 0.329 | P134: 1.152
M135: 1878 | N135: 0.259 | O135: 0.319 | P135: 1.174
M136: 1877 | N136: 0.271 | O136: 0.338 | P136: 1.25
M137: 1876 | N137: 0.265 | O137: 0.321 | P137: 1.197

Sheet 2004RedSox
A1: PITCHERS | B1: WHIP | C1: Effectiness | D1: Stamina | E1: 1 | F1: CF | G1: J Damon | I1: 1 | J1: C Schilling | M1: 1 | N1: CF | O1: J Damon | AA1: 2004
A2: C Schilling | B2: 1.063 | C2: =IF(B2="","",ROUND((50/($AB$11-$AB$10))*(B2-$AB$11)+100,0)) -> 78 | D2: 1 | E2: 2 | F2: 2B | G2: M Bellhorn | I2: 2 | J2: P Martinez | M2: 2 | N2: 2B | O2: M Bellhorn | AA2: Avg BA (50) | AB2: =VLOOKUP(AA1,'Settings & Expansion'!M3:P137,2,FALSE) -> 0.2665
A3: P Martinez | B3: 1.171 | C3: =IF(B3="","",ROUND((50/($AB$11-$AB$10))*(B3-$AB$11)+100,0)) -> 69 | D3: 1 | E3: 3 | F3: LF | G3: M Ramirez | I3: 3 | J3: T Wakefield | M3: 3 | N3: LF | O3: M Ramirez | AA3: Top BA (100) | AB3: 0.372
A4: T Wakefield | B4: 1.381 | C4: 52 | D4: 1 | E4: 4 | F4: DH | G4: D Ortiz | I4: 4 | J4: D Lowe | M4: 4 | N4: DH | O4: D Ortiz
A5: D Lowe | B5: 1.615 | C5: 32 | D5: 1 | E5: 5 | F5: C | G5: J Varitek | M5: 5 | N5: C | O5: J Varitek
A6: K Foulke | B6: 0.94 | C6: 88 | D6: 3 | E6: 6 | F6: RF | G6: T Nixon | M6: 6 | N6: RF | O6: T Nixon | AA6: Avg Slg% (50) | AB6: =VLOOKUP(AA1,'Settings & Expansion'!M3:P137,3,FALSE) -> 0.428
A7: M Timlin | B7: 1.231 | C7: 64 | D7: 3 | E7: 7 | F7: 1B | G7: K Millar | M7: 7 | N7: 1B | O7: K Millar | AA7: Top Slg% (100) | AB7: 0.657
A8: A Embree | B8: 1.146 | C8: 71 | D8: 3 | E8: 8 | F8: 3B | G8: B Mueller | M8: 8 | N8: 3B | O8: B Mueller
A9: S Williamson | B9: 1.012 | C9: 82 | D9: 3 | E9: 9 | F9: SS | G9: O Cabrera | M9: 9 | N9: SS | O9: O Cabrera
A10: C Leskanic | B10: 1.446 | C10: 46 | D10: 3 | AA10: Avg WHIP (50) | AB10: =VLOOKUP(AA1,'Settings & Expansion'!M3:P137,4,FALSE) -> 1.401
A11: B Arroyo | B11: 1.22 | C11: 65 | D11: 2 | N11: P | O11: C Schilling | AA11: Low WHIP (100) | AB11: 0.8
A12: R Mendoza | B12: 1.043 | C12: 80 | D12: 2
A13: CATCHERS | C13: AVG | D13: Slug% | E13: Speed | F13: Def/Arm | G13: Bunt | H13: Raw Avg | I13: Raw Slg% | P13: IP | Q13: H | R13: R | S13: K | T13: ERA | W13: BB
A14: J Varitek | C14: =IF(H14="","",ROUND((50/($AB$3-$AB$2))*(H14-$AB$3)+100,0)) -> 64 | D14: =IF(I14="","",ROUND((50/($AB$7-$AB$6))*(I14-$AB$7)+100,0)) -> 62 | E14: 40 | F14: 55 | G14: 60 | H14: 0.296 | I14: 0.482 | N14: Starter | O14: C Schilling | T14: =IFERROR(IF(O14="","",R14*9/P14),"INF") -> INF
A15: D Mirabelli | C15: =IF(H15="","",ROUND((50/($AB$3-$AB$2))*(H15-$AB$3)+100,0)) -> 57 | D15: =IF(I15="","",ROUND((50/($AB$7-$AB$6))*(I15-$AB$7)+100,0)) -> 71 | E15: 25 | F15: 50 | G15: 45 | H15: 0.281 | I15: 0.525
A16: INFIELDERS
A17: K Millar | C17: 64 | D17: 60 | E17: 55 | F17: 40 | G17: 40 | H17: 0.297 | I17: 0.474
A18: M Bellhorn | C18: 49 | D18: 53 | E18: 60 | F18: 20 | G18: 50 | H18: 0.264 | I18: 0.444
A19: P Reese | C19: 28 | D19: 23 | E19: 70 | F19: 20 | G19: 70 | H19: 0.221 | I19: 0.303
A20: B Mueller | C20: 58 | D20: 54 | E20: 55 | F20: 20 | G20: 65 | H20: 0.283 | I20: 0.446
A21: K Youkilis | C21: 47 | D21: 47 | E21: 55 | F21: 20 | G21: 60 | H21: 0.26 | I21: 0.413 | T21: =IF(O21="","",R21*9/P21) -> 
A22: N Garciaparra | C22: 76 | D22: 66 | E22: 65 | F22: 20 | G22: 65 | H22: 0.321 | I22: 0.5
A23: D Ortiz | C23: 66 | D23: 88 | E23: 30 | F23: 20 | G23: 25 | H23: 0.301 | I23: 0.603
A24: O Cabrera | C24: 63 | D24: 58 | E24: 70 | F24: 20 | G24: 70 | H24: 0.294 | I24: 0.465
A25: OUTFIELDERS
A26: M Ramirez | C26: 70 | D26: 90 | E26: 45 | F26: 45 | G26: 30 | H26: 0.308 | I26: 0.613
A27: J Damon | C27: 68 | D27: 61 | E27: 75 | F27: 40 | G27: 75 | H27: 0.304 | I27: 0.477
A28: G Kapler | C28: 53 | D28: 42 | E28: 60 | F28: 65 | G28: 45 | H28: 0.272 | I28: 0.39
A29: T Nixon | C29: 73 | D29: 68 | E29: 55 | F29: 65 | G29: 40 | H29: 0.315 | I29: 0.51
C43: AB | D43: H | E43: RBI | F43: Run | G43: HR | H43: 3B | I43: 2B | J43: SB
A44: PITCHERS | C44: 0 | D44: 0 | E44: 0 | F44: 0 | G44: 0 | H44: 0 | I44: 0 | J44: 0
A45: C Schilling | B45: 1 | C45: 0 | D45: 0 | E45: 0 | F45: 0 | G45: 0 | H45: 0 | I45: 0 | J45: 0
A46: P Martinez | C46: 0 | D46: 0 | E46: 0 | F46: 0 | G46: 0 | H46: 0 | I46: 0 | J46: 0
A47: T Wakefield | C47: 0 | D47: 0 | E47: 0 | F47: 0 | G47: 0 | H47: 0 | I47: 0 | J47: 0
A48: D Lowe | C48: 0 | D48: 0 | E48: 0 | F48: 0 | G48: 0 | H48: 0 | I48: 0 | J48: 0
A49: K Foulke | C49: 0 | D49: 0 | E49: 0 | F49: 0 | G49: 0 | H49: 0 | I49: 0 | J49: 0
A50: M Timlin | C50: 0 | D50: 0 | E50: 0 | F50: 0 | G50: 0 | H50: 0 | I50: 0 | J50: 0
A51: A Embree | C51: 0 | D51: 0 | E51: 0 | F51: 0 | G51: 0 | H51: 0 | I51: 0 | J51: 0
A52: S Williamson | C52: 0 | D52: 0 | E52: 0 | F52: 0 | G52: 0 | H52: 0 | I52: 0 | J52: 0
A53: C Leskanic | C53: 0 | D53: 0 | E53: 0 | F53: 0 | G53: 0 | H53: 0 | I53: 0 | J53: 0
A54: B Arroyo | C54: 0 | D54: 0 | E54: 0 | F54: 0 | G54: 0 | H54: 0 | I54: 0 | J54: 0
A55: R Mendoza | C55: 0 | D55: 0 | E55: 0 | F55: 0 | G55: 0 | H55: 0 | I55: 0 | J55: 0
A56: CATCHERS | C56: 0 | D56: 0 | E56: 0 | F56: 0 | G56: 0 | H56: 0 | I56: 0 | J56: 0
A57: J Varitek | B57: 1 | C57: 0 | D57: 0 | E57: 0 | F57: 0 | G57: 0 | H57: 0 | I57: 0 | J57: 0
A58: D Mirabelli | C58: 0 | D58: 0 | E58: 0 | F58: 0 | G58: 0 | H58: 0 | I58: 0 | J58: 0
A59: INFIELDERS | C59: 0 | D59: 0 | E59: 0 | F59: 0 | G59: 0 | H59: 0 | I59: 0 | J59: 0
A60: K Millar | B60: 1 | C60: 0 | D60: 0 | E60: 0 | F60: 0 | G60: 0 | H60: 0 | I60: 0 | J60: 0
A61: M Bellhorn | B61: 1 | C61: 0 | D61: 0 | E61: 0 | F61: 0 | G61: 0 | H61: 0 | I61: 0 | J61: 0
A62: P Reese | B62: 1 | C62: 0 | D62: 0 | E62: 0 | F62: 0 | G62: 0 | H62: 0 | I62: 0 | J62: 0
A63: B Mueller | B63: 1 | C63: 0 | D63: 0 | E63: 0 | F63: 0 | G63: 0 | H63: 0 | I63: 0 | J63: 0
A64: K Youkilis | C64: 0 | D64: 0 | E64: 0 | F64: 0 | G64: 0 | H64: 0 | I64: 0 | J64: 0
A65: N Garciaparra | C65: 0 | D65: 0 | E65: 0 | F65: 0 | G65: 0 | H65: 0 | I65: 0 | J65: 0
A66: D Ortiz | C66: 0 | D66: 0 | E66: 0 | F66: 0 | G66: 0 | H66: 0 | I66: 0 | J66: 0
A67: O Cabrera | B67: 1 | C67: 0 | D67: 0 | E67: 0 | F67: 0 | G67: 0 | H67: 0 | I67: 0 | J67: 0
A68: OUTFIELDERS | B68: 1 | C68: 0 | D68: 0 | E68: 0 | F68: 0 | G68: 0 | H68: 0 | I68: 0 | J68: 0
A69: M Ramirez | B69: 1 | C69: 0 | D69: 0 | E69: 0 | F69: 0 | G69: 0 | H69: 0 | I69: 0 | J69: 0
A70: J Damon | B70: 1 | C70: 0 | D70: 0 | E70: 0 | F70: 0 | G70: 0 | H70: 0 | I70: 0 | J70: 0
A71: G Kapler | C71: 0 | D71: 0 | E71: 0 | F71: 0 | G71: 0 | H71: 0 | I71: 0 | J71: 0
A72: T Nixon | C72: 0 | D72: 0 | E72: 0 | F72: 0 | G72: 0 | H72: 0 | I72: 0 | J72: 0
B73: 99 | C73: 0 | D73: 0 | E73: 0 | F73: 0 | G73: 0 | H73: 0 | I73: 0 | J73: 0

Sheet 2002Angels
A1: PITCHERS | B1: WHIP | C1: Effectiveness | D1: Stamina | E1: 1 | F1: SS | G1: D Eckstein | I1: 1 | J1: J Washburn | M1: 1 | N1: SS | O1: D Eckstein | AA1: 2002
A2: J Washburn | B2: 1.175 | C2: =IF(B2="","",ROUND((50/($AB$11-$AB$10))*(B2-$AB$11)+100,0)) -> 69 | D2: 1 | E2: 2 | F2: CF | G2: D Erstad | I2: 2 | J2: R Ortiz | M2: 2 | N2: CF | O2: D Erstad | AA2: Avg BA (50) | AB2: =VLOOKUP(AA1,'Settings & Expansion'!M3:P137,2,FALSE) -> 0.2615
A3: R Ortiz | B3: 1.178 | C3: =IF(B3="","",ROUND((50/($AB$11-$AB$10))*(B3-$AB$11)+100,0)) -> 68 | D3: 1 | E3: 3 | F3: RF | G3: T Salmon | I3: 3 | J3: K Appier | M3: 3 | N3: RF | O3: T Salmon | AA3: Top BA (100) | AB3: 0.349
A4: K Appier | B4: 1.354 | C4: 52 | D4: 1 | E4: 4 | F4: LF | G4: G Anderson | I4: 4 | J4: J Lackey | M4: 4 | N4: LF | O4: G Anderson
A5: J Lackey | B5: 1.348 | C5: 53 | D5: 1 | E5: 5 | F5: 3B | G5: T Glaus | M5: 5 | N5: 3B | O5: T Glaus
A6: T Percival | B6: 1.118 | C6: 74 | D6: 3 | E6: 6 | F6: DH | G6: B Fullmer | M6: 6 | N6: DH | O6: B Fullmer | AA6: Avg Slg% (50) | AB6: =VLOOKUP(AA1,'Settings & Expansion'!M3:P137,3,FALSE) -> 0.417
A7: S Schoeneweis | B7: 1.424 | C7: 46 | D7: 2 | E7: 7 | F7: 1B | G7: S Spiezio | M7: 7 | N7: 1B | O7: S Spiezio | AA7: Top Slg% (100) | AB7: 0.677
A8: B Weber | B8: 1.179 | C8: 68 | D8: 3 | E8: 8 | F8: C | G8: B Molina | M8: 8 | N8: C | O8: B Molina
A9: A Levine | B9: 1.492 | C9: 39 | D9: 2 | E9: 9 | F9: 2B | G9: A Kennedy | M9: 9 | N9: 2B | O9: A Kennedy | OP9: D Brocail
A10: B Donnelly | B10: 1.027 | C10: 82 | D10: 3 | AA10: Avg WHIP (50) | AB10: =VLOOKUP(AA1,'Settings & Expansion'!M3:P137,4,FALSE) -> 1.376
A11: A Sele | B11: 1.494 | C11: 39 | D11: 2 | N11: P | O11: J Washburn | AA11: Low WHIP (100) | AB11: 0.833
A12: F Rodriguez | B12: 0.882 | C12: 95 | D12: 3 | T12: =IF(O12="","",(9*R12)/P12) -> 
A13: CATCHERS | C13: AVG | D13: Slug% | E13: Speed | F13: Def/Arm | G13: Bunt | H13: Raw Avg | I13: Raw Slg% | P13: IP | Q13: H | R13: R | S13: K | T13: ERA | W13: BB
A14: B Molina | C14: =IF(H14="","",ROUND((50/($AB$3-$AB$2))*(H14-$AB$3)+100,0)) -> 41 | D14: =IF(I14="","",ROUND((50/($AB$7-$AB$6))*(I14-$AB$7)+100,0)) -> 32 | E14: 30 | F14: 75 | G14: 65 | H14: 0.245 | I14: 0.322 | N14: Starter | O14: J Washburn | T14: =IFERROR(IF(O14="","",R14*9/P14),"INF") -> INF | Y14: 0 | Z14: 0
A15: J Fobregas | C15: =IF(H15="","",ROUND((50/($AB$3-$AB$2))*(H15-$AB$3)+100,0)) -> 11 | D15: =IF(I15="","",ROUND((50/($AB$7-$AB$6))*(I15-$AB$7)+100,0)) -> 9 | E15: 40 | F15: 60 | G15: 60 | H15: 0.193 | I15: 0.205 | Y15: 0 | Z15: 0
A16: INFIELDERS | Y16: 0 | Z16: 0
A17: S Spiezio | C17: 63 | D17: 54 | E17: 55 | F17: 45 | G17: 60 | H17: 0.285 | I17: 0.436
A18: A Kennedy | C18: 79 | D18: 56 | E18: 65 | F18: 20 | G18: 75 | H18: 0.312 | I18: 0.449
A19: D Eckstein | C19: 68 | D19: 44 | E19: 70 | F19: 20 | G19: 75 | H19: 0.293 | I19: 0.388
A20: T Glaus | C20: 43 | D20: 57 | E20: 45 | F20: 20 | G20: 35 | H20: 0.25 | I20: 0.453
A21: B Fullmer | C21: 66 | D21: 72 | E21: 45 | F21: 20 | G21: 40 | H21: 0.289 | I21: 0.531 | T21: =IF(O21="","",R21*9/P21) -> 
A22: B Gil | C22: 63 | D22: 53 | E22: 60 | F22: 20 | G22: 60 | H22: 0.285 | I22: 0.431
A23: J Nieves | C23: 66 | D23: 29 | E23: 60 | F23: 20 | G23: 60 | H23: 0.289 | I23: 0.309
A24: OUTFIELDERS
A25: G Anderson | C25: 75 | D25: 73 | E25: 55 | F25: 60 | G25: 55 | H25: 0.306 | I25: 0.539
A26: D Erstad | C26: 62 | D26: 45 | E26: 75 | F26: 70 | G26: 70 | H26: 0.283 | I26: 0.389
A27: T Salmon | C27: 64 | D27: 67 | E27: 55 | F27: 65 | G27: 45 | H27: 0.286 | I27: 0.503
A28: O Palmeiro | C28: 72 | D28: 38 | E28: 65 | F28: 60 | G28: 65 | H28: 0.3 | I28: 0.354
A29: S Wooten | C29: 67 | D29: 53 | E29: 40 | F29: 45 | G29: 50 | H29: 0.292 | I29: 0.431
C43: AB | D43: H | E43: RBI | F43: Run | G43: HR | H43: 3B | I43: 2B | J43: SB
A44: PITCHERS | C44: 0 | D44: 0 | E44: 0 | F44: 0 | G44: 0 | H44: 0 | I44: 0 | J44: 0
A45: J Washburn | C45: 0 | D45: 0 | E45: 0 | F45: 0 | G45: 0 | H45: 0 | I45: 0 | J45: 0
A46: R Ortiz | B46: 1 | C46: 0 | D46: 0 | E46: 0 | F46: 0 | G46: 0 | H46: 0 | I46: 0 | J46: 0
A47: K Appier | C47: 0 | D47: 0 | E47: 0 | F47: 0 | G47: 0 | H47: 0 | I47: 0 | J47: 0
A48: J Lackey | C48: 0 | D48: 0 | E48: 0 | F48: 0 | G48: 0 | H48: 0 | I48: 0 | J48: 0
A49: T Percival | C49: 0 | D49: 0 | E49: 0 | F49: 0 | G49: 0 | H49: 0 | I49: 0 | J49: 0
A50: S Schoeneweis | C50: 0 | D50: 0 | E50: 0 | F50: 0 | G50: 0 | H50: 0 | I50: 0 | J50: 0
A51: B Weber | C51: 0 | D51: 0 | E51: 0 | F51: 0 | G51: 0 | H51: 0 | I51: 0 | J51: 0
A52: A Levine | C52: 0 | D52: 0 | E52: 0 | F52: 0 | G52: 0 | H52: 0 | I52: 0 | J52: 0
A53: B Donnelly | C53: 0 | D53: 0 | E53: 0 | F53: 0 | G53: 0 | H53: 0 | I53: 0 | J53: 0
A54: A Sele | C54: 0 | D54: 0 | E54: 0 | F54: 0 | G54: 0 | H54: 0 | I54: 0 | J54: 0
A55: F Rodriguez | C55: 0 | D55: 0 | E55: 0 | F55: 0 | G55: 0 | H55: 0 | I55: 0 | J55: 0
A56: CATCHERS | C56: 0 | D56: 0 | E56: 0 | F56: 0 | G56: 0 | H56: 0 | I56: 0 | J56: 0
A57: B Molina | B57: 1 | C57: 0 | D57: 0 | E57: 0 | F57: 0 | G57: 0 | H57: 0 | I57: 0 | J57: 0
A58: J Fobregas | C58: 0 | D58: 0 | E58: 0 | F58: 0 | G58: 0 | H58: 0 | I58: 0 | J58: 0
A59: INFIELDERS | C59: 0 | D59: 0 | E59: 0 | F59: 0 | G59: 0 | H59: 0 | I59: 0 | J59: 0
A60: S Spiezio | B60: 1 | C60: 0 | D60: 0 | E60: 0 | F60: 0 | G60: 0 | H60: 0 | I60: 0 | J60: 0
A61: A Kennedy | B61: 1 | C61: 0 | D61: 0 | E61: 0 | F61: 0 | G61: 0 | H61: 0 | I61: 0 | J61: 0
A62: D Eckstein | C62: 0 | D62: 0 | E62: 0 | F62: 0 | G62: 0 | H62: 0 | I62: 0 | J62: 0
A63: T Glaus | B63: 1 | C63: 0 | D63: 0 | E63: 0 | F63: 0 | G63: 0 | H63: 0 | I63: 0 | J63: 0
A64: B Fullmer | B64: 1 | C64: 0 | D64: 0 | E64: 0 | F64: 0 | G64: 0 | H64: 0 | I64: 0 | J64: 0
A65: B Gil | C65: 0 | D65: 0 | E65: 0 | F65: 0 | G65: 0 | H65: 0 | I65: 0 | J65: 0
A66: J Nieves | C66: 0 | D66: 0 | E66: 0 | F66: 0 | G66: 0 | H66: 0 | I66: 0 | J66: 0
A67: OUTFIELDERS | C67: 0 | D67: 0 | E67: 0 | F67: 0 | G67: 0 | H67: 0 | I67: 0 | J67: 0
A68: G Anderson | B68: 1 | C68: 0 | D68: 0 | E68: 0 | F68: 0 | G68: 0 | H68: 0 | I68: 0 | J68: 0
A69: D Erstad | B69: 1 | C69: 0 | D69: 0 | E69: 0 | F69: 0 | G69: 0 | H69: 0 | I69: 0 | J69: 0
A70: T Salmon | B70: 1 | C70: 0 | D70: 0 | E70: 0 | F70: 0 | G70: 0 | H70: 0 | I70: 0 | J70: 0
A71: O Palmeiro | C71: 0 | D71: 0 | E71: 0 | F71: 0 | G71: 0 | H71: 0 | I71: 0 | J71: 0
A72: S Wooten | C72: 0 | D72: 0 | E72: 0 | F72: 0 | G72: 0 | H72: 0 | I72: 0 | J72: 0
B73: 99 | C73: 0 | D73: 0 | E73: 0 | F73: 0 | G73: 0 | H73: 0 | I73: 0 | J73: 0

Sheet 2001Mariners
A1: PITCHERS | B1: WHIP | C1: Effectiveness | D1: Stamina | E1: 1 | F1: RF | G1: I Suzuki | I1: 1 | J1: J Moyer | M1: 1 | N1: RF | O1: I Suzuki | AA1: 2001
A2: J Moyer | B2: 1.102 | C2: =IF(B2="","",ROUND((50/($AB$11-$AB$10))*(B2-$AB$11)+100,0)) -> 76 | D2: 1 | E2: 2 | F2: LF | G2: S Javier | I2: 2 | J2: F Garcia | M2: 2 | N2: LF | O2: S Javier | AA2: Avg BA (50) | AB2: =VLOOKUP(AA1,'Settings & Expansion'!M3:P137,2,FALSE) -> 0.264
A3: F Garcia | B3: 1.123 | C3: =IF(B3="","",ROUND((50/($AB$11-$AB$10))*(B3-$AB$11)+100,0)) -> 74 | D3: 1 | E3: 3 | F3: 2B | G3: B Boone | I3: 3 | J3: A Sele | M3: 3 | N3: 2B | O3: B Boone | AA3: Top BA (100) | AB3: 0.35
A4: A Sele | B4: 1.242 | C4: 63 | D4: 1 | E4: 4 | F4: DH | G4: E Martinez | I4: 4 | J4: P Abbott | M4: 4 | N4: DH | O4: E Martinez
A5: P Abbott | B5: 1.423 | C5: 46 | D5: 1 | E5: 5 | F5: 1B | G5: J Olerud | M5: 5 | N5: 1B | O5: J Olerud
A6: K Sasaki | B6: 0.885 | C6: 97 | D6: 3 | E6: 6 | F6: CF | G6: M Cameron | M6: 6 | N6: CF | O6: M Cameron | AA6: Avg Slg% (50) | AB6: =VLOOKUP(AA1,'Settings & Expansion'!M3:P137,3,FALSE) -> 0.4265
A7: A Rhodes | B7: 0.853 | C7: 100 | D7: 3 | E7: 7 | F7: C | G7: D Wilson | M7: 7 | N7: C | O7: D Wilson | AA7: Top Slg% (100) | AB7: 0.662
A8: J Paniagua | B8: 1.47 | C8: 41 | D8: 3 | E8: 8 | F8: 3B | G8: D Bell | M8: 8 | N8: 3B | O8: D Bell
A9: J Nelson | B9: 1.133 | C9: 73 | D9: 3 | E9: 9 | F9: SS | G9: M McLemore | M9: 9 | N9: SS | O9: M McLemore
A10: N Charlton | B10: 0.986 | C10: 87 | D10: 3 | AA10: Avg WHIP (50) | AB10: =VLOOKUP(AA1,'Settings & Expansion'!M3:P137,4,FALSE) -> 1.3795
A11: J Halama | B11: 1.432 | C11: 45 | D11: 2 | N11: P | O11: K Sasaki | AA11: Low WHIP (100) | AB11: 0.853
A12: J Pineiro | B12: 0.942 | C12: 92 | D12: 2
A13: CATCHERS | C13: AVG | D13: Slug% | E13: Speed | F13: Def/Arm | G13: Bunt | H13: Raw Avg | I13: Raw Slg% | P13: IP | Q13: H | R13: R | S13: K | T13: ERA | W13: BB
A14: D Wilson | C14: =IF(H14="","",ROUND((50/($AB$3-$AB$2))*(H14-$AB$3)+100,0)) -> 51 | D14: =IF(I14="","",ROUND((50/($AB$7-$AB$6))*(I14-$AB$7)+100,0)) -> 45 | E14: 45 | F14: 60 | G14: 65 | H14: 0.265 | I14: 0.403 | N14: Starter | O14: A Sele | P14: =ROUND(7.66666666666666,2) -> 7.67 | Q14: 8 | R14: 3 | S14: 6 | T14: =ROUND(3.52020860495437,2) -> 3.52 | U14: W | W14: 0 | X14: 0 | Y14: 0 | Z14: 0
A15: T Lampkin | C15: =IF(H15="","",ROUND((50/($AB$3-$AB$2))*(H15-$AB$3)+100,0)) -> 27 | D15: =IF(I15="","",ROUND((50/($AB$7-$AB$6))*(I15-$AB$7)+100,0)) -> 33 | E15: 40 | F15: 55 | G15: 55 | H15: 0.225 | I15: 0.348 | O15: J Nelson | P15: =ROUND(0.333333333333333,2) -> 0.33 | Q15: 0 | R15: 0 | S15: 1 | T15: =ROUND(0,2) -> 0 | W15: 0 | X15: 0 | Y15: 0 | Z15: 0
A16: INFIELDERS | O16: K Sasaki | P16: =ROUND(1,2) -> 1 | Q16: 0 | R16: 0 | S16: 1 | T16: =ROUND(0,2) -> 0 | V16: S | W16: 0 | X16: 0 | Y16: 0 | Z16: 0
A17: J Olerud | C17: 72 | D17: 60 | E17: 40 | F17: 20 | G17: 45 | H17: 0.302 | I17: 0.472 | T17: =IFERROR(IF(O17="","",R17*9/P17),"INF") -> 
A18: B Boone | C18: 89 | D18: 82 | E18: 65 | F18: 20 | G18: 55 | H18: 0.331 | I18: 0.578 | T18: =IFERROR(IF(O18="","",R18*9/P18),"INF") -> 
A19: C Guillen | C19: 47 | D19: 35 | E19: 55 | F19: 20 | G19: 65 | H19: 0.259 | I19: 0.355 | T19: =IFERROR(IF(O19="","",R19*9/P19),"INF") -> 
A20: D Bell | C20: 48 | D20: 48 | E20: 60 | F20: 20 | G20: 60 | H20: 0.26 | I20: 0.415 | T20: =IFERROR(IF(O20="","",R20*9/P20),"INF") -> 
A21: E Martinez | C21: 74 | D21: 75 | E21: 25 | F21: 20 | G21: 30 | H21: 0.306 | I21: 0.543 | T21: =IF(O21="","",R21*9/P21) -> 
A22: M McLemore | C22: 63 | D22: 46 | E22: 80 | F22: 40 | G22: 65 | H22: 0.286 | I22: 0.406
A23: E Sprague | C23: 70 | D23: 52 | E23: 60 | F23: 50 | G23: 45 | H23: 0.298 | I23: 0.436
A24: OUTFIELDERS
A25: A Martin | C25: 36 | D25: 41 | E25: 55 | F25: 60 | G25: 65 | H25: 0.24 | I25: 0.382
A26: M Cameron | C26: 52 | D26: 61 | E26: 75 | F26: 90 | G26: 55 | H26: 0.267 | I26: 0.48
A27: I Suzuki | C27: 100 | D27: 56 | E27: 90 | F27: 90 | G27: 85 | H27: 0.35 | I27: 0.457
A28: S Javier | C28: 66 | D28: 42 | E28: 65 | F28: 65 | G28: 70 | H28: 0.292 | I28: 0.391
A29: J Buhner | C29: 26 | D29: 44 | E29: 45 | F29: 75 | G29: 30 | H29: 0.222 | I29: 0.4
C43: AB | D43: H | E43: RBI | F43: Run | G43: HR | H43: 3B | I43: 2B | J43: SB
A44: PITCHERS | C44: 0 | D44: 0 | E44: 0 | F44: 0 | G44: 0 | H44: 0 | I44: 0 | J44: 0
A45: J Moyer | C45: 0 | D45: 0 | E45: 0 | F45: 0 | G45: 0 | H45: 0 | I45: 0 | J45: 0
A46: F Garcia | C46: 0 | D46: 0 | E46: 0 | F46: 0 | G46: 0 | H46: 0 | I46: 0 | J46: 0
A47: A Sele | B47: 1 | C47: 0 | D47: 0 | E47: 0 | F47: 0 | G47: 0 | H47: 0 | I47: 0 | J47: 0
A48: P Abbott | C48: 0 | D48: 0 | E48: 0 | F48: 0 | G48: 0 | H48: 0 | I48: 0 | J48: 0
A49: K Sasaki | B49: 1 | C49: 0 | D49: 0 | E49: 0 | F49: 0 | G49: 0 | H49: 0 | I49: 0 | J49: 0
A50: A Rhodes | C50: 0 | D50: 0 | E50: 0 | F50: 0 | G50: 0 | H50: 0 | I50: 0 | J50: 0
A51: J Paniagua | C51: 0 | D51: 0 | E51: 0 | F51: 0 | G51: 0 | H51: 0 | I51: 0 | J51: 0
A52: J Nelson | B52: 1 | C52: 0 | D52: 0 | E52: 0 | F52: 0 | G52: 0 | H52: 0 | I52: 0 | J52: 0
A53: N Charlton | C53: 0 | D53: 0 | E53: 0 | F53: 0 | G53: 0 | H53: 0 | I53: 0 | J53: 0
A54: J Halama | C54: 0 | D54: 0 | E54: 0 | F54: 0 | G54: 0 | H54: 0 | I54: 0 | J54: 0
A55: J Pineiro | C55: 0 | D55: 0 | E55: 0 | F55: 0 | G55: 0 | H55: 0 | I55: 0 | J55: 0
A56: CATCHERS | C56: 0 | D56: 0 | E56: 0 | F56: 0 | G56: 0 | H56: 0 | I56: 0 | J56: 0
A57: D Wilson | B57: 1 | C57: 4 | D57: 2 | E57: 1 | F57: 0 | G57: 0 | H57: 0 | I57: 0 | J57: 0
A58: T Lampkin | C58: 0 | D58: 0 | E58: 0 | F58: 0 | G58: 0 | H58: 0 | I58: 0 | J58: 0
A59: INFIELDERS | C59: 0 | D59: 0 | E59: 0 | F59: 0 | G59: 0 | H59: 0 | I59: 0 | J59: 0
A60: J Olerud | B60: 1 | C60: 4 | D60: 2 | E60: 4 | F60: 1 | G60: 1 | H60: 0 | I60: 0 | J60: 0
A61: B Boone | B61: 1 | C61: 3 | D61: 1 | E61: 0 | F61: 2 | G61: 0 | H61: 0 | I61: 1 | J61: 0
A62: C Guillen | C62: 0 | D62: 0 | E62: 0 | F62: 0 | G62: 0 | H62: 0 | I62: 0 | J62: 0
A63: D Bell | B63: 1 | C63: 4 | D63: 1 | E63: 0 | F63: 0 | G63: 0 | H63: 1 | I63: 0 | J63: 0
A64: E Martinez | B64: 1 | C64: 3 | D64: 1 | E64: 0 | F64: 1 | G64: 0 | H64: 0 | I64: 1 | J64: 0
A65: M McLemore | B65: 1 | C65: 2 | D65: 0 | E65: 0 | F65: 0 | G65: 0 | H65: 0 | I65: 0 | J65: 0
A66: E Sprague | C66: 0 | D66: 0 | E66: 0 | F66: 0 | G66: 0 | H66: 0 | I66: 0 | J66: 0
A67: OUTFIELDERS | C67: 0 | D67: 0 | E67: 0 | F67: 0 | G67: 0 | H67: 0 | I67: 0 | J67: 0
A68: A Martin | C68: 0 | D68: 0 | E68: 0 | F68: 0 | G68: 0 | H68: 0 | I68: 0 | J68: 0
A69: M Cameron | B69: 1 | C69: 3 | D69: 1 | E69: 1 | F69: 1 | G69: 0 | H69: 0 | I69: 1 | J69: 0
A70: I Suzuki | B70: 1 | C70: 3 | D70: 0 | E70: 0 | F70: 1 | G70: 0 | H70: 0 | I70: 0 | J70: 1
A71: S Javier | B71: 1 | C71: 4 | D71: 0 | E71: 0 | F71: 0 | G71: 0 | H71: 0 | I71: 0 | J71: 0
A72: J Buhner | C72: 0 | D72: 0 | E72: 0 | F72: 0 | G72: 0 | H72: 0 | I72: 0 | J72: 0
B73: 99 | C73: 0 | D73: 0 | E73: 0 | F73: 0 | G73: 0 | H73: 0 | I73: 0 | J73: 0

Sheet 2001Dbacks
A1: PITCHERS | B1: WHIP | C1: Effectiveness | D1: Stamina | E1: 1 | F1: SS | G1: T Womack | I1: 1 | J1: C Schilling | M1: 1 | N1: SS | O1: T Womack | AA1: 2001
A2: C Schilling | B2: 1.075 | C2: =IF(B2="","",ROUND((50/($AB$11-$AB$10))*(B2-$AB$11)+100,0)) -> 79 | D2: 1 | E2: 2 | F2: 2B | G2: C Counsell | I2: 2 | J2: R Johnson | M2: 2 | N2: 2B | O2: C Counsell | AA2: Avg BA (50) | AB2: =VLOOKUP(AA1,'Settings & Expansion'!M3:P137,2,FALSE) -> 0.264
A3: R Johnson | B3: 1.009 | C3: =IF(B3="","",ROUND((50/($AB$11-$AB$10))*(B3-$AB$11)+100,0)) -> 85 | D3: 1 | E3: 3 | F3: LF | G3: L Gonzalez | I3: 3 | J3: B Anderson | M3: 3 | N3: LF | O3: L Gonzalez | AA3: Top BA (100) | AB3: 0.35
A4: B Anderson | B4: 1.395 | C4: 49 | D4: 1 | E4: 4 | F4: 3B | G4: M Williams | I4: 4 | J4: A Lopez | M4: 4 | N4: 3B | O4: M Williams
A5: A Lopez | B5: 1.21 | C5: 66 | D5: 1 | E5: 5 | F5: CF | G5: S Finley | M5: 5 | N5: CF | O5: S Finley
A6: B Kim | B6: 1.041 | C6: 82 | D6: 3 | E6: 6 | F6: RF | G6: D Bautista | M6: 6 | N6: RF | O6: D Bautista | AA6: Avg Slg% (50) | AB6: =VLOOKUP(AA1,'Settings & Expansion'!M3:P137,3,FALSE) -> 0.4265
A7: M Batista | B7: 1.242 | C7: 63 | D7: 2 | E7: 7 | F7: 1B | G7: M Grace | M7: 7 | N7: 1B | O7: M Grace | AA7: Top Slg% (100) | AB7: 0.662
A8: G Swindell | B8: 1.099 | C8: 77 | D8: 3 | E8: 8 | F8: C | G8: D Miller | M8: 8 | N8: C | O8: D Miller
A9: T Brohawn | B9: 1.581 | C9: 31 | D9: 3 | E9: 9 | F9: P | G9: C Schilling | M9: 9 | N9: P | O9: C Schilling
A10: B Prinz | B10: 1.268 | C10: 61 | D10: 3 | AA10: Avg WHIP (50) | AB10: =VLOOKUP(AA1,'Settings & Expansion'!M3:P137,4,FALSE) -> 1.3795
A11: E Sabel | B11: 1.344 | C11: 53 | D11: 3 | N11: P | O11: C Schilling | AA11: Low WHIP (100) | AB11: 0.853
A12: R Ellis | B12: 1.522 | C12: 36 | D12: 2
A13: CATCHERS | C13: Contact | D13: Power | E13: Speed | F13: Def/Arm | G13: Bunt | H13: Raw Avg | I13: Raw Slg% | P13: IP | Q13: H | R13: R | S13: K | T13: ERA | W13: BB
A14: D Miller | C14: =IF(H14="","",ROUND((50/($AB$3-$AB$2))*(H14-$AB$3)+100,0)) -> 54 | D14: =IF(I14="","",ROUND((50/($AB$7-$AB$6))*(I14-$AB$7)+100,0)) -> 49 | E14: 50 | F14: 65 | G14: 55 | H14: 0.271 | I14: 0.424 | N14: Starter | O14: C Schilling | T14: =IFERROR(IF(O14="","",R14*9/P14),"INF") -> INF
A15: R Barajas | C15: =IF(H15="","",ROUND((50/($AB$3-$AB$2))*(H15-$AB$3)+100,0)) -> -10 | D15: =IF(I15="","",ROUND((50/($AB$7-$AB$6))*(I15-$AB$7)+100,0)) -> 18 | E15: 35 | F15: 60 | G15: 55 | H15: 0.16 | I15: 0.274
A16: INFIELDERS
A17: M Grace | C17: 70 | D17: 58 | E17: 45 | F17: 20 | G17: 55 | H17: 0.298 | I17: 0.466
A18: J Bell | C18: 41 | D18: 44 | E18: 60 | F18: 20 | G18: 65 | H18: 0.248 | I18: 0.4
A19: T Womack | C19: 51 | D19: 33 | E19: 75 | F19: 20 | G19: 70 | H19: 0.266 | I19: 0.345
A20: M Williams | C20: 56 | D20: 58 | E20: 45 | F20: 20 | G20: 40 | H20: 0.275 | I20: 0.466
A21: C Counsell | C21: 56 | D21: 36 | E21: 70 | F21: 20 | G21: 75 | H21: 0.275 | I21: 0.362 | T21: =IF(O21="","",R21*9/P21) -> 
A22: E Durazo | C22: 53 | D22: 73 | E22: 45 | F22: 20 | G22: 35 | H22: 0.269 | I22: 0.537
A23: J Spivey | C23: 47 | D23: 49 | E23: 70 | F23: 20 | G23: 65 | H23: 0.258 | I23: 0.423
A24: OUTFIELDERS
A25: L Gonzalez | C25: 85 | D25: 106 | E25: 55 | F25: 55 | G25: 40 | H25: 0.325 | I25: 0.688
A26: S Finley | C26: 56 | D26: 51 | E26: 65 | F26: 65 | G26: 65 | H26: 0.275 | I26: 0.43
A27: R Sanders | C27: 49 | D27: 76 | E27: 60 | F27: 60 | G27: 45 | H27: 0.263 | I27: 0.549
A28: D Delucci | C28: 57 | D28: 61 | E28: 45 | F28: 55 | G28: 40 | H28: 0.276 | I28: 0.479
A29: D Bautista | C29: 72 | D29: 52 | E29: 65 | F29: 65 | G29: 60 | H29: 0.302 | I29: 0.437
C43: AB | D43: H | E43: RBI | F43: Run | G43: HR | H43: 3B | I43: 2B | J43: SB
A44: PITCHERS | C44: 0 | D44: 0 | E44: 0 | F44: 0 | G44: 0 | H44: 0 | I44: 0 | J44: 0
A45: C Schilling | B45: 1 | C45: 0 | D45: 0 | E45: 0 | F45: 0 | G45: 0 | H45: 0 | I45: 0 | J45: 0
A46: R Johnson | C46: 0 | D46: 0 | E46: 0 | F46: 0 | G46: 0 | H46: 0 | I46: 0 | J46: 0
A47: B Anderson | C47: 0 | D47: 0 | E47: 0 | F47: 0 | G47: 0 | H47: 0 | I47: 0 | J47: 0
A48: A Lopez | C48: 0 | D48: 0 | E48: 0 | F48: 0 | G48: 0 | H48: 0 | I48: 0 | J48: 0
A49: B Kim | C49: 0 | D49: 0 | E49: 0 | F49: 0 | G49: 0 | H49: 0 | I49: 0 | J49: 0
A50: M Batista | C50: 0 | D50: 0 | E50: 0 | F50: 0 | G50: 0 | H50: 0 | I50: 0 | J50: 0
A51: G Swindell | C51: 0 | D51: 0 | E51: 0 | F51: 0 | G51: 0 | H51: 0 | I51: 0 | J51: 0
A52: T Brohawn | C52: 0 | D52: 0 | E52: 0 | F52: 0 | G52: 0 | H52: 0 | I52: 0 | J52: 0
A53: B Prinz | C53: 0 | D53: 0 | E53: 0 | F53: 0 | G53: 0 | H53: 0 | I53: 0 | J53: 0
A54: E Sabel | C54: 0 | D54: 0 | E54: 0 | F54: 0 | G54: 0 | H54: 0 | I54: 0 | J54: 0
A55: R Ellis | C55: 0 | D55: 0 | E55: 0 | F55: 0 | G55: 0 | H55: 0 | I55: 0 | J55: 0
A56: CATCHERS | C56: 0 | D56: 0 | E56: 0 | F56: 0 | G56: 0 | H56: 0 | I56: 0 | J56: 0
A57: D Miller | B57: 1 | C57: 0 | D57: 0 | E57: 0 | F57: 0 | G57: 0 | H57: 0 | I57: 0 | J57: 0
A58: R Barajas | C58: 0 | D58: 0 | E58: 0 | F58: 0 | G58: 0 | H58: 0 | I58: 0 | J58: 0
A59: INFIELDERS | C59: 0 | D59: 0 | E59: 0 | F59: 0 | G59: 0 | H59: 0 | I59: 0 | J59: 0
A60: M Grace | B60: 1 | C60: 0 | D60: 0 | E60: 0 | F60: 0 | G60: 0 | H60: 0 | I60: 0 | J60: 0
A61: J Bell | C61: 0 | D61: 0 | E61: 0 | F61: 0 | G61: 0 | H61: 0 | I61: 0 | J61: 0
A62: T Womack | B62: 1 | C62: 0 | D62: 0 | E62: 0 | F62: 0 | G62: 0 | H62: 0 | I62: 0 | J62: 0
A63: M Williams | B63: 1 | C63: 0 | D63: 0 | E63: 0 | F63: 0 | G63: 0 | H63: 0 | I63: 0 | J63: 0
A64: C Counsell | B64: 1 | C64: 0 | D64: 0 | E64: 0 | F64: 0 | G64: 0 | H64: 0 | I64: 0 | J64: 0
A65: E Durazo | B65: 1 | C65: 0 | D65: 0 | E65: 0 | F65: 0 | G65: 0 | H65: 0 | I65: 0 | J65: 0
A66: J Spivey | C66: 0 | D66: 0 | E66: 0 | F66: 0 | G66: 0 | H66: 0 | I66: 0 | J66: 0
A67: OUTFIELDERS | C67: 0 | D67: 0 | E67: 0 | F67: 0 | G67: 0 | H67: 0 | I67: 0 | J67: 0
A68: L Gonzalez | B68: 1 | C68: 0 | D68: 0 | E68: 0 | F68: 0 | G68: 0 | H68: 0 | I68: 0 | J68: 0
A69: S Finley | B69: 1 | C69: 0 | D69: 0 | E69: 0 | F69: 0 | G69: 0 | H69: 0 | I69: 0 | J69: 0
A70: R Sanders | B70: 1 | C70: 0 | D70: 0 | E70: 0 | F70: 0 | G70: 0 | H70: 0 | I70: 0 | J70: 0
A71: D Delucci | C71: 0 | D71: 0 | E71: 0 | F71: 0 | G71: 0 | H71: 0 | I71: 0 | J71: 0
A72: D Bautista | C72: 0 | D72: 0 | E72: 0 | F72: 0 | G72: 0 | H72: 0 | I72: 0 | J72: 0
B73: 99 | C73: 0 | D73: 0 | E73: 0 | F73: 0 | G73: 0 | H73: 0 | I73: 0 | J73: 0

Sheet 1998Yankees
A1: PITCHERS | B1: WHIP | C1: Effectiveness | D1: Stamina | E1: 1 | F1: 2B | G1: C Knoblauch | I1: 1 | J1: A Pettitte | M1: 1 | N1: 2B | O1: C Knoblauch | AA1: 1998
A2: A Pettitte | B2: 1.447 | C2: =IF(B2="","",ROUND((50/($AB$11-$AB$10))*(B2-$AB$11)+100,0)) -> 46 | D2: 1 | E2: 2 | F2: SS | G2: D Jeter | I2: 2 | J2: D Wells | M2: 2 | N2: SS | O2: D Jeter | AA2: Avg BA (50) | AB2: =VLOOKUP(AA1,'Settings & Expansion'!M3:P137,2,FALSE) -> 0.2665
A3: D Wells | B3: 1.045 | C3: =IF(B3="","",ROUND((50/($AB$11-$AB$10))*(B3-$AB$11)+100,0)) -> 82 | D3: 1 | E3: 3 | F3: RF | G3: P O'Neill | I3: 3 | J3: D Cone | M3: 3 | N3: RF | O3: P O'Neill | AA3: Top BA (100) | AB3: 0.363
A4: D Cone | B4: 1.18 | C4: 70 | D4: 1 | E4: 4 | F4: CF | G4: B Williams | I4: 4 | J4: H Irabu | M4: 4 | N4: CF | O4: B Williams
A5: H Irabu | B5: 1.295 | C5: 60 | D5: 1 | E5: 5 | F5: DH | G5: C Davis | M5: 5 | N5: DH | O5: C Davis
A6: M Rivera | B6: 1.06 | C6: 81 | D6: 3 | E6: 6 | F6: 1B | G6: T Martinez | M6: 6 | N6: 1B | O6: T Martinez | AA6: Avg Slg% (50) | AB6: =VLOOKUP(AA1,'Settings & Expansion'!M3:P137,3,FALSE) -> 0.421
A7: R Mendoza | B7: 1.235 | C7: 65 | D7: 2 | E7: 7 | F7: 3B | G7: S Brosius | M7: 7 | N7: 3B | O7: S Brosius | AA7: Top Slg% (100) | AB7: 0.665
A8: M Stanton | B8: 1.228 | C8: 66 | D8: 3 | E8: 8 | F8: C | G8: J Posada | M8: 8 | N8: C | O8: J Posada
A9: J Nelson | B9: 1.636 | C9: 29 | D9: 3 | E9: 9 | F9: LF | G9: C Curtis | M9: 9 | N9: LF | O9: C Curtis | OP9: B Carlyle
A10: G Lloyd | B10: 0.85 | C10: 100 | D10: 3 | AA10: Avg WHIP (50) | AB10: =VLOOKUP(AA1,'Settings & Expansion'!M3:P137,4,FALSE) -> 1.405
A11: O Hernandez | B11: 1.17 | C11: 71 | D11: 2 | N11: P | O11: A Pettitte | AA11: Low WHIP (100) | AB11: 0.849
A12: D Holmes | B12: 1.305 | C12: 59 | D12: 3
A13: CATCHERS | C13: Contact | D13: Power | E13: Speed | F13: Def/Arm | G13: Bunt | H13: Raw Avg | I13: Raw Slg% | P13: IP | Q13: H | R13: R | S13: K | T13: ERA | W13: BB
A14: J Posada | C14: =IF(H14="","",ROUND((50/($AB$3-$AB$2))*(H14-$AB$3)+100,0)) -> 51 | D14: =IF(I14="","",ROUND((50/($AB$7-$AB$6))*(I14-$AB$7)+100,0)) -> 61 | E14: 55 | F14: 70 | G14: 60 | H14: 0.268 | I14: 0.475 | N14: Starter | O14: A Pettitte | T14: =IFERROR(IF(O14="","",R14*9/P14),"INF") -> INF | Y14: 0 | Z14: 0
A15: J Girardi | C15: =IF(H15="","",ROUND((50/($AB$3-$AB$2))*(H15-$AB$3)+100,0)) -> 55 | D15: =IF(I15="","",ROUND((50/($AB$7-$AB$6))*(I15-$AB$7)+100,0)) -> 43 | E15: 45 | F15: 60 | G15: 60 | H15: 0.276 | I15: 0.386 | Y15: 0 | Z15: 0
A16: INFIELDERS | Y16: 0 | Z16: 0
A17: T Martinez | C17: 58 | D17: 67 | E17: 50 | F17: 20 | G17: 35 | H17: 0.281 | I17: 0.505 | Y17: 0 | Z17: 0
A18: C Knoblauch | C18: 49 | D18: 47 | E18: 75 | F18: 20 | G18: 65 | H18: 0.265 | I18: 0.405 | Y18: 0 | Z18: 0
A19: D Jeter | C19: 80 | D19: 62 | E19: 75 | F19: 20 | G19: 70 | H19: 0.324 | I19: 0.481
A20: S Brosius | C20: 67 | D20: 60 | E20: 60 | F20: 20 | G20: 55 | H20: 0.3 | I20: 0.472
A21: L Sojo | C21: 32 | D21: 18 | E21: 60 | F21: 20 | G21: 65 | H21: 0.231 | I21: 0.265 | T21: =IF(O21="","",R21*9/P21) -> 
A22: C Davis | C22: 63 | D22: 55 | E22: 45 | F22: 55 | G22: 30 | H22: 0.291 | I22: 0.447
A23: OUTFIELDERS
A24: C Curtis | C24: 38 | D24: 38 | E24: 65 | F24: 60 | G24: 55 | H24: 0.243 | I24: 0.36
A25: B Williams | C25: 88 | D25: 82 | E25: 70 | F25: 75 | G25: 70 | H25: 0.339 | I25: 0.575
A26: P O'Neill | C26: 76 | D26: 68 | E26: 60 | F26: 60 | G26: 30 | H26: 0.317 | I26: 0.51
A27: D Strawberry | C27: 40 | D27: 75 | E27: 55 | F27: 60 | G27: 40 | H27: 0.247 | I27: 0.542
A28: T Raines | C28: 62 | D28: 42 | E28: 65 | F28: 40 | G28: 65 | H28: 0.29 | I28: 0.383
A29: R Ledee | C29: 37 | D29: 44 | E29: 60 | F29: 55 | G29: 45 | H29: 0.241 | I29: 0.392
C43: AB | D43: H | E43: RBI | F43: Run | G43: HR | H43: 3B | I43: 2B | J43: SB
A44: PITCHERS | C44: 0 | D44: 0 | E44: 0 | F44: 0 | G44: 0 | H44: 0 | I44: 0 | J44: 0
A45: A Pettitte | B45: 1 | C45: 0 | D45: 0 | E45: 0 | F45: 0 | G45: 0 | H45: 0 | I45: 0 | J45: 0
A46: D Wells | C46: 0 | D46: 0 | E46: 0 | F46: 0 | G46: 0 | H46: 0 | I46: 0 | J46: 0
A47: D Cone | C47: 0 | D47: 0 | E47: 0 | F47: 0 | G47: 0 | H47: 0 | I47: 0 | J47: 0
A48: H Irabu | C48: 0 | D48: 0 | E48: 0 | F48: 0 | G48: 0 | H48: 0 | I48: 0 | J48: 0
A49: M Rivera | C49: 0 | D49: 0 | E49: 0 | F49: 0 | G49: 0 | H49: 0 | I49: 0 | J49: 0
A50: R Mendoza | C50: 0 | D50: 0 | E50: 0 | F50: 0 | G50: 0 | H50: 0 | I50: 0 | J50: 0
A51: M Stanton | C51: 0 | D51: 0 | E51: 0 | F51: 0 | G51: 0 | H51: 0 | I51: 0 | J51: 0
A52: J Nelson | C52: 0 | D52: 0 | E52: 0 | F52: 0 | G52: 0 | H52: 0 | I52: 0 | J52: 0
A53: G Lloyd | C53: 0 | D53: 0 | E53: 0 | F53: 0 | G53: 0 | H53: 0 | I53: 0 | J53: 0
A54: O Hernandez | C54: 0 | D54: 0 | E54: 0 | F54: 0 | G54: 0 | H54: 0 | I54: 0 | J54: 0
A55: D Holmes | C55: 0 | D55: 0 | E55: 0 | F55: 0 | G55: 0 | H55: 0 | I55: 0 | J55: 0
A56: CATCHERS | C56: 0 | D56: 0 | E56: 0 | F56: 0 | G56: 0 | H56: 0 | I56: 0 | J56: 0
A57: J Posada | B57: 1 | C57: 0 | D57: 0 | E57: 0 | F57: 0 | G57: 0 | H57: 0 | I57: 0 | J57: 0
A58: J Girardi | C58: 0 | D58: 0 | E58: 0 | F58: 0 | G58: 0 | H58: 0 | I58: 0 | J58: 0
A59: INFIELDERS | C59: 0 | D59: 0 | E59: 0 | F59: 0 | G59: 0 | H59: 0 | I59: 0 | J59: 0
A60: T Martinez | B60: 1 | C60: 0 | D60: 0 | E60: 0 | F60: 0 | G60: 0 | H60: 0 | I60: 0 | J60: 0
A61: C Knoblauch | B61: 1 | C61: 0 | D61: 0 | E61: 0 | F61: 0 | G61: 0 | H61: 0 | I61: 0 | J61: 0
A62: D Jeter | B62: 1 | C62: 0 | D62: 0 | E62: 0 | F62: 0 | G62: 0 | H62: 0 | I62: 0 | J62: 0
A63: S Brosius | C63: 0 | D63: 0 | E63: 0 | F63: 0 | G63: 0 | H63: 0 | I63: 0 | J63: 0
A64: L Sojo | C64: 0 | D64: 0 | E64: 0 | F64: 0 | G64: 0 | H64: 0 | I64: 0 | J64: 0
A65: C Davis | B65: 1 | C65: 0 | D65: 0 | E65: 0 | F65: 0 | G65: 0 | H65: 0 | I65: 0 | J65: 0
A66: OUTFIELDERS | C66: 0 | D66: 0 | E66: 0 | F66: 0 | G66: 0 | H66: 0 | I66: 0 | J66: 0
A67: C Curtis | C67: 0 | D67: 0 | E67: 0 | F67: 0 | G67: 0 | H67: 0 | I67: 0 | J67: 0
A68: B Williams | B68: 1 | C68: 0 | D68: 0 | E68: 0 | F68: 0 | G68: 0 | H68: 0 | I68: 0 | J68: 0
A69: P O'Neill | C69: 0 | D69: 0 | E69: 0 | F69: 0 | G69: 0 | H69: 0 | I69: 0 | J69: 0
A70: D Strawberry | B70: 1 | C70: 0 | D70: 0 | E70: 0 | F70: 0 | G70: 0 | H70: 0 | I70: 0 | J70: 0
A71: T Raines | C71: 0 | D71: 0 | E71: 0 | F71: 0 | G71: 0 | H71: 0 | I71: 0 | J71: 0
A72: R Ledee | B72: 1 | C72: 0 | D72: 0 | E72: 0 | F72: 0 | G72: 0 | H72: 0 | I72: 0 | J72: 0
B73: 99 | C73: 0 | D73: 0 | E73: 0 | F73: 0 | G73: 0 | H73: 0 | I73: 0 | J73: 0

Sheet 1995Braves
A1: PITCHERS | B1: WHIP | C1: Effectiveness | D1: Stamina | E1: 1 | F1: CF | G1: M Grissom | I1: 1 | J1: G Maddux | M1: 1 | N1: CF | O1: M Grissom | AA1: 1995
A2: G Maddux | B2: 0.811 | C2: =IF(B2="","",ROUND((50/($AB$11-$AB$10))*(B2-$AB$11)+100,0)) -> 100 | D2: 1 | E2: 2 | F2: 2B | G2: M Lemke | I2: 2 | J2: T Glavine | M2: 2 | N2: 2B | O2: M Lemke | AA2: Avg BA (50) | AB2: =VLOOKUP(AA1,'Settings & Expansion'!M3:P137,2,FALSE) -> 0.2665
A3: T Glavine | B3: 1.248 | C3: =IF(B3="","",ROUND((50/($AB$11-$AB$10))*(B3-$AB$11)+100,0)) -> 64 | D3: 1 | E3: 3 | F3: 3B | G3: C Jones | I3: 3 | J3: J Smoltz | M3: 3 | N3: 3B | O3: C Jones | AA3: Top BA (100) | AB3: 0.368
A4: J Smoltz | B4: 1.235 | C4: 65 | D4: 1 | E4: 4 | F4: 1B | G4: F McGriff | I4: 4 | J4: S Avery | M4: 4 | N4: 1B | O4: F McGriff
A5: S Avery | B5: 1.252 | C5: 64 | D5: 1 | E5: 5 | F5: RF | G5: D Justice | M5: 5 | N5: RF | O5: D Justice
A6: M Wohlers | B6: 1.16 | C6: 71 | D6: 3 | E6: 6 | F6: LF | G6: R Klesko | M6: 6 | N6: LF | O6: R Klesko | AA6: Avg Slg% (50) | AB6: =VLOOKUP(AA1,'Settings & Expansion'!M3:P137,3,FALSE) -> 0.4175
A7: G McMichael | B7: 1.19 | C7: 69 | D7: 2 | E7: 7 | F7: C | G7: J Lopez | M7: 7 | N7: C | O7: J Lopez | AA7: Top Slg% (100) | AB7: 0.69
A8: B Clontz | B8: 1.348 | C8: 56 | D8: 3 | E8: 8 | F8: SS | G8: R Belliard | M8: 8 | N8: SS | O8: R Belliard
A9: P Borbon | B9: 1.438 | C9: 49 | D9: 3 | E9: 9 | F9: P | G9: G Maddux | M9: 9 | N9: P | O9: M Wohlers | OP9: M Wohlers
A10: S Bedrosian | B10: 1.857 | C10: 14 | D10: 3 | AA10: Avg WHIP (50) | AB10: =VLOOKUP(AA1,'Settings & Expansion'!M3:P137,4,FALSE) -> 1.4215
A11: K Mercker | B11: 1.406 | C11: 51 | D11: 2 | N11: P | O11: M Wohlers | AA11: Low WHIP (100) | AB11: 0.811
A12: M Stanton | B12: 1.914 | C12: 10 | D12: 2
A13: CATCHERS | C13: Contact | D13: Power | E13: Speed | F13: Def/Arm | G13: Bunt | H13: Raw Avg | I13: Raw Slg% | P13: IP | Q13: H | R13: R | S13: K | T13: ERA | W13: BB
A14: J Lopez | C14: =IF(H14="","",ROUND((50/($AB$3-$AB$2))*(H14-$AB$3)+100,0)) -> 74 | D14: =IF(I14="","",ROUND((50/($AB$7-$AB$6))*(I14-$AB$7)+100,0)) -> 65 | E14: 45 | F14: 55 | G14: 40 | H14: 0.315 | I14: 0.498 | N14: Starter | O14: T Glavine | P14: =ROUND(7,2) -> 7 | Q14: 9 | R14: 4 | S14: 2 | T14: =ROUND(5.14285714285714,2) -> 5.14 | U14: L | W14: 1 | X14: 0 | Y14: 0 | Z14: 0
A15: C O'Brien | C15: =IF(H15="","",ROUND((50/($AB$3-$AB$2))*(H15-$AB$3)+100,0)) -> 31 | D15: =IF(I15="","",ROUND((50/($AB$7-$AB$6))*(I15-$AB$7)+100,0)) -> 47 | E15: 35 | F15: 60 | G15: 55 | H15: 0.227 | I15: 0.399 | O15: G McMichael | P15: =ROUND(1,2) -> 1 | Q15: 1 | R15: 2 | S15: 1 | T15: =ROUND(18,2) -> 18 | W15: 1 | X15: 0 | Y15: 0 | Z15: 0
A16: INFIELDERS | O16: M Wohlers | P16: =ROUND(1,2) -> 1 | Q16: 2 | R16: 0 | S16: 1 | T16: =ROUND(0,2) -> 0 | W16: 0 | X16: 0 | Y16: 0 | Z16: 0
A17: F McGriff | C17: 57 | D17: 63 | E17: 40 | F17: 20 | G17: 30 | H17: 0.28 | I17: 0.489 | T17: =IFERROR(IF(O17="","",R17*9/P17),"INF") ->  | Y17: 0 | Z17: 0
A18: M Lemke | C18: 43 | D18: 39 | E18: 60 | F18: 20 | G18: 70 | H18: 0.253 | I18: 0.356 | T18: =IFERROR(IF(O18="","",R18*9/P18),"INF") -> 
A19: J Blauser | C19: 23 | D19: 36 | E19: 60 | F19: 20 | G19: 65 | H19: 0.211 | I19: 0.341 | T19: =IFERROR(IF(O19="","",R19*9/P19),"INF") -> 
A20: C Jones | C20: 49 | D20: 56 | E20: 65 | F20: 40 | G20: 55 | H20: 0.265 | I20: 0.45 | T20: =IFERROR(IF(O20="","",R20*9/P20),"INF") -> 
A21: R Belliard | C21: 28 | D21: 18 | E21: 60 | F21: 20 | G21: 65 | H21: 0.222 | I21: 0.244 | T21: =IF(O21="","",R21*9/P21) -> 
A22: M Mordecai | C22: 57 | D22: 61 | E22: 55 | F22: 20 | G22: 60 | H22: 0.28 | I22: 0.48
A23: OUTFIEDLERS
A24: R Klesko | C24: 71 | D24: 85 | E24: 55 | F24: 50 | G24: 25 | H24: 0.31 | I24: 0.608
A25: M Grissom | C25: 46 | D25: 42 | E25: 75 | F25: 70 | G25: 70 | H25: 0.258 | I25: 0.376
A26: D Justice | C26: 43 | D26: 61 | E26: 65 | F26: 80 | G26: 55 | H26: 0.253 | I26: 0.479
A27: M Kelly | C27: 12 | D27: 31 | E27: 65 | F27: 60 | G27: 60 | H27: 0.19 | I27: 0.314
A28: D Smith | C28: 43 | D28: 49 | E28: 55 | F28: 60 | G28: 60 | H28: 0.252 | I28: 0.412
A29: M Devereaux | C29: 44 | D29: 40 | E29: 65 | F29: 65 | G29: 65 | H29: 0.255 | I29: 0.364
C43: AB | D43: H | E43: RBI | F43: Run | G43: HR | H43: 3B | I43: 2B | J43: SB
A44: PITCHERS | C44: 0 | D44: 0 | E44: 0 | F44: 0 | G44: 0 | H44: 0 | I44: 0 | J44: 0
A45: G Maddux | C45: 0 | D45: 0 | E45: 0 | F45: 0 | G45: 0 | H45: 0 | I45: 0 | J45: 0
A46: T Glavine | B46: 1 | C46: 1 | D46: 0 | E46: 0 | F46: 0 | G46: 0 | H46: 0 | I46: 0 | J46: 0
A47: J Smoltz | C47: 0 | D47: 0 | E47: 0 | F47: 0 | G47: 0 | H47: 0 | I47: 0 | J47: 0
A48: S Avery | C48: 0 | D48: 0 | E48: 0 | F48: 0 | G48: 0 | H48: 0 | I48: 0 | J48: 0
A49: M Wohlers | B49: 1 | C49: 0 | D49: 0 | E49: 0 | F49: 0 | G49: 0 | H49: 0 | I49: 0 | J49: 0
A50: G McMichael | B50: 1 | C50: 0 | D50: 0 | E50: 0 | F50: 0 | G50: 0 | H50: 0 | I50: 0 | J50: 0
A51: B Clontz | C51: 0 | D51: 0 | E51: 0 | F51: 0 | G51: 0 | H51: 0 | I51: 0 | J51: 0
A52: P Borbon | C52: 0 | D52: 0 | E52: 0 | F52: 0 | G52: 0 | H52: 0 | I52: 0 | J52: 0
A53: S Bedrosian | C53: 0 | D53: 0 | E53: 0 | F53: 0 | G53: 0 | H53: 0 | I53: 0 | J53: 0
A54: K Mercker | C54: 0 | D54: 0 | E54: 0 | F54: 0 | G54: 0 | H54: 0 | I54: 0 | J54: 0
A55: M Stanton | C55: 0 | D55: 0 | E55: 0 | F55: 0 | G55: 0 | H55: 0 | I55: 0 | J55: 0
A56: CATCHERS | C56: 0 | D56: 0 | E56: 0 | F56: 0 | G56: 0 | H56: 0 | I56: 0 | J56: 0
A57: J Lopez | B57: 1 | C57: 3 | D57: 1 | E57: 1 | F57: 0 | G57: 0 | H57: 0 | I57: 1 | J57: 0
A58: C O'Brien | C58: 0 | D58: 0 | E58: 0 | F58: 0 | G58: 0 | H58: 0 | I58: 0 | J58: 0
A59: INFIELDERS | C59: 0 | D59: 0 | E59: 0 | F59: 0 | G59: 0 | H59: 0 | I59: 0 | J59: 0
A60: F McGriff | B60: 1 | C60: 3 | D60: 0 | E60: 0 | F60: 0 | G60: 0 | H60: 0 | I60: 0 | J60: 0
A61: M Lemke | B61: 1 | C61: 4 | D61: 0 | E61: 0 | F61: 0 | G61: 0 | H61: 0 | I61: 0 | J61: 0
A62: J Blauser | C62: 0 | D62: 0 | E62: 0 | F62: 0 | G62: 0 | H62: 0 | I62: 0 | J62: 0
A63: C Jones | B63: 1 | C63: 4 | D63: 0 | E63: 0 | F63: 0 | G63: 0 | H63: 0 | I63: 0 | J63: 0
A64: R Belliard | B64: 1 | C64: 3 | D64: 0 | E64: 0 | F64: 0 | G64: 0 | H64: 0 | I64: 0 | J64: 0
A65: M Mordecai | C65: 0 | D65: 0 | E65: 0 | F65: 0 | G65: 0 | H65: 0 | I65: 0 | J65: 0
A66: OUTFIEDLERS | C66: 0 | D66: 0 | E66: 0 | F66: 0 | G66: 0 | H66: 0 | I66: 0 | J66: 0
A67: R Klesko | B67: 1 | C67: 3 | D67: 0 | E67: 0 | F67: 0 | G67: 0 | H67: 0 | I67: 0 | J67: 0
A68: M Grissom | B68: 1 | C68: 3 | D68: 0 | E68: 0 | F68: 0 | G68: 0 | H68: 0 | I68: 0 | J68: 0
A69: D Justice | B69: 1 | C69: 2 | D69: 0 | E69: 0 | F69: 1 | G69: 0 | H69: 0 | I69: 0 | J69: 0
A70: M Kelly | C70: 0 | D70: 0 | E70: 0 | F70: 0 | G70: 0 | H70: 0 | I70: 0 | J70: 0
A71: D Smith | C71: 0 | D71: 0 | E71: 0 | F71: 0 | G71: 0 | H71: 0 | I71: 0 | J71: 0
A72: M Devereaux | B72: 1 | C72: 1 | D72: 0 | E72: 0 | F72: 0 | G72: 0 | H72: 0 | I72: 0 | J72: 0
B73: 99 | C73: 0 | D73: 0 | E73: 0 | F73: 0 | G73: 0 | H73: 0 | I73: 0 | J73: 0

Sheet 1995Indians
A1: PITCHERS | B1: WHIP | C1: Effectiveness | D1: Stamina | E1: 1 | F1: CF | G1: K Lofton | I1: 1 | J1: D Martinez | M1: 1 | N1: CF | O1: K Lofton | AA1: 1995
A2: D Martinez | B2: 1.176 | C2: =IF(B2="","",ROUND((50/($AB$11-$AB$10))*(B2-$AB$11)+100,0)) -> 70 | D2: 1 | E2: 2 | F2: SS | G2: O Vizquel | I2: 2 | J2: C Nagy | M2: 2 | N2: SS | O2: O Vizquel | AA2: Avg BA (50) | AB2: =VLOOKUP(AA1,'Settings & Expansion'!M3:P137,2,FALSE) -> 0.2665
A3: C Nagy | B3: 1.433 | C3: =IF(B3="","",ROUND((50/($AB$11-$AB$10))*(B3-$AB$11)+100,0)) -> 49 | D3: 1 | E3: 3 | F3: 2B | G3: C Baerga | I3: 3 | J3: O Hershiser | M3: 3 | N3: 2B | O3: C Baerga | AA3: Top BA (100) | AB3: 0.368
A4: O Hershisher | B4: 1.207 | C4: 68 | D4: 1 | E4: 4 | F4: LF | G4: A Belle | I4: 4 | J4: C Ogea | M4: 4 | N4: LF | O4: A Belle
A5: C Ogea | B5: 1.166 | C5: 71 | D5: 1 | E5: 5 | F5: DH | G5: E Murray | M5: 5 | N5: DH | O5: E Murray
A6: J Mesa | B6: 1.031 | C6: 82 | D6: 3 | E6: 6 | F6: RF | G6: M Ramirez | M6: 6 | N6: RF | O6: M Ramirez | AA6: Avg Slg% (50) | AB6: =VLOOKUP(AA1,'Settings & Expansion'!M3:P137,3,FALSE) -> 0.4175
A7: J Tavarez | B7: 1.141 | C7: 73 | D7: 2 | E7: 7 | F7: 1B | G7: H Perry | M7: 7 | N7: 1B | O7: H Perry | AA7: Top Slg% (100) | AB7: 0.69
A8: E Plunk | B8: 1.172 | C8: 70 | D8: 3 | E8: 8 | F8: 3B | G8: J Thome | M8: 8 | N8: 3B | O8: J Thome
A9: J Poole | B9: 1.132 | C9: 74 | D9: 3 | E9: 9 | F9: C | G9: S Alomar | M9: 9 | N9: C | O9: S Alomar | OP9: T Miller
A10: P Assenmacher | B10: 1.148 | C10: 72 | D10: 3 | AA10: Avg WHIP (50) | AB10: =VLOOKUP(AA1,'Settings & Expansion'!M3:P137,4,FALSE) -> 1.4215
A11: M Clark | B11: 1.484 | C11: 45 | D11: 2 | N11: P | O11: D Martinez | AA11: Low WHIP (100) | AB11: 0.811
A12: K Hill | B12: 1.46 | C12: 47 | D12: 2 | T12: =IFERROR(IF(O12="","",R12/P12),"INF") -> 
A13: CATCHERS | C13: Contact | D13: Power | E13: Speed | F13: Def/Arm | G13: Bunt | H13: Raw Avg | I13: Raw Slg% | P13: IP | Q13: H | R13: R | S13: K | T13: ERA | W13: BB
A14: T Pena | C14: =IF(H14="","",ROUND((50/($AB$3-$AB$2))*(H14-$AB$3)+100,0)) -> 48 | D14: =IF(I14="","",ROUND((50/($AB$7-$AB$6))*(I14-$AB$7)+100,0)) -> 42 | E14: 55 | F14: 65 | G14: 60 | H14: 0.262 | I14: 0.376 | N14: Starter | O14: J Garcia | P14: =ROUND(5.66666666666667,2) -> 5.67 | Q14: 4 | R14: 1 | S14: 1 | T14: =ROUND(1.58730158730159,2) -> 1.59 | U14: W | W14: 1 | X14: 0 | Y14: 0 | Z14: 0
A15: S Alomar | C15: =IF(H15="","",ROUND((50/($AB$3-$AB$2))*(H15-$AB$3)+100,0)) -> 67 | D15: =IF(I15="","",ROUND((50/($AB$7-$AB$6))*(I15-$AB$7)+100,0)) -> 61 | E15: 55 | F15: 55 | G15: 55 | H15: 0.3 | I15: 0.478 | O15: J Tavarez | P15: =ROUND(2,2) -> 2 | Q15: 4 | R15: 0 | S15: 1 | T15: =ROUND(0,2) -> 0 | W15: 0 | X15: 0 | Y15: 0 | Z15: 0
A16: INFIELDERS | O16: K Hill | P16: =ROUND(1,2) -> 1 | Q16: 0 | R16: 0 | S16: 0 | T16: =ROUND(0,2) -> 0 | W16: 0 | X16: 0 | Y16: 0 | Z16: 0
A17: P Sorrento | C17: 34 | D17: 67 | E17: 45 | F17: 20 | G17: 35 | H17: 0.235 | I17: 0.511 | T17: =IFERROR(IF(O17="","",R17*9/P17),"INF") ->  | Y17: 0 | Z17: 0
A18: C Baerga | C18: 73 | D18: 56 | E18: 60 | F18: 20 | G18: 60 | H18: 0.314 | I18: 0.452 | T18: =IFERROR(IF(O18="","",R18*9/P18),"INF") -> 
A19: O Vizquel | C19: 50 | D19: 38 | E19: 75 | F19: 20 | G19: 75 | H19: 0.266 | I19: 0.351 | T19: =IFERROR(IF(O19="","",R19*9/P19),"INF") -> 
A20: J Thome | C20: 73 | D20: 76 | E20: 50 | F20: 20 | G20: 35 | H20: 0.314 | I20: 0.558 | T20: =IFERROR(IF(O20="","",R20*9/P20),"INF") -> 
A21: E Murray | C21: 78 | D21: 68 | E21: 40 | F21: 20 | G21: 45 | H21: 0.323 | I21: 0.516 | T21: =IF(O21="","",R21*9/P21) -> 
A22: H Perry | C22: 74 | D22: 58 | E22: 50 | F22: 20 | G22: 55 | H22: 0.315 | I22: 0.463
A23: A Espinoza | C23: 43 | D23: 32 | E23: 60 | F23: 20 | G23: 65 | H23: 0.252 | I23: 0.322
A24: OUTFIELDERS
A25: A Belle | C25: 75 | D25: 100 | E25: 40 | F25: 40 | G25: 25 | H25: 0.317 | I25: 0.69
A26: K Lofton | C26: 71 | D26: 57 | E26: 90 | F26: 60 | G26: 80 | H26: 0.31 | I26: 0.453
A27: M Ramirez | C27: 70 | D27: 76 | E27: 55 | F27: 55 | G27: 30 | H27: 0.308 | I27: 0.558
A28: W Kirby | C28: 21 | D28: 28 | E28: 70 | F28: 50 | G28: 60 | H28: 0.207 | I28: 0.298
A29: D Winfield | C29: 13 | D29: 26 | E29: 40 | F29: 55 | G29: 50 | H29: 0.191 | I29: 0.287
C43: AB | D43: H | E43: RBI | F43: Run | G43: HR | H43: 3B | I43: 2B | J43: SB
A44: PITCHERS | C44: 0 | D44: 0 | E44: 0 | F44: 0 | G44: 0 | H44: 0 | I44: 0 | J44: 0
A45: D Martinez | C45: 0 | D45: 0 | E45: 0 | F45: 0 | G45: 0 | H45: 0 | I45: 0 | J45: 0
A46: C Nagy | C46: 0 | D46: 0 | E46: 0 | F46: 0 | G46: 0 | H46: 0 | I46: 0 | J46: 0
A47: O Hershisher | B47: 1 | C47: 1 | D47: 1 | E47: 0 | F47: 0 | G47: 0 | H47: 0 | I47: 0 | J47: 0
A48: C Ogea | C48: 0 | D48: 0 | E48: 0 | F48: 0 | G48: 0 | H48: 0 | I48: 0 | J48: 0
A49: J Mesa | C49: 0 | D49: 0 | E49: 0 | F49: 0 | G49: 0 | H49: 0 | I49: 0 | J49: 0
A50: J Tavarez | B50: 1 | C50: 0 | D50: 0 | E50: 0 | F50: 0 | G50: 0 | H50: 0 | I50: 0 | J50: 0
A51: E Plunk | C51: 0 | D51: 0 | E51: 0 | F51: 0 | G51: 0 | H51: 0 | I51: 0 | J51: 0
A52: J Poole | C52: 0 | D52: 0 | E52: 0 | F52: 0 | G52: 0 | H52: 0 | I52: 0 | J52: 0
A53: P Assenmacher | C53: 0 | D53: 0 | E53: 0 | F53: 0 | G53: 0 | H53: 0 | I53: 0 | J53: 0
A54: M Clark | B54: 1 | C54: 1 | D54: 0 | E54: 0 | F54: 0 | G54: 0 | H54: 0 | I54: 0 | J54: 0
A55: K Hill | C55: 0 | D55: 0 | E55: 0 | F55: 0 | G55: 0 | H55: 0 | I55: 0 | J55: 0
A56: CATCHERS | C56: 0 | D56: 0 | E56: 0 | F56: 0 | G56: 0 | H56: 0 | I56: 0 | J56: 0
A57: T Pena | B57: 1 | C57: 4 | D57: 2 | E57: 2 | F57: 1 | G57: 1 | H57: 0 | I57: 0 | J57: 0
A58: S Alomar | C58: 0 | D58: 0 | E58: 0 | F58: 0 | G58: 0 | H58: 0 | I58: 0 | J58: 0
A59: INFIELDERS | C59: 0 | D59: 0 | E59: 0 | F59: 0 | G59: 0 | H59: 0 | I59: 0 | J59: 0
A60: P Sorrento | B60: 1 | C60: 4 | D60: 1 | E60: 1 | F60: 2 | G60: 0 | H60: 0 | I60: 1 | J60: 0
A61: C Baerga | B61: 1 | C61: 5 | D61: 3 | E61: 0 | F61: 1 | G61: 0 | H61: 0 | I61: 0 | J61: 0
A62: O Vizquel | B62: 1 | C62: 4 | D62: 2 | E62: 1 | F62: 0 | G62: 0 | H62: 0 | I62: 1 | J62: 0
A63: J Thome | B63: 1 | C63: 3 | D63: 1 | E63: 1 | F63: 1 | G63: 0 | H63: 1 | I63: 0 | J63: 0
A64: E Murray | C64: 0 | D64: 0 | E64: 0 | F64: 0 | G64: 0 | H64: 0 | I64: 0 | J64: 0
A65: H Perry | C65: 0 | D65: 0 | E65: 0 | F65: 0 | G65: 0 | H65: 0 | I65: 0 | J65: 0
A66: A Espinoza | C66: 0 | D66: 0 | E66: 0 | F66: 0 | G66: 0 | H66: 0 | I66: 0 | J66: 0
A67: OUTFIELDERS | B67: 1 | C67: 3 | D67: 2 | E67: 5 | F67: 2 | G67: 2 | H67: 0 | I67: 0 | J67: 1
A68: A Belle | B68: 1 | C68: 5 | D68: 1 | E68: 0 | F68: 1 | G68: 0 | H68: 0 | I68: 0 | J68: 0
A69: K Lofton | B69: 1 | C69: 4 | D69: 3 | E69: 0 | F69: 2 | G69: 0 | H69: 0 | I69: 1 | J69: 0
A70: M Ramirez | C70: 0 | D70: 0 | E70: 0 | F70: 0 | G70: 0 | H70: 0 | I70: 0 | J70: 0
A71: W Kirby | C71: 0 | D71: 0 | E71: 0 | F71: 0 | G71: 0 | H71: 0 | I71: 0 | J71: 0
A72: D Winfield | B72: 1 | C72: 1 | D72: 0 | E72: 0 | F72: 0 | G72: 0 | H72: 0 | I72: 0 | J72: 0
B73: 99 | C73: 0 | D73: 0 | E73: 0 | F73: 0 | G73: 0 | H73: 0 | I73: 0 | J73: 0

Sheet 1993BlueJays
A1: PITCHERS | B1: WHIP | C1: Effectiveness | D1: Stamina | E1: 1 | F1: LF | G1: R Henderson | I1: 1 | J1: P Hentgen | M1: 1 | N1: LF | O1: R Henderson | AA1: 1993
A2: P Hentgen | B2: 1.336 | C2: =IF(B2="","",ROUND((50/($AB$11-$AB$10))*(B2-$AB$11)+100,0)) -> 55 | D2: 1 | E2: 2 | F2: CF | G2: D White | I2: 2 | J2: J Guzman | M2: 2 | N2: CF | O2: D White | AA2: Avg BA (50) | AB2: =VLOOKUP(AA1,'Settings & Expansion'!M3:P137,2,FALSE) -> 0.2655
A3: J Guzman | B3: 1.452 | C3: =IF(B3="","",ROUND((50/($AB$11-$AB$10))*(B3-$AB$11)+100,0)) -> 44 | D3: 1 | E3: 3 | F3: DH | G3: P Molitor | I3: 3 | J3: D Stewart | M3: 3 | N3: DH | O3: P Molitor | AA3: Top BA (100) | AB3: 0.37
A4: D Stewart | B4: 1.346 | C4: 54 | D4: 1 | E4: 4 | F4: RF | G4: J Carter | I4: 4 | J4: T Stottlemyre | M4: 4 | N4: RF | O4: J Carter
A5: T Stottlemyre | B5: 1.545 | C5: 36 | D5: 1 | E5: 5 | F5: 1B | G5: J Olerud | M5: 5 | N5: 1B | O5: J Olerud
A6: D Ward | B6: 1.033 | C6: 82 | D6: 3 | E6: 6 | F6: 2B | G6: R Alomar | M6: 6 | N6: 2B | O6: R Alomar | AA6: Avg Slg% (50) | AB6: =VLOOKUP(AA1,'Settings & Expansion'!M3:P137,3,FALSE) -> 0.4035
A7: D Cox | B7: 1.219 | C7: 65 | D7: 2 | E7: 7 | F7: SS | G7: T Fernandez | M7: 7 | N7: SS | O7: T Fernandez | AA7: Top Slg% (100) | AB7: 0.632
A8: M Eichhorn | B8: 1.349 | C8: 54 | D8: 2 | E8: 8 | F8: 3B | G8: E Sprague | M8: 8 | N8: 3B | O8: E Sprague
A9: M Timlin | B9: 1.617 | C9: 29 | D9: 3 | E9: 9 | F9: C | G9: P Borders | M9: 9 | N9: C | O9: P Borders | OP9: S Marshall
A10: T Castillo | B10: 1.303 | C10: 58 | D10: 3 | AA10: Avg WHIP (50) | AB10: =VLOOKUP(AA1,'Settings & Expansion'!M3:P137,4,FALSE) -> 1.3875
A11: A Leiter | B11: 1.419 | C11: 47 | D11: 2 | N11: P | O11: P Hentgen | AA11: Low WHIP (100) | AB11: 0.841
A12: J Morris | B12: 1.664 | C12: 25 | D12: 2
A13: CATCHERS | C13: Contact | D13: Power | E13: Speed | F13: Def/Arm | G13: Bunt | H13: Raw Avg | I13: Raw Slg% | P13: IP | Q13: H | R13: R | S13: K | T13: ERA | W13: BB
A14: P Borders | C14: =IF(H14="","",ROUND((50/($AB$3-$AB$2))*(H14-$AB$3)+100,0)) -> 44 | D14: =IF(I14="","",ROUND((50/($AB$7-$AB$6))*(I14-$AB$7)+100,0)) -> 43 | E14: 45 | F14: 70 | G14: 60 | H14: 0.254 | I14: 0.371 | N14: Starter | O14: P Hentgen | P14: =ROUND(8,2) -> 8 | Q14: 2 | R14: 2 | S14: 5 | T14: =ROUND(2.25,2) -> 2.25 | U14: L | W14: 1 | X14: 0 | Y14: 0 | Z14: 0
A15: R Knorr | C15: =IF(H15="","",ROUND((50/($AB$3-$AB$2))*(H15-$AB$3)+100,0)) -> 42 | D15: =IF(I15="","",ROUND((50/($AB$7-$AB$6))*(I15-$AB$7)+100,0)) -> 57 | E15: 50 | F15: 60 | G15: 55 | H15: 0.248 | I15: 0.436 | T15: =IFERROR(IF(O15="","",R15*9/P15),"INF") ->  | Y15: 0 | Z15: 0
A16: INFIELDERS | Y16: 0 | Z16: 0
A17: J Olerud | C17: 97 | D17: 93 | E17: 45 | F17: 20 | G17: 30 | H17: 0.363 | I17: 0.599 | Y17: 0 | Z17: 0
A18: R Alomar | C18: 79 | D18: 69 | E18: 85 | F18: 20 | G18: 75 | H18: 0.326 | I18: 0.492
A19: T Fernandez | C19: 69 | D19: 58 | E19: 70 | F19: 20 | G19: 70 | H19: 0.306 | I19: 0.442
A20: E Sprague | C20: 47 | D20: 46 | E20: 55 | F20: 20 | G20: 55 | H20: 0.26 | I20: 0.386
A21: P Molitor | C21: 82 | D21: 73 | E21: 70 | F21: 20 | G21: 60 | H21: 0.332 | I21: 0.509 | T21: =IF(O21="","",R21*9/P21) -> 
A22: D Coles | C22: 44 | D22: 43 | E22: 60 | F22: 20 | G22: 60 | H22: 0.253 | I22: 0.371
A23: OUTFIELDERS
A24: R Henderson | C24: 61 | D24: 65 | E24: 90 | F24: 55 | G24: 65 | H24: 0.289 | I24: 0.474
A25: D White | C25: 54 | D25: 58 | E25: 75 | F25: 65 | G25: 70 | H25: 0.273 | I25: 0.438
A26: J Carter | C26: 44 | D26: 69 | E26: 60 | F26: 65 | G26: 45 | H26: 0.254 | I26: 0.489
A27: T Ward | C27: 15 | D27: 30 | E27: 60 | F27: 55 | G27: 65 | H27: 0.192 | I27: 0.311
A28: D Jackson | C28: 26 | D28: 38 | E28: 55 | F28: 70 | G28: 55 | H28: 0.216 | I28: 0.347
A29: R Butler | C29: 53 | D29: 39 | E29: 60 | F29: 60 | G29: 60 | H29: 0.271 | I29: 0.354
C43: AB | D43: H | E43: RBI | F43: Run | G43: HR | H43: 3B | I43: 2B | J43: SB
A44: PITCHERS | C44: 0 | D44: 0 | E44: 0 | F44: 0 | G44: 0 | H44: 0 | I44: 0 | J44: 0
A45: P Hentgen | B45: 1 | C45: 0 | D45: 0 | E45: 0 | F45: 0 | G45: 0 | H45: 0 | I45: 0 | J45: 0
A46: J Guzman | C46: 0 | D46: 0 | E46: 0 | F46: 0 | G46: 0 | H46: 0 | I46: 0 | J46: 0
A47: D Stewart | C47: 0 | D47: 0 | E47: 0 | F47: 0 | G47: 0 | H47: 0 | I47: 0 | J47: 0
A48: T Stottlemyre | C48: 0 | D48: 0 | E48: 0 | F48: 0 | G48: 0 | H48: 0 | I48: 0 | J48: 0
A49: D Ward | C49: 0 | D49: 0 | E49: 0 | F49: 0 | G49: 0 | H49: 0 | I49: 0 | J49: 0
A50: D Cox | C50: 0 | D50: 0 | E50: 0 | F50: 0 | G50: 0 | H50: 0 | I50: 0 | J50: 0
A51: M Eichhorn | C51: 0 | D51: 0 | E51: 0 | F51: 0 | G51: 0 | H51: 0 | I51: 0 | J51: 0
A52: M Timlin | C52: 0 | D52: 0 | E52: 0 | F52: 0 | G52: 0 | H52: 0 | I52: 0 | J52: 0
A53: T Castillo | C53: 0 | D53: 0 | E53: 0 | F53: 0 | G53: 0 | H53: 0 | I53: 0 | J53: 0
A54: A Leiter | C54: 0 | D54: 0 | E54: 0 | F54: 0 | G54: 0 | H54: 0 | I54: 0 | J54: 0
A55: J Morris | C55: 0 | D55: 0 | E55: 0 | F55: 0 | G55: 0 | H55: 0 | I55: 0 | J55: 0
A56: CATCHERS | C56: 0 | D56: 0 | E56: 0 | F56: 0 | G56: 0 | H56: 0 | I56: 0 | J56: 0
A57: P Borders | B57: 1 | C57: 3 | D57: 0 | E57: 0 | F57: 0 | G57: 0 | H57: 0 | I57: 0 | J57: 0
A58: R Knorr | C58: 0 | D58: 0 | E58: 0 | F58: 0 | G58: 0 | H58: 0 | I58: 0 | J58: 0
A59: INFIELDERS | C59: 0 | D59: 0 | E59: 0 | F59: 0 | G59: 0 | H59: 0 | I59: 0 | J59: 0
A60: J Olerud | B60: 1 | C60: 3 | D60: 0 | E60: 0 | F60: 0 | G60: 0 | H60: 0 | I60: 0 | J60: 0
A61: R Alomar | B61: 1 | C61: 3 | D61: 1 | E61: 0 | F61: 0 | G61: 0 | H61: 0 | I61: 1 | J61: 0
A62: T Fernandez | B62: 1 | C62: 3 | D62: 1 | E62: 0 | F62: 0 | G62: 0 | H62: 0 | I62: 0 | J62: 0
A63: E Sprague | B63: 1 | C63: 2 | D63: 1 | E63: 0 | F63: 0 | G63: 0 | H63: 0 | I63: 1 | J63: 0
A64: P Molitor | B64: 1 | C64: 4 | D64: 0 | E64: 0 | F64: 0 | G64: 0 | H64: 0 | I64: 0 | J64: 0
A65: D Coles | C65: 0 | D65: 0 | E65: 0 | F65: 0 | G65: 0 | H65: 0 | I65: 0 | J65: 0
A66: OUTFIELDERS | C66: 0 | D66: 0 | E66: 0 | F66: 0 | G66: 0 | H66: 0 | I66: 0 | J66: 0
A67: R Henderson | B67: 1 | C67: 4 | D67: 1 | E67: 1 | F67: 1 | G67: 1 | H67: 0 | I67: 0 | J67: 0
A68: D White | B68: 1 | C68: 4 | D68: 0 | E68: 0 | F68: 0 | G68: 0 | H68: 0 | I68: 0 | J68: 0
A69: J Carter | B69: 1 | C69: 4 | D69: 0 | E69: 0 | F69: 0 | G69: 0 | H69: 0 | I69: 0 | J69: 0
A70: T Ward | C70: 0 | D70: 0 | E70: 0 | F70: 0 | G70: 0 | H70: 0 | I70: 0 | J70: 0
A71: D Jackson | C71: 0 | D71: 0 | E71: 0 | F71: 0 | G71: 0 | H71: 0 | I71: 0 | J71: 0
A72: R Butler | C72: 0 | D72: 0 | E72: 0 | F72: 0 | G72: 0 | H72: 0 | I72: 0 | J72: 0
B73: 99 | C73: 0 | D73: 0 | E73: 0 | F73: 0 | G73: 0 | H73: 0 | I73: 0 | J73: 0

Sheet 1991Twins
A1: PITCHERS | B1: WHIP | C1: Effectiveness | D1: Stamina | E1: 1 | F1: LF | G1: D Gladden | I1: 1 | J1: J Morris | M1: 1 | N1: LF | O1: D Gladden | AA1: 1991
A2: J Morris | B2: 1.289 | C2: =IF(B2="","",ROUND((50/($AB$11-$AB$10))*(B2-$AB$11)+100,0)) -> 54 | D2: 1 | E2: 2 | F2: 2B | G2: C Knoblauch | I2: 2 | J2: K Tapani | M2: 2 | N2: 2B | O2: C Knoblauch | AA2: Avg BA (50) | AB2: =VLOOKUP(AA1,'Settings & Expansion'!M3:P137,2,FALSE) -> 0.255
A3: K Tapani | B3: 1.086 | C3: =IF(B3="","",ROUND((50/($AB$11-$AB$10))*(B3-$AB$11)+100,0)) -> 73 | D3: 1 | E3: 3 | F3: CF | G3: K Puckett | I3: 3 | J3: S Erickson | M3: 3 | N3: CF | O3: K Puckett | AA3: Top BA (100) | AB3: 0.341
A4: S Erickson | B4: 1.275 | C4: 56 | D4: 1 | E4: 4 | F4: 1B | G4: K Hrbek | I4: 4 | J4: A Anderson | M4: 4 | N4: 1B | O4: K Hrbek
A5: A Anderson | B5: 1.414 | C5: 43 | D5: 1 | E5: 5 | F5: DH | G5: C Davis | M5: 5 | N5: DH | O5: C Davis
A6: R Aguilera | B6: 1.072 | C6: 75 | D6: 3 | E6: 6 | F6: C | G6: B Harper | M6: 6 | N6: C | O6: B Harper | AA6: Avg Slg% (50) | AB6: =VLOOKUP(AA1,'Settings & Expansion'!M3:P137,3,FALSE) -> 0.384
A7: M Guthrie | B7: 1.602 | C7: 25 | D7: 2 | E7: 7 | F7: RF | G7: S Mack | M7: 7 | N7: RF | O7: S Mack | AA7: Top Slg% (100) | AB7: 0.593
A8: C Willis | B8: 1.067 | C8: 75 | D8: 2 | E8: 8 | F8: 3B | G8: M Pagliarulo | M8: 8 | N8: 3B | O8: M Pagliarulo
A9: S Bedrosian | B9: 1.358 | C9: 48 | D9: 2 | E9: 9 | F9: SS | G9: G Gagne | M9: 9 | N9: SS | O9: G Gagne
A10: T Leach | B10: 1.426 | C10: 42 | D10: 2 | AA10: Avg WHIP (50) | AB10: =VLOOKUP(AA1,'Settings & Expansion'!M3:P137,4,FALSE) -> 1.3355
A11: D West | B11: 1.318 | C11: 52 | D11: 2 | N11: P | O11: A Anderson | AA11: Low WHIP (100) | AB11: 0.8
A12: P Abbott | B12: 1.563 | C12: 29 | D12: 2
A13: CATCHERS | C13: Contact | D13: Power | E13: Speed | F13: Def/Arm | G13: Bunt | H13: Raw Avg | I13: Raw Slg% | P13: IP | Q13: H | R13: R | S13: K | T13: ERA | W13: BB
A14: B Harper | C14: =IF(H14="","",ROUND((50/($AB$3-$AB$2))*(H14-$AB$3)+100,0)) -> 83 | D14: =IF(I14="","",ROUND((50/($AB$7-$AB$6))*(I14-$AB$7)+100,0)) -> 65 | E14: 45 | F14: 60 | G14: 55 | H14: 0.311 | I14: 0.447 | N14: Starter | O14: A Anderson | P14: 9 | Q14: 5 | R14: 1 | S14: 9 | T14: =IFERROR(IF(O14="","",R14*9/P14),"INF") -> 1
A15: J Ortiz | C15: =IF(H15="","",ROUND((50/($AB$3-$AB$2))*(H15-$AB$3)+100,0)) -> 23 | D15: =IF(I15="","",ROUND((50/($AB$7-$AB$6))*(I15-$AB$7)+100,0)) -> 21 | E15: 50 | F15: 55 | G15: 50 | H15: 0.209 | I15: 0.261
A16: INFIELDERS
A17: K Hrbek | C17: 67 | D17: 68 | E17: 40 | F17: 20 | G17: 40 | H17: 0.284 | I17: 0.461
A18: C Knoblauch | C18: 65 | D18: 42 | E18: 75 | F18: 20 | G18: 65 | H18: 0.281 | I18: 0.35
A19: G Gagne | C19: 56 | D19: 53 | E19: 65 | F19: 20 | G19: 60 | H19: 0.265 | I19: 0.395
A20: M Pagliarulo | C20: 64 | D20: 50 | E20: 60 | F20: 20 | G20: 65 | H20: 0.279 | I20: 0.384
A21: G Larkin | C21: 68 | D21: 47 | E21: 65 | F21: 20 | G21: 55 | H21: 0.286 | I21: 0.373 | T21: =IF(O21="","",R21*9/P21) -> 
A22: A Newman | C22: 13 | D22: 9 | E22: 60 | F22: 20 | G22: 60 | H22: 0.191 | I22: 0.211
A23: OUTFIELDERS
A24: D Gladden | C24: 45 | D24: 43 | E24: 65 | F24: 60 | G24: 65 | H24: 0.247 | I24: 0.356
A25: K Puckett | C25: 87 | D25: 68 | E25: 60 | F25: 75 | G25: 55 | H25: 0.319 | I25: 0.46
A26: S Mack | C26: 82 | D26: 85 | E26: 60 | F26: 70 | G26: 60 | H26: 0.31 | I26: 0.529
A27: C Davis | C27: 63 | D27: 79 | E27: 45 | F27: 55 | G27: 40 | H27: 0.277 | I27: 0.507
A28: R Bush | C28: 78 | D28: 74 | E28: 60 | F28: 65 | G28: 55 | H28: 0.303 | I28: 0.485
A29: P Munoz | C29: 66 | D29: 78 | E29: 40 | F29: 65 | G29: 45 | H29: 0.283 | I29: 0.5
C43: AB | D43: H | E43: RBI | F43: Run | G43: HR | H43: 3B | I43: 2B | J43: SB
A44: PITCHERS | C44: 0 | D44: 0 | E44: 0 | F44: 0 | G44: 0 | H44: 0 | I44: 0 | J44: 0
A45: J Morris | C45: 0 | D45: 0 | E45: 0 | F45: 0 | G45: 0 | H45: 0 | I45: 0 | J45: 0
A46: K Tapani | C46: 0 | D46: 0 | E46: 0 | F46: 0 | G46: 0 | H46: 0 | I46: 0 | J46: 0
A47: S Erickson | C47: 0 | D47: 0 | E47: 0 | F47: 0 | G47: 0 | H47: 0 | I47: 0 | J47: 0
A48: A Anderson | B48: 1 | C48: 0 | D48: 0 | E48: 0 | F48: 0 | G48: 0 | H48: 0 | I48: 0 | J48: 0
A49: R Aguilera | C49: 0 | D49: 0 | E49: 0 | F49: 0 | G49: 0 | H49: 0 | I49: 0 | J49: 0
A50: M Guthrie | C50: 0 | D50: 0 | E50: 0 | F50: 0 | G50: 0 | H50: 0 | I50: 0 | J50: 0
A51: C Willis | C51: 0 | D51: 0 | E51: 0 | F51: 0 | G51: 0 | H51: 0 | I51: 0 | J51: 0
A52: S Bedrosian | C52: 0 | D52: 0 | E52: 0 | F52: 0 | G52: 0 | H52: 0 | I52: 0 | J52: 0
A53: T Leach | C53: 0 | D53: 0 | E53: 0 | F53: 0 | G53: 0 | H53: 0 | I53: 0 | J53: 0
A54: D West | C54: 0 | D54: 0 | E54: 0 | F54: 0 | G54: 0 | H54: 0 | I54: 0 | J54: 0
A55: P Abbott | C55: 0 | D55: 0 | E55: 0 | F55: 0 | G55: 0 | H55: 0 | I55: 0 | J55: 0
A56: CATCHERS | C56: 0 | D56: 0 | E56: 0 | F56: 0 | G56: 0 | H56: 0 | I56: 0 | J56: 0
A57: B Harper | B57: 1 | C57: 4 | D57: 1 | E57: 0 | F57: 1 | G57: 0 | H57: 1 | I57: 0 | J57: 0
A58: J Ortiz | C58: 0 | D58: 0 | E58: 0 | F58: 0 | G58: 0 | H58: 0 | I58: 0 | J58: 0
A59: INFIELDERS | C59: 0 | D59: 0 | E59: 0 | F59: 0 | G59: 0 | H59: 0 | I59: 0 | J59: 0
A60: K Hrbek | B60: 1 | C60: 4 | D60: 0 | E60: 0 | F60: 0 | G60: 0 | H60: 0 | I60: 0 | J60: 0
A61: C Knoblauch | B61: 1 | C61: 5 | D61: 0 | E61: 0 | F61: 0 | G61: 0 | H61: 0 | I61: 0 | J61: 0
A62: G Gagne | B62: 1 | C62: 4 | D62: 2 | E62: 1 | F62: 1 | G62: 1 | H62: 0 | I62: 0 | J62: 0
A63: M Pagliarulo | B63: 1 | C63: 4 | D63: 2 | E63: 3 | F63: 1 | G63: 1 | H63: 0 | I63: 1 | J63: 0
A64: G Larkin | C64: 0 | D64: 0 | E64: 0 | F64: 0 | G64: 0 | H64: 0 | I64: 0 | J64: 0
A65: A Newman | C65: 0 | D65: 0 | E65: 0 | F65: 0 | G65: 0 | H65: 0 | I65: 0 | J65: 0
A66: OUTFIELDERS | C66: 0 | D66: 0 | E66: 0 | F66: 0 | G66: 0 | H66: 0 | I66: 0 | J66: 0
A67: D Gladden | B67: 1 | C67: 5 | D67: 0 | E67: 0 | F67: 0 | G67: 0 | H67: 0 | I67: 0 | J67: 0
A68: K Puckett | B68: 1 | C68: 4 | D68: 2 | E68: 1 | F68: 1 | G68: 1 | H68: 0 | I68: 1 | J68: 0
A69: S Mack | B69: 1 | C69: 3 | D69: 2 | E69: 2 | F69: 2 | G69: 1 | H69: 0 | I69: 0 | J69: 0
A70: C Davis | B70: 1 | C70: 3 | D70: 1 | E70: 0 | F70: 1 | G70: 0 | H70: 0 | I70: 0 | J70: 0
A71: R Bush | C71: 0 | D71: 0 | E71: 0 | F71: 0 | G71: 0 | H71: 0 | I71: 0 | J71: 0
A72: P Munoz | C72: 0 | D72: 0 | E72: 0 | F72: 0 | G72: 0 | H72: 0 | I72: 0 | J72: 0
B73: 99 | C73: 0 | D73: 0 | E73: 0 | F73: 0 | G73: 0 | H73: 0 | I73: 0 | J73: 0

Sheet 1989Athletics
A1: PITCHERS | B1: WHIP | C1: Effectiveness | D1: Stamina | E1: 1 | F1: LF | G1: R Henderson | I1: 1 | J1: D Stewart | M1: 1 | N1: LF | O1: R Henderson | AA1: 1989
A2: D Stewart | B2: 1.277 | C2: =IF(B2="","",ROUND((50/($AB$11-$AB$10))*(B2-$AB$11)+100,0)) -> 54 | D2: 1 | E2: 2 | F2: 3B | G2: C Lansford | I2: 2 | J2: M Moore | M2: 2 | N2: 3B | O2: C Lansford | AA2: Avg BA (50) | AB2: =VLOOKUP(AA1,'Settings & Expansion'!M3:P137,2,FALSE) -> 0.2535
A3: M Moore | B3: 1.142 | C3: =IF(B3="","",ROUND((50/($AB$11-$AB$10))*(B3-$AB$11)+100,0)) -> 67 | D3: 1 | E3: 3 | F3: RF | G3: J Canseco | I3: 3 | J3: B Welch | M3: 3 | N3: RF | O3: J Canseco | AA3: Top BA (100) | AB3: 0.339
A4: B Welch | B4: 1.283 | C4: 53 | D4: 1 | E4: 4 | F4: DH | G4: D Parker | I4: 4 | J4: S Davis | M4: 4 | N4: DH | O4: D Parker
A5: S Davis | B5: 1.506 | C5: 32 | D5: 1 | E5: 5 | F5: CF | G5: D Henderson | M5: 5 | N5: CF | O5: D Henderson
A6: D Eckersley | B6: 0.607 | C6: 119 | D6: 3 | E6: 6 | F6: 1B | G6: M McGwire | M6: 6 | N6: 1B | O6: M McGwire | AA6: Avg Slg% (50) | AB6: =VLOOKUP(AA1,'Settings & Expansion'!M3:P137,3,FALSE) -> 0.3745
A7: T Burns | B7: 0.976 | C7: 83 | D7: 2 | E7: 7 | F7: C | G7: T Steinbach | M7: 7 | N7: C | O7: T Steinbach | AA7: Top Slg% (100) | AB7: 0.635
A8: G Nelson | B8: 1.125 | C8: 69 | D8: 2 | E8: 8 | F8: 2B | G8: T Phillips | M8: 8 | N8: 2B | O8: T Phillips
A9: R Honeycutt | B9: 1.07 | C9: 74 | D9: 3 | E9: 9 | F9: SS | G9: W Weiss | M9: 9 | N9: SS | O9: W Weiss
A10: M Young | B10: 1.955 | C10: -11 | D10: 3 | AA10: Avg WHIP (50) | AB10: =VLOOKUP(AA1,'Settings & Expansion'!M3:P137,4,FALSE) -> 1.318
A11: C Young | B11: 1.477 | C11: 35 | D11: 3 | N11: P | O11: D Stewart | AA11: Low WHIP (100) | AB11: 0.8
A12: J Corsi | B12: 0.939 | C12: 87 | D12: 2
A13: CATCHERS | C13: Contact | D13: Power | E13: Speed | F13: Def/Arm | G13: Bunt | H13: Raw Avg | I13: Raw Slg% | P13: IP | Q13: H | R13: R | S13: K | T13: ERA | W13: BB
A14: T Steinbach | C14: =IF(H14="","",ROUND((50/($AB$3-$AB$2))*(H14-$AB$3)+100,0)) -> 61 | D14: =IF(I14="","",ROUND((50/($AB$7-$AB$6))*(I14-$AB$7)+100,0)) -> 46 | E14: 45 | F14: 70 | G14: 65 | H14: 0.273 | I14: 0.352 | N14: Starter | O14: D Stewart | T14: =IFERROR(IF(O14="","",R14*9/P14),"INF") -> INF
A15: R Hassey | C15: =IF(H15="","",ROUND((50/($AB$3-$AB$2))*(H15-$AB$3)+100,0)) -> 35 | D15: =IF(I15="","",ROUND((50/($AB$7-$AB$6))*(I15-$AB$7)+100,0)) -> 41 | E15: 40 | F15: 60 | G15: 60 | H15: 0.228 | I15: 0.328
A16: INFIELDERS
A17: M McGwire | C17: 37 | D17: 68 | E17: 45 | F17: 20 | G17: 35 | H17: 0.231 | I17: 0.467
A18: T Phillips | C18: 55 | D18: 45 | E18: 65 | F18: 40 | G18: 65 | H18: 0.262 | I18: 0.348
A19: M Gallego | C19: 49 | D19: 41 | E19: 60 | F19: 20 | G19: 70 | H19: 0.252 | I19: 0.328
A20: C Lansford | C20: 98 | D20: 56 | E20: 70 | F20: 20 | G20: 70 | H20: 0.336 | I20: 0.405
A21: W Weiss | C21: 38 | D21: 39 | E21: 60 | F21: 20 | G21: 65 | H21: 0.233 | I21: 0.318 | T21: =IF(O21="","",R21*9/P21) -> 
A22: G Hubbard | C22: 18 | D22: 38 | E22: 60 | F22: 20 | G22: 65 | H22: 0.198 | I22: 0.313
A23: OUTFIELDERS
A24: R Henderson | C24: 62 | D24: 55 | E24: 90 | F24: 50 | G24: 65 | H24: 0.274 | I24: 0.399
A25: D Henderson | C25: 74 | D25: 62 | E25: 60 | F25: 60 | G25: 50 | H25: 0.294 | I25: 0.438
A26: S Javier | C26: 47 | D26: 39 | E26: 65 | F26: 65 | G26: 65 | H26: 0.248 | I26: 0.316
A27: D Parker | C27: 56 | D27: 61 | E27: 60 | F27: 60 | G27: 45 | H27: 0.264 | I27: 0.432
A28: J Canseco | C28: 59 | D28: 82 | E28: 60 | F28: 40 | G28: 25 | H28: 0.269 | I28: 0.542
A29: L Polonia | C29: 69 | D29: 49 | E29: 70 | F29: 45 | G29: 60 | H29: 0.286 | I29: 0.369
C43: AB | D43: H | E43: RBI | F43: Run | G43: HR | H43: 3B | I43: 2B | J43: SB
A44: PITCHERS | C44: 0 | D44: 0 | E44: 0 | F44: 0 | G44: 0 | H44: 0 | I44: 0 | J44: 0
A45: D Stewart | B45: 1 | C45: 0 | D45: 0 | E45: 0 | F45: 0 | G45: 0 | H45: 0 | I45: 0 | J45: 0
A46: M Moore | C46: 0 | D46: 0 | E46: 0 | F46: 0 | G46: 0 | H46: 0 | I46: 0 | J46: 0
A47: B Welch | C47: 0 | D47: 0 | E47: 0 | F47: 0 | G47: 0 | H47: 0 | I47: 0 | J47: 0
A48: S Davis | C48: 0 | D48: 0 | E48: 0 | F48: 0 | G48: 0 | H48: 0 | I48: 0 | J48: 0
A49: D Eckersley | C49: 0 | D49: 0 | E49: 0 | F49: 0 | G49: 0 | H49: 0 | I49: 0 | J49: 0
A50: T Burns | C50: 0 | D50: 0 | E50: 0 | F50: 0 | G50: 0 | H50: 0 | I50: 0 | J50: 0
A51: G Nelson | C51: 0 | D51: 0 | E51: 0 | F51: 0 | G51: 0 | H51: 0 | I51: 0 | J51: 0
A52: R Honeycutt | C52: 0 | D52: 0 | E52: 0 | F52: 0 | G52: 0 | H52: 0 | I52: 0 | J52: 0
A53: M Young | C53: 0 | D53: 0 | E53: 0 | F53: 0 | G53: 0 | H53: 0 | I53: 0 | J53: 0
A54: C Young | C54: 0 | D54: 0 | E54: 0 | F54: 0 | G54: 0 | H54: 0 | I54: 0 | J54: 0
A55: J Corsi | C55: 0 | D55: 0 | E55: 0 | F55: 0 | G55: 0 | H55: 0 | I55: 0 | J55: 0
A56: CATCHERS | C56: 0 | D56: 0 | E56: 0 | F56: 0 | G56: 0 | H56: 0 | I56: 0 | J56: 0
A57: T Steinbach | B57: 1 | C57: 0 | D57: 0 | E57: 0 | F57: 0 | G57: 0 | H57: 0 | I57: 0 | J57: 0
A58: R Hassey | C58: 0 | D58: 0 | E58: 0 | F58: 0 | G58: 0 | H58: 0 | I58: 0 | J58: 0
A59: INFIELDERS | C59: 0 | D59: 0 | E59: 0 | F59: 0 | G59: 0 | H59: 0 | I59: 0 | J59: 0
A60: M McGwire | B60: 1 | C60: 0 | D60: 0 | E60: 0 | F60: 0 | G60: 0 | H60: 0 | I60: 0 | J60: 0
A61: T Phillips | B61: 1 | C61: 0 | D61: 0 | E61: 0 | F61: 0 | G61: 0 | H61: 0 | I61: 0 | J61: 0
A62: M Gallego | B62: 1 | C62: 0 | D62: 0 | E62: 0 | F62: 0 | G62: 0 | H62: 0 | I62: 0 | J62: 0
A63: C Lansford | B63: 1 | C63: 0 | D63: 0 | E63: 0 | F63: 0 | G63: 0 | H63: 0 | I63: 0 | J63: 0
A64: W Weiss | C64: 0 | D64: 0 | E64: 0 | F64: 0 | G64: 0 | H64: 0 | I64: 0 | J64: 0
A65: G Hubbard | C65: 0 | D65: 0 | E65: 0 | F65: 0 | G65: 0 | H65: 0 | I65: 0 | J65: 0
A66: OUTFIELDERS | C66: 0 | D66: 0 | E66: 0 | F66: 0 | G66: 0 | H66: 0 | I66: 0 | J66: 0
A67: R Henderson | B67: 1 | C67: 0 | D67: 0 | E67: 0 | F67: 0 | G67: 0 | H67: 0 | I67: 0 | J67: 0
A68: D Henderson | B68: 1 | C68: 0 | D68: 0 | E68: 0 | F68: 0 | G68: 0 | H68: 0 | I68: 0 | J68: 0
A69: S Javier | B69: 1 | C69: 0 | D69: 0 | E69: 0 | F69: 0 | G69: 0 | H69: 0 | I69: 0 | J69: 0
A70: D Parker | C70: 0 | D70: 0 | E70: 0 | F70: 0 | G70: 0 | H70: 0 | I70: 0 | J70: 0
A71: J Canseco | C71: 0 | D71: 0 | E71: 0 | F71: 0 | G71: 0 | H71: 0 | I71: 0 | J71: 0
A72: L Polonia | C72: 0 | D72: 0 | E72: 0 | F72: 0 | G72: 0 | H72: 0 | I72: 0 | J72: 0
B73: 99 | C73: 0 | D73: 0 | E73: 0 | F73: 0 | G73: 0 | H73: 0 | I73: 0 | J73: 0

Sheet 1986Mets
A1: PITCHERS | B1: WHIP | C1: Effectiveness | D1: Stamina | E1: 1 | F1: CF | G1: M Wilson | I1: 1 | J1: D Gooden | M1: 1 | N1: CF | O1: M Wilson | AA1: 1986
A2: D Gooden | B2: 1.108 | C2: =IF(B2="","",ROUND((50/($AB$11-$AB$10))*(B2-$AB$11)+100,0)) -> 79 | D2: 1 | E2: 2 | F2: 2B | G2: W Backman | I2: 2 | J2: R Darling | M2: 2 | N2: 2B | O2: W Backman | AA2: Avg BA (50) | AB2: =VLOOKUP(AA1,'Settings & Expansion'!M3:P137,2,FALSE) -> 0.2575
A3: R Darling | B3: 1.198 | C3: =IF(B3="","",ROUND((50/($AB$11-$AB$10))*(B3-$AB$11)+100,0)) -> 68 | D3: 1 | E3: 3 | F3: 1B | G3: K Hernandez | I3: 3 | J3: B Ojeda | M3: 3 | N3: 1B | O3: K Hernandez | AA3: Top BA (100) | AB3: 0.357
A4: B Ojeda | B4: 1.09 | C4: 81 | D4: 1 | E4: 4 | F4: C | G4: G Carter | I4: 4 | J4: S Fernandez | M4: 4 | N4: C | O4: G Carter
A5: S Fernandez | B5: 1.233 | C5: 64 | D5: 1 | E5: 5 | F5: RF | G5: D Strawberry | M5: 5 | N5: RF | O5: D Strawberry
A6: R McDowell | B6: 1.164 | C6: 72 | D6: 3 | E6: 6 | F6: 3B | G6: R Knight | M6: 6 | N6: 3B | O6: R Knight | AA6: Avg Slg% (50) | AB6: =VLOOKUP(AA1,'Settings & Expansion'!M3:P137,3,FALSE) -> 0.394
A7: J Orosco | B7: 1.222 | C7: 65 | D7: 3 | E7: 7 | F7: LF | G7: L Dykstra | M7: 7 | N7: LF | O7: L Dykstra | AA7: Top Slg% (100) | AB7: 0.573
A8: D Sisk | B8: 1.528 | C8: 30 | D8: 2 | E8: 8 | F8: SS | G8: R Santana | M8: 8 | N8: SS | O8: R Santana
A9: R Anderson | B9: 1.128 | C9: 76 | D9: 2 | E9: 9 | F9: P | G9: D Gooden | M9: 9 | N9: P | O9: S Fernandez | OP9: S Romo
A10: R Niemann | B10: 1.57 | C10: 25 | D10: 3 | AA10: Avg WHIP (50) | AB10: =VLOOKUP(AA1,'Settings & Expansion'!M3:P137,4,FALSE) -> 1.3545
A11: R Aguilera | B11: 1.278 | C11: 59 | D11: 2 | N11: P | O11: S Fernandez | AA11: Low WHIP (100) | AB11: 0.923
A12: B Berenyi | B12: 1.739 | C12: 5 | D12: 3
A13: CATCHERS | C13: Contact | D13: Power | E13: Speed | F13: Def/Arm | G13: Bunt | H13: Raw Avg | I13: Raw Slg% | P13: IP | Q13: H | R13: R | S13: K | T13: ERA | W13: BB
A14: G Carter | C14: =IF(H14="","",ROUND((50/($AB$3-$AB$2))*(H14-$AB$3)+100,0)) -> 49 | D14: =IF(I14="","",ROUND((50/($AB$7-$AB$6))*(I14-$AB$7)+100,0)) -> 63 | E14: 55 | F14: 75 | G14: 55 | H14: 0.255 | I14: 0.439 | N14: Starter | O14: S Fernandez | P14: =ROUND(9,2) -> 9 | Q14: 1 | R14: 1 | S14: 8 | T14: =ROUND(1,2) -> 1 | U14: W | W14: 3 | X14: 0 | Y14: 0 | Z14: 0
A15: E Hearn | C15: =IF(H15="","",ROUND((50/($AB$3-$AB$2))*(H15-$AB$3)+100,0)) -> 54 | D15: =IF(I15="","",ROUND((50/($AB$7-$AB$6))*(I15-$AB$7)+100,0)) -> 49 | E15: 50 | F15: 60 | G15: 60 | H15: 0.265 | I15: 0.39 | T15: =IFERROR(IF(O15="","",R15*9/P15),"INF") ->  | Y15: 0 | Z15: 0
A16: INFIELDERS
A17: K Hernandez | C17: 76 | D17: 65 | E17: 55 | F17: 20 | G17: 40 | H17: 0.31 | I17: 0.446
A18: W Backman | C18: 81 | D18: 47 | E18: 65 | F18: 20 | G18: 65 | H18: 0.32 | I18: 0.385
A19: R Santana | C19: 30 | D19: 11 | E19: 65 | F19: 20 | G19: 70 | H19: 0.218 | I19: 0.254
A20: R Knight | C20: 70 | D20: 58 | E20: 60 | F20: 20 | G20: 50 | H20: 0.298 | I20: 0.424
A21: T Teufel | C21: 45 | D21: 43 | E21: 60 | F21: 20 | G21: 55 | H21: 0.247 | I21: 0.369 | T21: =IF(O21="","",R21*9/P21) -> 
A22: H Johnson | C22: 44 | D22: 64 | E22: 65 | F22: 20 | G22: 45 | H22: 0.245 | I22: 0.445
A23: OUTFIELDERS
A24: G Foster | C24: 35 | D24: 60 | E24: 55 | F24: 55 | G24: 40 | H24: 0.227 | I24: 0.429
A25: L Dykstra | C25: 69 | D25: 64 | E25: 75 | F25: 65 | G25: 65 | H25: 0.295 | I25: 0.445
A26: D Strawberry | C26: 51 | D26: 82 | E26: 70 | F26: 70 | G26: 40 | H26: 0.259 | I26: 0.507
A27: M Wilson | C27: 66 | D27: 60 | E27: 70 | F27: 60 | G27: 65 | H27: 0.289 | I27: 0.43
A28: K Mitchell | C28: 60 | D28: 70 | E28: 55 | F28: 55 | G28: 45 | H28: 0.277 | I28: 0.466
A29: D Heep | C29: 62 | D29: 58 | E29: 50 | F29: 60 | G29: 55 | H29: 0.282 | I29: 0.421
C43: AB | D43: H | E43: RBI | F43: Run | G43: HR | H43: 3B | I43: 2B | J43: SB
A44: PITCHERS | C44: 0 | D44: 0 | E44: 0 | F44: 0 | G44: 0 | H44: 0 | I44: 0 | J44: 0
A45: D Gooden | C45: 0 | D45: 0 | E45: 0 | F45: 0 | G45: 0 | H45: 0 | I45: 0 | J45: 0
A46: R Darling | C46: 0 | D46: 0 | E46: 0 | F46: 0 | G46: 0 | H46: 0 | I46: 0 | J46: 0
A47: B Ojeda | C47: 0 | D47: 0 | E47: 0 | F47: 0 | G47: 0 | H47: 0 | I47: 0 | J47: 0
A48: S Fernandez | B48: 1 | C48: 1 | D48: 1 | E48: 0 | F48: 0 | G48: 0 | H48: 0 | I48: 0 | J48: 0
A49: R McDowell | C49: 0 | D49: 0 | E49: 0 | F49: 0 | G49: 0 | H49: 0 | I49: 0 | J49: 0
A50: J Orosco | C50: 0 | D50: 0 | E50: 0 | F50: 0 | G50: 0 | H50: 0 | I50: 0 | J50: 0
A51: D Sisk | C51: 0 | D51: 0 | E51: 0 | F51: 0 | G51: 0 | H51: 0 | I51: 0 | J51: 0
A52: R Anderson | C52: 0 | D52: 0 | E52: 0 | F52: 0 | G52: 0 | H52: 0 | I52: 0 | J52: 0
A53: R Niemann | C53: 0 | D53: 0 | E53: 0 | F53: 0 | G53: 0 | H53: 0 | I53: 0 | J53: 0
A54: R Aguilera | C54: 0 | D54: 0 | E54: 0 | F54: 0 | G54: 0 | H54: 0 | I54: 0 | J54: 0
A55: B Berenyi | C55: 0 | D55: 0 | E55: 0 | F55: 0 | G55: 0 | H55: 0 | I55: 0 | J55: 0
A56: CATCHERS | C56: 0 | D56: 0 | E56: 0 | F56: 0 | G56: 0 | H56: 0 | I56: 0 | J56: 0
A57: G Carter | B57: 1 | C57: 3 | D57: 2 | E57: 2 | F57: 2 | G57: 0 | H57: 1 | I57: 1 | J57: 0
A58: E Hearn | C58: 0 | D58: 0 | E58: 0 | F58: 0 | G58: 0 | H58: 0 | I58: 0 | J58: 0
A59: INFIELDERS | C59: 0 | D59: 0 | E59: 0 | F59: 0 | G59: 0 | H59: 0 | I59: 0 | J59: 0
A60: K Hernandez | B60: 1 | C60: 5 | D60: 1 | E60: 0 | F60: 1 | G60: 0 | H60: 0 | I60: 0 | J60: 0
A61: W Backman | B61: 1 | C61: 5 | D61: 2 | E61: 0 | F61: 2 | G61: 0 | H61: 0 | I61: 0 | J61: 0
A62: R Santana | B62: 1 | C62: 4 | D62: 2 | E62: 0 | F62: 0 | G62: 0 | H62: 0 | I62: 0 | J62: 0
A63: R Knight | B63: 1 | C63: 3 | D63: 1 | E63: 3 | F63: 1 | G63: 1 | H63: 0 | I63: 0 | J63: 0
A64: T Teufel | C64: 0 | D64: 0 | E64: 0 | F64: 0 | G64: 0 | H64: 0 | I64: 0 | J64: 0
A65: H Johnson | C65: 0 | D65: 0 | E65: 0 | F65: 0 | G65: 0 | H65: 0 | I65: 0 | J65: 0
A66: OUTFIELDERS | C66: 0 | D66: 0 | E66: 0 | F66: 0 | G66: 0 | H66: 0 | I66: 0 | J66: 0
A67: G Foster | C67: 0 | D67: 0 | E67: 0 | F67: 0 | G67: 0 | H67: 0 | I67: 0 | J67: 0
A68: L Dykstra | B68: 1 | C68: 4 | D68: 1 | E68: 0 | F68: 0 | G68: 0 | H68: 0 | I68: 0 | J68: 0
A69: D Strawberry | B69: 1 | C69: 4 | D69: 1 | E69: 1 | F69: 0 | G69: 0 | H69: 0 | I69: 0 | J69: 0
A70: M Wilson | B70: 1 | C70: 5 | D70: 1 | E70: 0 | F70: 0 | G70: 0 | H70: 0 | I70: 0 | J70: 0
A71: K Mitchell | C71: 0 | D71: 0 | E71: 0 | F71: 0 | G71: 0 | H71: 0 | I71: 0 | J71: 0
A72: D Heep | C72: 0 | D72: 0 | E72: 0 | F72: 0 | G72: 0 | H72: 0 | I72: 0 | J72: 0
B73: 99 | C73: 0 | D73: 0 | E73: 0 | F73: 0 | G73: 0 | H73: 0 | I73: 0 | J73: 0

Sheet 1985Royals
A1: PITCHERS | B1: WHIP | C1: Effectiveness | D1: Stamina | E1: 1 | F1: LF | G1: L Smith | I1: 1 | J1: B Saberhagen | M1: 1 | N1: LF | O1: L Smith | AA1: 1985
A2: B Saberhagen | B2: 1.058 | C2: =IF(B2="","",ROUND((50/($AB$11-$AB$10))*(B2-$AB$11)+100,0)) -> 79 | D2: 1 | E2: 2 | F2: CF | G2: W Wilson | I2: 2 | J2: C Leibrandt | M2: 2 | N2: CF | O2: W Wilson | AA2: Avg BA (50) | AB2: =VLOOKUP(AA1,'Settings & Expansion'!M3:P137,2,FALSE) -> 0.2565
A3: C Leibrandt | B3: 1.224 | C3: =IF(B3="","",ROUND((50/($AB$11-$AB$10))*(B3-$AB$11)+100,0)) -> 62 | D3: 1 | E3: 3 | F3: 3B | G3: G Brett | I3: 3 | J3: D Jackson | M3: 3 | N3: 3B | O3: G Brett | AA3: Top BA (100) | AB3: 0.368
A4: D Jackson | B4: 1.37 | C4: 47 | D4: 1 | E4: 4 | F4: 2B | G4: F White | I4: 4 | J4: B Black | M4: 4 | N4: 2B | O4: F White
A5: B Black | B5: 1.337 | C5: 51 | D5: 1 | E5: 5 | F5: C | G5: J Sundberg | M5: 5 | N5: C | O5: J Sundberg
A6: D Quisenberry | B6: 1.225 | C6: 62 | D6: 3 | E6: 6 | F6: 1B | G6: S Balboni | M6: 6 | N6: 1B | O6: S Balboni | AA6: Avg Slg% (50) | AB6: =VLOOKUP(AA1,'Settings & Expansion'!M3:P137,3,FALSE) -> 0.39
A7: J Beckwith | B7: 1.379 | C7: 46 | D7: 2 | E7: 7 | F7: RF | G7: D Motley | M7: 7 | N7: RF | O7: D Motley | AA7: Top Slg% (100) | AB7: 0.585
A8: M Jones | B8: 1.578 | C8: 26 | D8: 2 | E8: 8 | F8: SS | G8: B Biancalana | M8: 8 | N8: SS | O8: B Biancalana
A9: M LaCoss | B9: 1.918 | C9: -9 | D9: 3 | E9: 9 | F9: P | G9: B Saberhagen | M9: 9 | N9: P | O9: M Huismann
A10: S Farr | B10: 1.434 | C10: 41 | D10: 2 | AA10: Avg WHIP (50) | AB10: =VLOOKUP(AA1,'Settings & Expansion'!M3:P137,4,FALSE) -> 1.342
A11: M Gubicza | B11: 1.336 | C11: 51 | D11: 2 | N11: P | O11: M Huismann | AA11: Low WHIP (100) | AB11: 0.857
A12: M Huismann | B12: 0.911 | C12: 94 | D12: 3
A13: CATCHERS | C13: Contact | D13: Power | E13: Speed | F13: Def/Arm | G13: Bunt | H13: Raw Avg | I13: Raw Slg% | P13: IP | Q13: H | R13: R | S13: K | T13: ERA | W13: BB
A14: J Sundberg | C14: =IF(H14="","",ROUND((50/($AB$3-$AB$2))*(H14-$AB$3)+100,0)) -> 45 | D14: =IF(I14="","",ROUND((50/($AB$7-$AB$6))*(I14-$AB$7)+100,0)) -> 48 | E14: 45 | F14: 70 | G14: 60 | H14: 0.245 | I14: 0.381 | N14: Starter | O14: D Jackson | P14: =ROUND(7.66666666666666,2) -> 7.67 | Q14: 5 | R14: 1 | S14: 2 | T14: =ROUND(1.17340286831812,2) -> 1.17 | W14: 2 | X14: 0 | Y14: 0 | Z14: 0
A15: J Wathan | C15: =IF(H15="","",ROUND((50/($AB$3-$AB$2))*(H15-$AB$3)+100,0)) -> 40 | D15: =IF(I15="","",ROUND((50/($AB$7-$AB$6))*(I15-$AB$7)+100,0)) -> 33 | E15: 50 | F15: 60 | G15: 55 | H15: 0.234 | I15: 0.324 | O15: M LaCoss | P15: =ROUND(0,2) -> 0 | Q15: 0 | R15: 0 | S15: 0 | T15: 0 | W15: 0 | X15: 0 | Y15: 0 | Z15: 0
A16: INFIELDERS | O16: M Jones | P16: =ROUND(0.333333333333333,2) -> 0.33 | Q16: 0 | R16: 0 | S16: 0 | T16: =ROUND(0,2) -> 0 | W16: 0 | X16: 0 | Y16: 0 | Z16: 0
A17: S Balboni | C17: 44 | D17: 72 | E17: 40 | F17: 20 | G17: 30 | H17: 0.243 | I17: 0.477 | O17: D Quisenberry | P17: =ROUND(0.666666666666667,2) -> 0.67 | Q17: 4 | R17: 4 | S17: 0 | T17: =ROUND(53.7313432835821,2) -> 53.73 | U17: L | W17: 1 | X17: 0 | Y17: 0 | Z17: 0
A18: F White | C18: 47 | D18: 56 | E18: 65 | F18: 20 | G18: 65 | H18: 0.249 | I18: 0.414 | O18: M Huismann | P18: =ROUND(0.333333333333333,2) -> 0.33 | Q18: 0 | R18: 0 | S18: 0 | T18: =ROUND(0,2) -> 0 | W18: 0 | X18: 0 | Y18: 0 | Z18: 0
A19: O Concepcion | C19: 26 | D19: 13 | E19: 60 | F19: 20 | G19: 70 | H19: 0.204 | I19: 0.245 | T19: =IFERROR(IF(O19="","",R19*9/P19),"INF") -> 
A20: G Brett | C20: 85 | D20: 100 | E20: 60 | F20: 20 | G20: 45 | H20: 0.335 | I20: 0.585 | T20: =IFERROR(IF(O20="","",R20*9/P20),"INF") -> 
A21: J Orta | C21: 55 | D21: 48 | E21: 60 | F21: 45 | G21: 40 | H21: 0.267 | I21: 0.383 | T21: =IF(O21="","",R21*9/P21) -> 
A22: B Biancalana | C22: 19 | D22: 17 | E22: 55 | F22: 20 | G22: 65 | H22: 0.188 | I22: 0.261
A23: OUTFIELDERS
A24: L Smith | C24: 50 | D24: 44 | E24: 80 | F24: 60 | G24: 55 | H24: 0.257 | I24: 0.366
A25: W Wilson | C25: 60 | D25: 55 | E25: 80 | F25: 65 | G25: 70 | H25: 0.278 | I25: 0.408
A26: D Motley | C26: 35 | D26: 56 | E26: 60 | F26: 55 | G26: 60 | H26: 0.222 | I26: 0.413
A27: H McRae | C27: 51 | D27: 65 | E27: 55 | F27: 60 | G27: 65 | H27: 0.259 | I27: 0.45
A28: P Sheridan | C28: 37 | D28: 36 | E28: 45 | F28: 60 | G28: 45 | H28: 0.228 | I28: 0.335
A29: L Jones | C29: 30 | D29: 16 | E29: 60 | F29: 60 | G29: 60 | H29: 0.211 | I29: 0.257
C43: AB | D43: H | E43: RBI | F43: Run | G43: HR | H43: 3B | I43: 2B | J43: SB
A44: PITCHERS | C44: 0 | D44: 0 | E44: 0 | F44: 0 | G44: 0 | H44: 0 | I44: 0 | J44: 0
A45: B Saberhagen | C45: 0 | D45: 0 | E45: 0 | F45: 0 | G45: 0 | H45: 0 | I45: 0 | J45: 0
A46: C Leibrandt | C46: 0 | D46: 0 | E46: 0 | F46: 0 | G46: 0 | H46: 0 | I46: 0 | J46: 0
A47: D Jackson | B47: 1 | C47: 3 | D47: 3 | E47: 0 | F47: 1 | G47: 0 | H47: 0 | I47: 1 | J47: 0
A48: B Black | C48: 0 | D48: 0 | E48: 0 | F48: 0 | G48: 0 | H48: 0 | I48: 0 | J48: 0
A49: D Quisenberry | B49: 1 | C49: 0 | D49: 0 | E49: 0 | F49: 0 | G49: 0 | H49: 0 | I49: 0 | J49: 0
A50: J Beckwith | C50: 0 | D50: 0 | E50: 0 | F50: 0 | G50: 0 | H50: 0 | I50: 0 | J50: 0
A51: M Jones | B51: 1 | C51: 0 | D51: 0 | E51: 0 | F51: 0 | G51: 0 | H51: 0 | I51: 0 | J51: 0
A52: M LaCoss | B52: 1 | C52: 0 | D52: 0 | E52: 0 | F52: 0 | G52: 0 | H52: 0 | I52: 0 | J52: 0
A53: S Farr | C53: 0 | D53: 0 | E53: 0 | F53: 0 | G53: 0 | H53: 0 | I53: 0 | J53: 0
A54: M Gubicza | C54: 0 | D54: 0 | E54: 0 | F54: 0 | G54: 0 | H54: 0 | I54: 0 | J54: 0
A55: M Huismann | B55: 1 | C55: 1 | D55: 0 | E55: 0 | F55: 0 | G55: 0 | H55: 0 | I55: 0 | J55: 0
A56: CATCHERS | C56: 0 | D56: 0 | E56: 0 | F56: 0 | G56: 0 | H56: 0 | I56: 0 | J56: 0
A57: J Sundberg | B57: 1 | C57: 4 | D57: 3 | E57: 0 | F57: 1 | G57: 0 | H57: 0 | I57: 2 | J57: 0
A58: J Wathan | C58: 0 | D58: 0 | E58: 0 | F58: 0 | G58: 0 | H58: 0 | I58: 0 | J58: 0
A59: INFIELDERS | C59: 0 | D59: 0 | E59: 0 | F59: 0 | G59: 0 | H59: 0 | I59: 0 | J59: 0
A60: S Balboni | B60: 1 | C60: 4 | D60: 0 | E60: 0 | F60: 0 | G60: 0 | H60: 0 | I60: 0 | J60: 0
A61: F White | B61: 1 | C61: 4 | D61: 1 | E61: 0 | F61: 1 | G61: 0 | H61: 0 | I61: 0 | J61: 0
A62: O Concepcion | C62: 0 | D62: 0 | E62: 0 | F62: 0 | G62: 0 | H62: 0 | I62: 0 | J62: 0
A63: G Brett | B63: 1 | C63: 4 | D63: 0 | E63: 0 | F63: 0 | G63: 0 | H63: 0 | I63: 0 | J63: 0
A64: J Orta | C64: 0 | D64: 0 | E64: 0 | F64: 0 | G64: 0 | H64: 0 | I64: 0 | J64: 0
A65: B Biancalana | B65: 1 | C65: 5 | D65: 1 | E65: 1 | F65: 0 | G65: 0 | H65: 0 | I65: 1 | J65: 0
A66: OUTFIELDERS | C66: 0 | D66: 0 | E66: 0 | F66: 0 | G66: 0 | H66: 0 | I66: 0 | J66: 0
A67: L Smith | B67: 1 | C67: 5 | D67: 1 | E67: 1 | F67: 0 | G67: 0 | H67: 0 | I67: 1 | J67: 0
A68: W Wilson | B68: 1 | C68: 3 | D68: 0 | E68: 0 | F68: 0 | G68: 0 | H68: 0 | I68: 0 | J68: 0
A69: D Motley | B69: 1 | C69: 4 | D69: 2 | E69: 1 | F69: 0 | G69: 0 | H69: 0 | I69: 0 | J69: 0
A70: H McRae | C70: 0 | D70: 0 | E70: 0 | F70: 0 | G70: 0 | H70: 0 | I70: 0 | J70: 0
A71: P Sheridan | C71: 0 | D71: 0 | E71: 0 | F71: 0 | G71: 0 | H71: 0 | I71: 0 | J71: 0
A72: L Jones | C72: 0 | D72: 0 | E72: 0 | F72: 0 | G72: 0 | H72: 0 | I72: 0 | J72: 0
B73: 99 | C73: 0 | D73: 0 | E73: 0 | F73: 0 | G73: 0 | H73: 0 | I73: 0 | J73: 0

Sheet 1984Tigers
A1: PITCHERS | B1: WHIP | C1: Effectiveness | D1: Stamina | E1: 1 | F1: 2B | G1: L Whitaker | I1: 1 | J1: J Morris | M1: 1 | N1: 2B | O1: L Whitaker | AA1: 1984
A2: J Morris | B2: 1.282 | C2: =IF(B2="","",ROUND((50/($AB$11-$AB$10))*(B2-$AB$11)+100,0)) -> 58 | D2: 1 | E2: 2 | F2: SS | G2: A Trammell | I2: 2 | J2: D Petry | M2: 2 | N2: SS | O2: A Trammell | AA2: Avg BA (50) | AB2: =VLOOKUP(AA1,'Settings & Expansion'!M3:P137,2,FALSE) -> 0.2595
A3: D Petry | B3: 1.273 | C3: =IF(B3="","",ROUND((50/($AB$11-$AB$10))*(B3-$AB$11)+100,0)) -> 59 | D3: 1 | E3: 3 | F3: RF | G3: K Gibson | I3: 3 | J3: M Wilcox | M3: 3 | N3: RF | O3: K Gibson | AA3: Top BA (100) | AB3: 0.351
A4: M Wilcox | B4: 1.286 | C4: 57 | D4: 1 | E4: 4 | F4: C | G4: L Parrish | I4: 4 | J4: J Berenguer | M4: 4 | N4: C | O4: L Parrish
A5: J Berenguer | B5: 1.337 | C5: 51 | D5: 1 | E5: 5 | F5: LF | G5: L Herndon | M5: 5 | N5: LF | O5: L Herndon
A6: W Hernandez | B6: 0.941 | C6: 100 | D6: 3 | E6: 6 | F6: DH | G6: B Garbey | M6: 6 | N6: DH | O6: B Garbey | AA6: Avg Slg% (50) | AB6: =VLOOKUP(AA1,'Settings & Expansion'!M3:P137,3,FALSE) -> 0.3835
A7: A Lopez | B7: 1.169 | C7: 72 | D7: 2 | E7: 7 | F7: CF | G7: C Lemon | M7: 7 | N7: CF | O7: C Lemon | AA7: Top Slg% (100) | AB7: 0.547
A8: D Blair | B8: 1.26 | C8: 60 | D8: 2 | E8: 8 | F8: 3B | G8: H Johnson | M8: 8 | N8: 3B | O8: H Johnson
A9: S Monge | B9: 1.444 | C9: 37 | D9: 3 | E9: 9 | F9: 1B | G9: D Bergman | M9: 9 | N9: 1B | O9: D Bergman
A10: B Scherrer | B10: 1.158 | C10: 73 | D10: 3 | AA10: Avg WHIP (50) | AB10: =VLOOKUP(AA1,'Settings & Expansion'!M3:P137,4,FALSE) -> 1.3425
A11: D Rozema | B11: 1.267 | C11: 59 | D11: 2 | N11: P | O11: G Abbott | AA11: Low WHIP (100) | AB11: 0.941
A12: G Abbott | B12: 1.591 | C12: 19 | D12: 2
A13: CATCHERS | C13: Contact | D13: Power | E13: Speed | F13: Def/Arm | G13: Bunt | H13: Raw Avg | I13: Raw Slg% | P13: IP | Q13: H | R13: R | S13: K | T13: ERA | W13: BB
A14: L Parrish | C14: =IF(H14="","",ROUND((50/($AB$3-$AB$2))*(H14-$AB$3)+100,0)) -> 38 | D14: =IF(I14="","",ROUND((50/($AB$7-$AB$6))*(I14-$AB$7)+100,0)) -> 68 | E14: 45 | F14: 70 | G14: 60 | H14: 0.237 | I14: 0.443 | N14: Starter | O14: D Petry | P14: =ROUND(6,2) -> 6 | Q14: 7 | R14: 4 | S14: 2 | T14: =ROUND(6,2) -> 6 | W14: 0 | X14: 0 | Y14: 0 | Z14: 0
A15: D Lowry | C15: =IF(H15="","",ROUND((50/($AB$3-$AB$2))*(H15-$AB$3)+100,0)) -> 42 | D15: =IF(I15="","",ROUND((50/($AB$7-$AB$6))*(I15-$AB$7)+100,0)) -> 62 | E15: 40 | F15: 60 | G15: 50 | H15: 0.244 | I15: 0.422 | O15: A Lopez | P15: =ROUND(2,2) -> 2 | Q15: 1 | R15: 0 | S15: 1 | T15: =ROUND(0,2) -> 0 | W15: 0 | X15: 0 | Y15: 0 | Z15: 0
A16: INFIELDERS | O16: G Abbott | P16: =ROUND(0.333333333333333,2) -> 0.33 | Q16: 3 | R16: 2 | S16: 0 | T16: =ROUND(54.5454545454545,2) -> 54.55 | U16: L | W16: 0 | X16: 0 | Y16: 0 | Z16: 0
A17: D Bergman | C17: 57 | D17: 60 | E17: 55 | F17: 20 | G17: 40 | H17: 0.273 | I17: 0.417 | T17: =IFERROR(IF(O17="","",R17*9/P17),"INF") ->  | Y17: 0 | Z17: 0
A18: L Whitaker | C18: 66 | D18: 57 | E18: 65 | F18: 20 | G18: 70 | H18: 0.289 | I18: 0.407 | T18: =IFERROR(IF(O18="","",R18*9/P18),"INF") ->  | Y18: 0 | Z18: 0
A19: A Trammell | C19: 80 | D19: 76 | E19: 70 | F19: 20 | G19: 70 | H19: 0.314 | I19: 0.468 | T19: =IFERROR(IF(O19="","",R19*9/P19),"INF") -> 
A20: H Johnson | C20: 44 | D20: 53 | E20: 60 | F20: 20 | G20: 60 | H20: 0.248 | I20: 0.394 | T20: =IFERROR(IF(O20="","",R20*9/P20),"INF") -> 
A21: B Garbey | C21: 65 | D21: 52 | E21: 60 | F21: 50 | G21: 45 | H21: 0.287 | I21: 0.391 | T21: =IF(O21="","",R21*9/P21) -> 
A22: T Brookens | C22: 43 | D22: 54 | E22: 55 | F22: 45 | G22: 55 | H22: 0.246 | I22: 0.397
A23: OUTFIELDERS
A24: L Herndon | C24: 61 | D24: 55 | E24: 60 | F24: 60 | G24: 65 | H24: 0.28 | I24: 0.4
A25: C Lemon | C25: 65 | D25: 84 | E25: 65 | F25: 65 | G25: 65 | H25: 0.287 | I25: 0.495
A26: K Gibson | C26: 62 | D26: 91 | E26: 80 | F26: 70 | G26: 40 | H26: 0.282 | I26: 0.516
A27: D Evans | C27: 35 | D27: 50 | E27: 50 | F27: 60 | G27: 65 | H27: 0.232 | I27: 0.384
A28: R Jones | C28: 63 | D28: 91 | E28: 55 | F28: 65 | G28: 40 | H28: 0.284 | I28: 0.516
A29: R Kuntz | C29: 64 | D29: 59 | E29: 60 | F29: 55 | G29: 55 | H29: 0.286 | I29: 0.414
C43: AB | D43: H | E43: RBI | F43: Run | G43: HR | H43: 3B | I43: 2B | J43: SB
A44: PITCHERS | C44: 0 | D44: 0 | E44: 0 | F44: 0 | G44: 0 | H44: 0 | I44: 0 | J44: 0
A45: J Morris | C45: 0 | D45: 0 | E45: 0 | F45: 0 | G45: 0 | H45: 0 | I45: 0 | J45: 0
A46: D Petry | B46: 1 | C46: 0 | D46: 0 | E46: 0 | F46: 0 | G46: 0 | H46: 0 | I46: 0 | J46: 0
A47: M Wilcox | C47: 0 | D47: 0 | E47: 0 | F47: 0 | G47: 0 | H47: 0 | I47: 0 | J47: 0
A48: J Berenguer | C48: 0 | D48: 0 | E48: 0 | F48: 0 | G48: 0 | H48: 0 | I48: 0 | J48: 0
A49: W Hernandez | C49: 0 | D49: 0 | E49: 0 | F49: 0 | G49: 0 | H49: 0 | I49: 0 | J49: 0
A50: A Lopez | B50: 1 | C50: 0 | D50: 0 | E50: 0 | F50: 0 | G50: 0 | H50: 0 | I50: 0 | J50: 0
A51: D Blair | C51: 0 | D51: 0 | E51: 0 | F51: 0 | G51: 0 | H51: 0 | I51: 0 | J51: 0
A52: S Monge | C52: 0 | D52: 0 | E52: 0 | F52: 0 | G52: 0 | H52: 0 | I52: 0 | J52: 0
A53: B Scherrer | C53: 0 | D53: 0 | E53: 0 | F53: 0 | G53: 0 | H53: 0 | I53: 0 | J53: 0
A54: D Rozema | C54: 0 | D54: 0 | E54: 0 | F54: 0 | G54: 0 | H54: 0 | I54: 0 | J54: 0
A55: G Abbott | B55: 1 | C55: 0 | D55: 0 | E55: 0 | F55: 0 | G55: 0 | H55: 0 | I55: 0 | J55: 0
A56: CATCHERS | C56: 0 | D56: 0 | E56: 0 | F56: 0 | G56: 0 | H56: 0 | I56: 0 | J56: 0
A57: L Parrish | B57: 1 | C57: 4 | D57: 1 | E57: 1 | F57: 1 | G57: 1 | H57: 0 | I57: 0 | J57: 0
A58: D Lowry | C58: 0 | D58: 0 | E58: 0 | F58: 0 | G58: 0 | H58: 0 | I58: 0 | J58: 0
A59: INFIELDERS | C59: 0 | D59: 0 | E59: 0 | F59: 0 | G59: 0 | H59: 0 | I59: 0 | J59: 0
A60: D Bergman | B60: 1 | C60: 2 | D60: 0 | E60: 0 | F60: 0 | G60: 0 | H60: 0 | I60: 0 | J60: 0
A61: L Whitaker | B61: 1 | C61: 5 | D61: 1 | E61: 0 | F61: 0 | G61: 0 | H61: 0 | I61: 0 | J61: 0
A62: A Trammell | B62: 1 | C62: 5 | D62: 0 | E62: 0 | F62: 0 | G62: 0 | H62: 0 | I62: 0 | J62: 0
A63: H Johnson | B63: 1 | C63: 3 | D63: 1 | E63: 0 | F63: 0 | G63: 0 | H63: 0 | I63: 0 | J63: 0
A64: B Garbey | B64: 1 | C64: 3 | D64: 2 | E64: 0 | F64: 0 | G64: 0 | H64: 0 | I64: 0 | J64: 0
A65: T Brookens | C65: 0 | D65: 0 | E65: 0 | F65: 0 | G65: 0 | H65: 0 | I65: 0 | J65: 0
A66: OUTFIELDERS | C66: 0 | D66: 0 | E66: 0 | F66: 0 | G66: 0 | H66: 0 | I66: 0 | J66: 0
A67: L Herndon | B67: 1 | C67: 4 | D67: 2 | E67: 1 | F67: 2 | G67: 1 | H67: 0 | I67: 1 | J67: 0
A68: C Lemon | B68: 1 | C68: 4 | D68: 2 | E68: 1 | F68: 0 | G68: 0 | H68: 0 | I68: 1 | J68: 0
A69: K Gibson | B69: 1 | C69: 4 | D69: 1 | E69: 1 | F69: 1 | G69: 1 | H69: 0 | I69: 0 | J69: 0
A70: D Evans | C70: 0 | D70: 0 | E70: 0 | F70: 0 | G70: 0 | H70: 0 | I70: 0 | J70: 0
A71: R Jones | C71: 0 | D71: 0 | E71: 0 | F71: 0 | G71: 0 | H71: 0 | I71: 0 | J71: 0
A72: R Kuntz | C72: 0 | D72: 0 | E72: 0 | F72: 0 | G72: 0 | H72: 0 | I72: 0 | J72: 0
B73: 99 | C73: 0 | D73: 0 | E73: 0 | F73: 0 | G73: 0 | H73: 0 | I73: 0 | J73: 0

Sheet 1975Reds
A1: PITCHERS | B1: WHIP | C1: Effectiveness | D1: Stamina | E1: 1 | F1: 3B | G1: P Rose | I1: 1 | J1: G Nolan | M1: 1 | N1: 3B | O1: P Rose | AA1: 1975
A2: G Nolan | B2: 1.097 | C2: =IF(B2="","",ROUND((50/($AB$11-$AB$10))*(B2-$AB$11)+100,0)) -> 88 | D2: 1 | E2: 2 | F2: RF | G2: K Griffey | I2: 2 | J2: J Billingham | M2: 2 | N2: RF | O2: K Griffey | AA2: Avg BA (50) | AB2: =VLOOKUP(AA1,'Settings & Expansion'!M3:P137,2,FALSE) -> 0.2575
A3: J Billingham | B3: 1.433 | C3: =IF(B3="","",ROUND((50/($AB$11-$AB$10))*(B3-$AB$11)+100,0)) -> 40 | D3: 1 | E3: 3 | F3: 2B | G3: J Morgan | I3: 3 | J3: F Norman | M3: 3 | N3: 2B | O3: J Morgan | AA3: Top BA (100) | AB3: 0.359
A4: F Norman | B4: 1.314 | C4: 57 | D4: 1 | E4: 4 | F4: 1B | G4: T Perez | I4: 4 | J4: D Gullett | M4: 4 | N4: 1B | O4: T Perez
A5: D Gullett | B5: 1.146 | C5: 81 | D5: 1 | E5: 5 | F5: C | G5: J Bench | M5: 5 | N5: C | O5: J Bench
A6: R Eastwick | B6: 1.133 | C6: 82 | D6: 3 | E6: 6 | F6: LF | G6: G Foster | M6: 6 | N6: LF | O6: G Foster | AA6: Avg Slg% (50) | AB6: =VLOOKUP(AA1,'Settings & Expansion'!M3:P137,3,FALSE) -> 0.374
A7: P Borbon | B7: 1.328 | C7: 55 | D7: 2 | E7: 7 | F7: SS | G7: D Concepcion | M7: 7 | N7: SS | O7: D Concepcion | AA7: Top Slg% (100) | AB7: 0.566
A8: C Carroll | B8: 1.298 | C8: 59 | D8: 2 | E8: 8 | F8: CF | G8: C Geronimo | M8: 8 | N8: CF | O8: C Geronimo
A9: W McEnaney | B9: 1.264 | C9: 64 | D9: 3 | E9: 9 | F9: P | G9: G Nolan | M9: 9 | N9: P | O9: J Billingham | OP9: A Rhodes
A10: P Darcy | B10: 1.477 | C10: 34 | D10: 2 | AA10: Avg WHIP (50) | AB10: =VLOOKUP(AA1,'Settings & Expansion'!M3:P137,4,FALSE) -> 1.361
A11: C Kirby | B11: 1.509 | C11: 29 | D11: 2 | N11: P | O11: J Billingham | AA11: Low WHIP (100) | AB11: 1.009
A12: T Carroll | B12: 1.66 | C12: 8 | D12: 3
A13: CATCHERS | C13: Contact | D13: Power | E13: Speed | F13: Def/Arm | G13: Bunt | H13: Raw Avg | I13: Raw Slg% | P13: IP | Q13: H | R13: R | S13: K | T13: ERA | W13: BB
A14: J Bench | C14: =IF(H14="","",ROUND((50/($AB$3-$AB$2))*(H14-$AB$3)+100,0)) -> 63 | D14: =IF(I14="","",ROUND((50/($AB$7-$AB$6))*(I14-$AB$7)+100,0)) -> 88 | E14: 60 | F14: 90 | G14: 35 | H14: 0.283 | I14: 0.519 | N14: Starter | O14: J Billingham | P14: 1 | T14: =IFERROR(IF(O14="","",R14*9/P14),"INF") -> 0 | U14: W | Y14: 0 | Z14: 0
A15: B Plummer | C15: =IF(H15="","",ROUND((50/($AB$3-$AB$2))*(H15-$AB$3)+100,0)) -> 13 | D15: =IF(I15="","",ROUND((50/($AB$7-$AB$6))*(I15-$AB$7)+100,0)) -> 34 | E15: 50 | F15: 60 | G15: 55 | H15: 0.182 | I15: 0.314 | Y15: 0 | Z15: 0
A16: INFIELDERS | Y16: 0 | Z16: 0
A17: T Perez | C17: 62 | D17: 74 | E17: 50 | F17: 20 | G17: 40 | H17: 0.282 | I17: 0.466
A18: J Morgan | C18: 84 | D18: 85 | E18: 85 | F18: 20 | G18: 75 | H18: 0.327 | I18: 0.508
A19: D Concepcion | C19: 58 | D19: 45 | E19: 75 | F19: 20 | G19: 70 | H19: 0.274 | I19: 0.353
A20: P Rose | C20: 79 | D20: 65 | E20: 60 | F20: 50 | G20: 70 | H20: 0.317 | I20: 0.432
A21: D Driessen | C21: 62 | D21: 64 | E21: 45 | F21: 45 | G21: 50 | H21: 0.281 | I21: 0.429 | T21: =IF(O21="","",R21*9/P21) -> 
A22: D Chaney | C22: 31 | D22: 29 | E22: 50 | F22: 20 | G22: 60 | H22: 0.219 | I22: 0.294
A23: D Flynn | C23: 55 | D23: 43 | E23: 55 | F23: 20 | G23: 50 | H23: 0.268 | I23: 0.346
A24: OUTFIELDERS
A25: G Foster | C25: 71 | D25: 88 | E25: 50 | F25: 65 | G25: 40 | H25: 0.3 | I25: 0.518
A26: C Geronimo | C26: 50 | D26: 47 | E26: 70 | F26: 80 | G26: 55 | H26: 0.257 | I26: 0.363
A27: K Griffey | C27: 73 | D27: 57 | E27: 65 | F27: 70 | G27: 65 | H27: 0.305 | I27: 0.402
A28: M Rettenmund | C28: 41 | D28: 34 | E28: 65 | F28: 55 | G28: 65 | H28: 0.239 | I28: 0.314
A29: T Crowley | C29: 55 | D29: 55 | E29: 40 | F29: 45 | G29: 40 | H29: 0.268 | I29: 0.394
C43: AB | D43: H | E43: RBI | F43: Run | G43: HR | H43: 3B | I43: 2B | J43: SB
A44: PITCHERS | C44: 0 | D44: 0 | E44: 0 | F44: 0 | G44: 0 | H44: 0 | I44: 0 | J44: 0
A45: G Nolan | C45: 0 | D45: 0 | E45: 0 | F45: 0 | G45: 0 | H45: 0 | I45: 0 | J45: 0
A46: J Billingham | B46: 1 | C46: 1 | D46: 1 | E46: 0 | F46: 1 | G46: 0 | H46: 0 | I46: 1 | J46: 0
A47: F Norman | C47: 0 | D47: 0 | E47: 0 | F47: 0 | G47: 0 | H47: 0 | I47: 0 | J47: 0
A48: D Gullett | C48: 0 | D48: 0 | E48: 0 | F48: 0 | G48: 0 | H48: 0 | I48: 0 | J48: 0
A49: R Eastwick | C49: 0 | D49: 0 | E49: 0 | F49: 0 | G49: 0 | H49: 0 | I49: 0 | J49: 0
A50: P Borbon | C50: 0 | D50: 0 | E50: 0 | F50: 0 | G50: 0 | H50: 0 | I50: 0 | J50: 0
A51: C Carroll | C51: 0 | D51: 0 | E51: 0 | F51: 0 | G51: 0 | H51: 0 | I51: 0 | J51: 0
A52: W McEnaney | C52: 0 | D52: 0 | E52: 0 | F52: 0 | G52: 0 | H52: 0 | I52: 0 | J52: 0
A53: P Darcy | C53: 0 | D53: 0 | E53: 0 | F53: 0 | G53: 0 | H53: 0 | I53: 0 | J53: 0
A54: C Kirby | C54: 0 | D54: 0 | E54: 0 | F54: 0 | G54: 0 | H54: 0 | I54: 0 | J54: 0
A55: T Carroll | C55: 0 | D55: 0 | E55: 0 | F55: 0 | G55: 0 | H55: 0 | I55: 0 | J55: 0
A56: CATCHERS | C56: 0 | D56: 0 | E56: 0 | F56: 0 | G56: 0 | H56: 0 | I56: 0 | J56: 0
A57: J Bench | B57: 1 | C57: 1 | D57: 0 | E57: 0 | F57: 0 | G57: 0 | H57: 0 | I57: 0 | J57: 0
A58: B Plummer | C58: 0 | D58: 0 | E58: 0 | F58: 0 | G58: 0 | H58: 0 | I58: 0 | J58: 0
A59: INFIELDERS | C59: 0 | D59: 0 | E59: 0 | F59: 0 | G59: 0 | H59: 0 | I59: 0 | J59: 0
A60: T Perez | B60: 1 | C60: 0 | D60: 0 | E60: 0 | F60: 0 | G60: 0 | H60: 0 | I60: 0 | J60: 0
A61: J Morgan | B61: 1 | C61: 1 | D61: 1 | E61: 1 | F61: 0 | G61: 0 | H61: 0 | I61: 1 | J61: 0
A62: D Concepcion | B62: 1 | C62: 1 | D62: 0 | E62: 0 | F62: 0 | G62: 0 | H62: 0 | I62: 0 | J62: 0
A63: P Rose | B63: 1 | C63: 2 | D63: 2 | E63: 3 | F63: 2 | G63: 1 | H63: 0 | I63: 0 | J63: 0
A64: D Driessen | C64: 0 | D64: 0 | E64: 0 | F64: 0 | G64: 0 | H64: 0 | I64: 0 | J64: 0
A65: D Chaney | C65: 0 | D65: 0 | E65: 0 | F65: 0 | G65: 0 | H65: 0 | I65: 0 | J65: 0
A66: D Flynn | C66: 0 | D66: 0 | E66: 0 | F66: 0 | G66: 0 | H66: 0 | I66: 0 | J66: 0
A67: OUTFIELDERS | C67: 0 | D67: 0 | E67: 0 | F67: 0 | G67: 0 | H67: 0 | I67: 0 | J67: 0
A68: G Foster | B68: 1 | C68: 1 | D68: 0 | E68: 0 | F68: 0 | G68: 0 | H68: 0 | I68: 0 | J68: 0
A69: C Geronimo | B69: 1 | C69: 1 | D69: 1 | E69: 0 | F69: 1 | G69: 0 | H69: 0 | I69: 0 | J69: 0
A70: K Griffey | B70: 1 | C70: 1 | D70: 1 | E70: 0 | F70: 1 | G70: 0 | H70: 0 | I70: 0 | J70: 0
A71: M Rettenmund | C71: 0 | D71: 0 | E71: 0 | F71: 0 | G71: 0 | H71: 0 | I71: 0 | J71: 0
A72: T Crowley | C72: 0 | D72: 0 | E72: 0 | F72: 0 | G72: 0 | H72: 0 | I72: 0 | J72: 0
B73: 99 | C73: 0 | D73: 0 | E73: 0 | F73: 0 | G73: 0 | H73: 0 | I73: 0 | J73: 0

Sheet 1972Athletics
A1: PITCHERS | B1: WHIP | C1: Effectiveness | D1: Stamina | E1: 1 | F1: SS | G1: B Campaneris | I1: 1 | J1: C Hunter | M1: 1 | N1: SS | O1: B Campaneris | AA1: 1972
A2: C Hunter | B2: 0.914 | C2: =IF(B2="","",ROUND((50/($AB$11-$AB$10))*(B2-$AB$11)+100,0)) -> 91 | D2: 1 | E2: 2 | F2: RF | G2: M Alou | I2: 2 | J2: K Holtzman | M2: 2 | N2: RF | O2: M Alou | AA2: Avg BA (50) | AB2: =VLOOKUP(AA1,'Settings & Expansion'!M3:P137,2,FALSE) -> 0.2435
A3: K Holtzman | B3: 1.07 | C3: =IF(B3="","",ROUND((50/($AB$11-$AB$10))*(B3-$AB$11)+100,0)) -> 73 | D3: 1 | E3: 3 | F3: LF | G3: J Rudi | I3: 3 | J3: BM Odom | M3: 3 | N3: LF | O3: J Rudi | AA3: Top BA (100) | AB3: 0.333
A4: BM Odom | B4: 1.292 | C4: 46 | D4: 1 | E4: 4 | F4: RF | G4: R Jackson | I4: 4 | J4: V Blue | M4: 4 | N4: RF | O4: R Jackson
A5: V Blue | B5: 1.093 | C5: 70 | D5: 1 | E5: 5 | F5: 1B | G5: M Epstein | M5: 5 | N5: 1B | O5: M Epstein
A6: R Fingers | B6: 1.051 | C6: 75 | D6: 3 | E6: 6 | F6: 3B | G6: S Bando | M6: 6 | N6: 3B | O6: S Bando | AA6: Avg Slg% (50) | AB6: =VLOOKUP(AA1,'Settings & Expansion'!M3:P137,3,FALSE) -> 0.354
A7: J Horlen | B7: 1.119 | C7: 67 | D7: 2 | E7: 7 | F7: CF | G7: A Mangual | M7: 7 | N7: CF | O7: A Mangual | AA7: Top Slg% (100) | AB7: 0.606
A8: B Locker | B8: 1.09 | C8: 70 | D8: 3 | E8: 8 | F8: 2B | G8: T Cullen | M8: 8 | N8: 2B | O8: T Cullen
A9: D Knowles | B9: 1.31 | C9: 44 | D9: 3 | E9: 9 | F9: P | G9: C Hunter | M9: 9 | N9: P | O9: C Hunter | OP9: B Parnell
A10: G Waslewski | B10: 1.132 | C10: 65 | D10: 3 | AA10: Avg WHIP (50) | AB10: =VLOOKUP(AA1,'Settings & Expansion'!M3:P137,4,FALSE) -> 1.2605
A11: D Hamilton | B11: 1.234 | C11: 53 | D11: 2 | N11: P | O11: C Hunter | AA11: Low WHIP (100) | AB11: 0.843
A12: D Segui | B12: 1.412 | C12: 32 | D12: 3
A13: CATCHERS | C13: Contact | D13: Power | E13: Speed | F13: Def/Arm | G13: Bunt | H13: Raw Avg | I13: Raw Slg% | P13: IP | Q13: H | R13: R | S13: K | T13: ERA | W13: BB
A14: D Duncan | C14: =IF(H14="","",ROUND((50/($AB$3-$AB$2))*(H14-$AB$3)+100,0)) -> 36 | D14: =IF(I14="","",ROUND((50/($AB$7-$AB$6))*(I14-$AB$7)+100,0)) -> 58 | E14: 55 | F14: 65 | G14: 60 | H14: 0.218 | I14: 0.392 | N14: Starter | O14: C Hunter | T14: =IFERROR(IF(O14="","",R14*9/P14),"INF") -> INF
A15: G Tenace | C15: =IF(H15="","",ROUND((50/($AB$3-$AB$2))*(H15-$AB$3)+100,0)) -> 40 | D15: =IF(I15="","",ROUND((50/($AB$7-$AB$6))*(I15-$AB$7)+100,0)) -> 47 | E15: 55 | F15: 55 | G15: 55 | H15: 0.225 | I15: 0.339
A16: INFIELDERS
A17: M Epstein | C17: 65 | D17: 77 | E17: 45 | F17: 20 | G17: 45 | H17: 0.27 | I17: 0.49
A18: T Cullen | C18: 60 | D18: 45 | E18: 60 | F18: 20 | G18: 65 | H18: 0.261 | I18: 0.331
A19: B Campaneris | C19: 48 | D19: 44 | E19: 90 | F19: 20 | G19: 70 | H19: 0.24 | I19: 0.325
A20: S Bando | C20: 46 | D20: 53 | E20: 55 | F20: 20 | G20: 50 | H20: 0.236 | I20: 0.368
A21: L Brown | C21: 16 | D21: 19 | E21: 60 | F21: 20 | G21: 55 | H21: 0.183 | I21: 0.197 | T21: =IF(O21="","",R21*9/P21) -> 
A22: T Kubiak | C22: 15 | D22: 28 | E22: 60 | F22: 20 | G22: 60 | H22: 0.181 | I22: 0.245
A23: OUTFIELDERS
A24: J Rudi | C24: 84 | D24: 76 | E24: 60 | F24: 70 | G24: 40 | H24: 0.305 | I24: 0.486
A25: R Jackson | C25: 62 | D25: 74 | E25: 60 | F25: 55 | G25: 30 | H25: 0.265 | I25: 0.473
A26: A Mangual | C26: 51 | D26: 52 | E26: 55 | F26: 60 | G26: 60 | H26: 0.246 | I26: 0.364
A27: M Alou | C27: 71 | D27: 49 | E27: 60 | F27: 70 | G27: 55 | H27: 0.281 | I27: 0.347
A28: G Hendrick | C28: 16 | D28: 40 | E28: 45 | F28: 60 | G28: 65 | H28: 0.182 | I28: 0.306
A29: B Voss | C29: 41 | D29: 45 | E29: 70 | F29: 60 | G29: 50 | H29: 0.227 | I29: 0.33
C43: AB | D43: H | E43: RBI | F43: Run | G43: HR | H43: 3B | I43: 2B | J43: SB
A44: PITCHERS | C44: 0 | D44: 0 | E44: 0 | F44: 0 | G44: 0 | H44: 0 | I44: 0 | J44: 0
A45: C Hunter | C45: 0 | D45: 0 | E45: 0 | F45: 0 | G45: 0 | H45: 0 | I45: 0 | J45: 0
A46: K Holtzman | B46: 1 | C46: 0 | D46: 0 | E46: 0 | F46: 0 | G46: 0 | H46: 0 | I46: 0 | J46: 0
A47: BM Odom | C47: 0 | D47: 0 | E47: 0 | F47: 0 | G47: 0 | H47: 0 | I47: 0 | J47: 0
A48: V Blue | C48: 0 | D48: 0 | E48: 0 | F48: 0 | G48: 0 | H48: 0 | I48: 0 | J48: 0
A49: R Fingers | C49: 0 | D49: 0 | E49: 0 | F49: 0 | G49: 0 | H49: 0 | I49: 0 | J49: 0
A50: J Horlen | C50: 0 | D50: 0 | E50: 0 | F50: 0 | G50: 0 | H50: 0 | I50: 0 | J50: 0
A51: B Locker | C51: 0 | D51: 0 | E51: 0 | F51: 0 | G51: 0 | H51: 0 | I51: 0 | J51: 0
A52: D Knowles | C52: 0 | D52: 0 | E52: 0 | F52: 0 | G52: 0 | H52: 0 | I52: 0 | J52: 0
A53: G Waslewski | C53: 0 | D53: 0 | E53: 0 | F53: 0 | G53: 0 | H53: 0 | I53: 0 | J53: 0
A54: D Hamilton | C54: 0 | D54: 0 | E54: 0 | F54: 0 | G54: 0 | H54: 0 | I54: 0 | J54: 0
A55: D Segui | C55: 0 | D55: 0 | E55: 0 | F55: 0 | G55: 0 | H55: 0 | I55: 0 | J55: 0
A56: CATCHERS | C56: 0 | D56: 0 | E56: 0 | F56: 0 | G56: 0 | H56: 0 | I56: 0 | J56: 0
A57: D Duncan | B57: 1 | C57: 0 | D57: 0 | E57: 0 | F57: 0 | G57: 0 | H57: 0 | I57: 0 | J57: 0
A58: G Tenace | C58: 0 | D58: 0 | E58: 0 | F58: 0 | G58: 0 | H58: 0 | I58: 0 | J58: 0
A59: INFIELDERS | C59: 0 | D59: 0 | E59: 0 | F59: 0 | G59: 0 | H59: 0 | I59: 0 | J59: 0
A60: M Epstein | B60: 1 | C60: 0 | D60: 0 | E60: 0 | F60: 0 | G60: 0 | H60: 0 | I60: 0 | J60: 0
A61: T Cullen | B61: 1 | C61: 0 | D61: 0 | E61: 0 | F61: 0 | G61: 0 | H61: 0 | I61: 0 | J61: 0
A62: B Campaneris | B62: 1 | C62: 0 | D62: 0 | E62: 0 | F62: 0 | G62: 0 | H62: 0 | I62: 0 | J62: 0
A63: S Bando | B63: 1 | C63: 0 | D63: 0 | E63: 0 | F63: 0 | G63: 0 | H63: 0 | I63: 0 | J63: 0
A64: L Brown | C64: 0 | D64: 0 | E64: 0 | F64: 0 | G64: 0 | H64: 0 | I64: 0 | J64: 0
A65: T Kubiak | C65: 0 | D65: 0 | E65: 0 | F65: 0 | G65: 0 | H65: 0 | I65: 0 | J65: 0
A66: OUTFIELDERS | C66: 0 | D66: 0 | E66: 0 | F66: 0 | G66: 0 | H66: 0 | I66: 0 | J66: 0
A67: J Rudi | B67: 1 | C67: 0 | D67: 0 | E67: 0 | F67: 0 | G67: 0 | H67: 0 | I67: 0 | J67: 0
A68: R Jackson | B68: 1 | C68: 0 | D68: 0 | E68: 0 | F68: 0 | G68: 0 | H68: 0 | I68: 0 | J68: 0
A69: A Mangual | C69: 0 | D69: 0 | E69: 0 | F69: 0 | G69: 0 | H69: 0 | I69: 0 | J69: 0
A70: M Alou | B70: 1 | C70: 0 | D70: 0 | E70: 0 | F70: 0 | G70: 0 | H70: 0 | I70: 0 | J70: 0
A71: G Hendrick | C71: 0 | D71: 0 | E71: 0 | F71: 0 | G71: 0 | H71: 0 | I71: 0 | J71: 0
A72: B Voss | C72: 0 | D72: 0 | E72: 0 | F72: 0 | G72: 0 | H72: 0 | I72: 0 | J72: 0
B73: 99 | C73: 0 | D73: 0 | E73: 0 | F73: 0 | G73: 0 | H73: 0 | I73: 0 | J73: 0

Sheet 1971Pirates
A1: PITCHERS | B1: WHIP | C1: Effectiveness | D1: Stamina | E1: 1 | F1: 2B | G1: D Cash | I1: 1 | J1: S Blass | M1: 1 | N1: 2B | O1: D Cash | AA1: 1971
A2: S Blass | B2: 1.225 | C2: =IF(B2="","",ROUND((50/($AB$11-$AB$10))*(B2-$AB$11)+100,0)) -> 59 | D2: 1 | E2: 2 | F2: CF | G2: G Clines | I2: 2 | J2: D Ellis | M2: 2 | N2: CF | O2: G Clines | AA2: Avg BA (50) | AB2: =VLOOKUP(AA1,'Settings & Expansion'!M3:P137,2,FALSE) -> 0.2495
A3: D Ellis | B3: 1.191 | C3: =IF(B3="","",ROUND((50/($AB$11-$AB$10))*(B3-$AB$11)+100,0)) -> 63 | D3: 1 | E3: 3 | F3: RF | G3: R Clemente | I3: 3 | J3: B Johnson | M3: 3 | N3: RF | O3: R Clemente | AA3: Top BA (100) | AB3: 0.363
A4: B Johnson | B4: 1.288 | C4: 51 | D4: 1 | E4: 4 | F4: 1B | G4: B Robertson | I4: 4 | J4: L Walker | M4: 4 | N4: 1B | O4: B Robertson
A5: L Walker | B5: 1.315 | C5: 48 | D5: 1 | E5: 5 | F5: C | G5: M Sanguillen | M5: 5 | N5: C | O5: M Sanguillen
A6: D Giusti | B6: 1.279 | C6: 52 | D6: 3 | E6: 6 | F6: LF | G6: W Stargell | M6: 6 | N6: LF | O6: W Stargell | AA6: Avg Slg% (50) | AB6: =VLOOKUP(AA1,'Settings & Expansion'!M3:P137,3,FALSE) -> 0.365
A7: N Briles | B7: 1.221 | C7: 59 | D7: 2 | E7: 7 | F7: 3B | G7: J Pagan | M7: 7 | N7: 3B | O7: J Pagan | AA7: Top Slg% (100) | AB7: 0.669
A8: M Grant | B8: 1.427 | C8: 34 | D8: 3 | E8: 8 | F8: SS | G8: J Hernandez | M8: 8 | N8: SS | O8: J Hernandez
A9: B Veale | B9: 1.791 | C9: -12 | D9: 3 | E9: 9 | F9: P | G9: S Blass | M9: 9 | N9: P | O9: S Blass | OP9: T Clippard
A10: J Nelson | B10: 1.529 | C10: 21 | D10: 3 | AA10: Avg WHIP (50) | AB10: =VLOOKUP(AA1,'Settings & Expansion'!M3:P137,4,FALSE) -> 1.2965
A11: B Moose | B11: 1.457 | C11: 30 | D11: 2 | N11: P | O11: S Blass | AA11: Low WHIP (100) | AB11: 0.896
A12: B Kison | B12: 1.353 | C12: 43 | D12: 2
A13: CATCHERS | C13: Contact | D13: Power | E13: Speed | F13: Def/Arm | G13: Bunt | H13: Raw Avg | I13: Raw Slg% | P13: IP | Q13: H | R13: R | S13: K | T13: ERA | W13: BB
A14: M Sanguillen | C14: =IF(H14="","",ROUND((50/($AB$3-$AB$2))*(H14-$AB$3)+100,0)) -> 81 | D14: =IF(I14="","",ROUND((50/($AB$7-$AB$6))*(I14-$AB$7)+100,0)) -> 60 | E14: 65 | F14: 80 | G14: 60 | H14: 0.319 | I14: 0.426 | N14: Starter | O14: S Blass | P14: =ROUND(6.33333333333333,2) -> 6.33 | Q14: 7 | R14: 3 | S14: 3 | T14: =ROUND(4.2654028436019,2) -> 4.27 | W14: 2 | X14: 0 | Y14: 0 | Z14: 0
A15: M May | C15: =IF(H15="","",ROUND((50/($AB$3-$AB$2))*(H15-$AB$3)+100,0)) -> 63 | D15: =IF(I15="","",ROUND((50/($AB$7-$AB$6))*(I15-$AB$7)+100,0)) -> 61 | E15: 50 | F15: 60 | G15: 40 | H15: 0.278 | I15: 0.429 | O15: D Ellis | P15: =ROUND(0.666666666666667,2) -> 0.67 | Q15: 0 | R15: 0 | S15: 0 | T15: =ROUND(0,2) -> 0 | W15: 0 | X15: 0 | Y15: 0 | Z15: 0
A16: INFIELDERS | O16: B Johnson | P16: =ROUND(1,2) -> 1 | Q16: 0 | R16: 0 | S16: 1 | T16: =ROUND(0,2) -> 0 | U16: W | W16: 0 | X16: 0 | Y16: 0 | Z16: 0
A17: B Robertson | C17: 59 | D17: 70 | E17: 40 | F17: 20 | G17: 35 | H17: 0.271 | I17: 0.484 | O17: L Walker | P17: =ROUND(1,2) -> 1 | Q17: 1 | R17: 0 | S17: 0 | T17: =ROUND(0,2) -> 0 | V17: S | W17: 0 | X17: 0 | Y17: 0 | Z17: 0
A18: D Cash | C18: 67 | D18: 48 | E18: 70 | F18: 20 | G18: 65 | H18: 0.289 | I18: 0.354 | T18: =IFERROR(IF(O18="","",R18*9/P18),"INF") -> 
A19: G Alley | C19: 40 | D19: 46 | E19: 60 | F19: 20 | G19: 70 | H19: 0.227 | I19: 0.342
A20: R Hebner | C20: 59 | D20: 70 | E20: 50 | F20: 20 | G20: 45 | H20: 0.271 | I20: 0.487
A21: J Hernandez | C21: 31 | D21: 39 | E21: 55 | F21: 20 | G21: 60 | H21: 0.206 | I21: 0.3 | T21: =IF(O21="","",R21*9/P21) -> 
A22: B Mazeroski | C22: 52 | D22: 38 | E22: 40 | F22: 20 | G22: 65 | H22: 0.254 | I22: 0.295
A23: J Pagan | C23: 46 | D23: 46 | E23: 55 | F23: 20 | G23: 60 | H23: 0.241 | I23: 0.342
A24: OUTFIELDERS
A25: W Stargell | C25: 70 | D25: 93 | E25: 40 | F25: 60 | G25: 40 | H25: 0.295 | I25: 0.628
A26: A Oliver | C26: 64 | D26: 63 | E26: 60 | F26: 70 | G26: 55 | H26: 0.282 | I26: 0.446
A27: R Clemente | C27: 90 | D27: 73 | E27: 75 | F27: 90 | G27: 70 | H27: 0.341 | I27: 0.502
A28: V Davalillo | C28: 66 | D28: 53 | E28: 70 | F28: 60 | G28: 60 | H28: 0.285 | I28: 0.383
A29: G Clines | C29: 76 | D29: 54 | E29: 70 | F29: 60 | G29: 65 | H29: 0.308 | I29: 0.392
C43: AB | D43: H | E43: RBI | F43: Run | G43: HR | H43: 3B | I43: 2B | J43: SB
A44: PITCHERS | C44: 0 | D44: 0 | E44: 0 | F44: 0 | G44: 0 | H44: 0 | I44: 0 | J44: 0
A45: S Blass | B45: 1 | C45: 0 | D45: 0 | E45: 0 | F45: 1 | G45: 0 | H45: 0 | I45: 0 | J45: 0
A46: D Ellis | C46: 0 | D46: 0 | E46: 0 | F46: 0 | G46: 0 | H46: 0 | I46: 0 | J46: 0
A47: B Johnson | C47: 0 | D47: 0 | E47: 0 | F47: 0 | G47: 0 | H47: 0 | I47: 0 | J47: 0
A48: L Walker | C48: 0 | D48: 0 | E48: 0 | F48: 0 | G48: 0 | H48: 0 | I48: 0 | J48: 0
A49: D Giusti | C49: 0 | D49: 0 | E49: 0 | F49: 0 | G49: 0 | H49: 0 | I49: 0 | J49: 0
A50: N Briles | B50: 1 | C50: 0 | D50: 0 | E50: 0 | F50: 0 | G50: 0 | H50: 0 | I50: 0 | J50: 0
A51: M Grant | B51: 1 | C51: 0 | D51: 0 | E51: 0 | F51: 0 | G51: 0 | H51: 0 | I51: 0 | J51: 0
A52: B Veale | C52: 0 | D52: 0 | E52: 0 | F52: 0 | G52: 0 | H52: 0 | I52: 0 | J52: 0
A53: J Nelson | C53: 0 | D53: 0 | E53: 0 | F53: 0 | G53: 0 | H53: 0 | I53: 0 | J53: 0
A54: B Moose | B54: 1 | C54: 0 | D54: 0 | E54: 0 | F54: 0 | G54: 0 | H54: 0 | I54: 0 | J54: 0
A55: B Kison | C55: 0 | D55: 0 | E55: 0 | F55: 0 | G55: 0 | H55: 0 | I55: 0 | J55: 0
A56: CATCHERS | C56: 0 | D56: 0 | E56: 0 | F56: 0 | G56: 0 | H56: 0 | I56: 0 | J56: 0
A57: M Sanguillen | B57: 1 | C57: 3 | D57: 1 | E57: 0 | F57: 0 | G57: 0 | H57: 0 | I57: 0 | J57: 0
A58: M May | C58: 0 | D58: 0 | E58: 0 | F58: 0 | G58: 0 | H58: 0 | I58: 0 | J58: 0
A59: INFIELDERS | C59: 0 | D59: 0 | E59: 0 | F59: 0 | G59: 0 | H59: 0 | I59: 0 | J59: 0
A60: B Robertson | B60: 1 | C60: 4 | D60: 2 | E60: 2 | F60: 1 | G60: 1 | H60: 0 | I60: 0 | J60: 0
A61: D Cash | B61: 1 | C61: 1 | D61: 0 | E61: 0 | F61: 0 | G61: 0 | H61: 0 | I61: 0 | J61: 0
A62: G Alley | B62: 1 | C62: 3 | D62: 0 | E62: 0 | F62: 0 | G62: 0 | H62: 0 | I62: 0 | J62: 0
A63: R Hebner | B63: 1 | C63: 4 | D63: 0 | E63: 0 | F63: 0 | G63: 0 | H63: 0 | I63: 0 | J63: 0
A64: J Hernandez | B64: 1 | C64: 4 | D64: 1 | E64: 1 | F64: 1 | G64: 0 | H64: 0 | I64: 1 | J64: 0
A65: B Mazeroski | C65: 0 | D65: 0 | E65: 0 | F65: 0 | G65: 0 | H65: 0 | I65: 0 | J65: 0
A66: J Pagan | C66: 0 | D66: 0 | E66: 0 | F66: 0 | G66: 0 | H66: 0 | I66: 0 | J66: 0
A67: OUTFIELDERS | B67: 1 | C67: 4 | D67: 1 | E67: 1 | F67: 1 | G67: 1 | H67: 0 | I67: 0 | J67: 0
A68: W Stargell | B68: 1 | C68: 4 | D68: 1 | E68: 0 | F68: 0 | G68: 0 | H68: 0 | I68: 1 | J68: 0
A69: A Oliver | B69: 1 | C69: 4 | D69: 0 | E69: 0 | F69: 0 | G69: 0 | H69: 0 | I69: 0 | J69: 0
A70: R Clemente | C70: 0 | D70: 0 | E70: 0 | F70: 0 | G70: 0 | H70: 0 | I70: 0 | J70: 0
A71: V Davalillo | C71: 0 | D71: 0 | E71: 0 | F71: 0 | G71: 0 | H71: 0 | I71: 0 | J71: 0
A72: G Clines | C72: 0 | D72: 0 | E72: 0 | F72: 0 | G72: 0 | H72: 0 | I72: 0 | J72: 0
B73: 99 | C73: 0 | D73: 0 | E73: 0 | F73: 0 | G73: 0 | H73: 0 | I73: 0 | J73: 0

Sheet 1970Orioles
A1: PITCHERS | B1: WHIP | C1: Effectiveness | D1: Stamina | E1: 1 | F1: LF | G1: D Buford | I1: 1 | J1: J Palmer | M1: 1 | N1: LF | O1: D Buford | AA1: 1970
A2: J Palmer | B2: 1.19 | C2: =IF(B2="","",ROUND((50/($AB$11-$AB$10))*(B2-$AB$11)+100,0)) -> 69 | D2: 1 | E2: 2 | F2: CF | G2: P Blair | I2: 2 | J2: M Cuellar | M2: 2 | N2: CF | O2: P Blair | AA2: Avg BA (50) | AB2: =VLOOKUP(AA1,'Settings & Expansion'!M3:P137,2,FALSE) -> 0.254
A3: M Cuellar | B3: 1.149 | C3: =IF(B3="","",ROUND((50/($AB$11-$AB$10))*(B3-$AB$11)+100,0)) -> 74 | D3: 1 | E3: 3 | F3: 1B | G3: B Powell | I3: 3 | J3: D McNally | M3: 3 | N3: 1B | O3: B Powell | AA3: Top BA (100) | AB3: 0.366
A4: D McNally | B4: 1.199 | C4: 68 | D4: 1 | E4: 4 | F4: RF | G4: F Robinson | I4: 4 | J4: T Phoebus | M4: 4 | N4: RF | O4: F Robinson
A5: T Phoebus | B5: 1.244 | C5: 63 | D5: 1 | E5: 5 | F5: 3B | G5: B Robinson | M5: 5 | N5: 3B | O5: B Robinson
A6: P Reichert | B6: 1.098 | C6: 80 | D6: 3 | E6: 6 | F6: C | G6: E Hendricks | M6: 6 | N6: C | O6: E Hendricks | AA6: Avg Slg% (50) | AB6: =VLOOKUP(AA1,'Settings & Expansion'!M3:P137,3,FALSE) -> 0.3855
A7: D Hall | B7: 0.929 | C7: 100 | D7: 3 | E7: 7 | F7: 2B | G7: D Johnson | M7: 7 | N7: 2B | O7: D Johnson | AA7: Top Slg% (100) | AB7: 0.612
A8: M Lopez | B8: 1.385 | C8: 47 | D8: 2 | E8: 8 | F8: SS | G8: M Belanger | M8: 8 | N8: SS | O8: M Belanger
A9: E Watt | B9: 1.319 | C9: 54 | D9: 3 | E9: 9 | F9: P | G9: J Palmer | M9: 9 | N9: P | O9: D Hall | OP9: P Reichert
A10: D Leonhard | B10: 1.765 | C10: 2 | D10: 3 | AA10: Avg WHIP (50) | AB10: =VLOOKUP(AA1,'Settings & Expansion'!M3:P137,4,FALSE) -> 1.356
A11: J Hardin | B11: 1.211 | C11: 67 | D11: 2 | N11: P | O11: D Hall | AA11: Low WHIP (100) | AB11: 0.929
A12: M Drabowsky | B12: 1.35 | C12: 51 | D12: 3
A13: CATCHERS | C13: Contact | D13: Power | E13: Speed | F13: Def/Arm | G13: Bunt | H13: Raw Avg | I13: Raw Slg% | P13: IP | Q13: H | R13: R | S13: K | T13: ERA | W13: BB
A14: E Hendricks | C14: =IF(H14="","",ROUND((50/($AB$3-$AB$2))*(H14-$AB$3)+100,0)) -> 45 | D14: =IF(I14="","",ROUND((50/($AB$7-$AB$6))*(I14-$AB$7)+100,0)) -> 49 | E14: 55 | F14: 85 | G14: 40 | H14: 0.242 | I14: 0.382 | N14: Starter | O14: T Phoebus | P14: =ROUND(6.66666666666666,2) -> 6.67 | Q14: 5 | R14: 1 | S14: 5 | T14: =ROUND(1.34932533733133,2) -> 1.35 | U14: W | W14: 4 | X14: 0 | Y14: 0 | Z14: 0
A15: A Etchebarren | C15: =IF(H15="","",ROUND((50/($AB$3-$AB$2))*(H15-$AB$3)+100,0)) -> 45 | D15: =IF(I15="","",ROUND((50/($AB$7-$AB$6))*(I15-$AB$7)+100,0)) -> 42 | E15: 45 | F15: 60 | G15: 55 | H15: 0.243 | I15: 0.348 | O15: P Reichert | P15: =ROUND(0.333333333333333,2) -> 0.33 | Q15: 0 | R15: 0 | S15: 0 | T15: =ROUND(0,2) -> 0 | W15: 1 | X15: 0 | Y15: 0 | Z15: 0
A16: INFIELDERS | O16: E Watt | P16: =ROUND(0.666666666666667,2) -> 0.67 | Q16: 0 | R16: 0 | S16: 1 | T16: =ROUND(0,2) -> 0 | W16: 0 | X16: 0 | Y16: 0 | Z16: 0
A17: B Powell | C17: 69 | D17: 86 | E17: 30 | F17: 20 | G17: 25 | H17: 0.297 | I17: 0.549 | O17: D Hall | P17: =ROUND(1,2) -> 1 | Q17: 1 | R17: 1 | S17: 1 | T17: =ROUND(9,2) -> 9 | W17: 0 | X17: 0 | Y17: 0 | Z17: 0
A18: D Johnson | C18: 62 | D18: 51 | E18: 60 | F18: 20 | G18: 70 | H18: 0.281 | I18: 0.392 | T18: =IFERROR(IF(O18="","",R18*9/P18),"INF") -> 
A19: M Belanger | C19: 34 | D19: 22 | E19: 65 | F19: 20 | G19: 65 | H19: 0.218 | I19: 0.259 | T19: =IFERROR(IF(O19="","",R19*9/P19),"INF") -> 
A20: B Robinson | C20: 60 | D20: 60 | E20: 55 | F20: 20 | G20: 60 | H20: 0.276 | I20: 0.429 | T20: =IFERROR(IF(O20="","",R20*9/P20),"INF") -> 
A21: T Crowley | C21: 51 | D21: 51 | E21: 55 | F21: 45 | G21: 40 | H21: 0.257 | I21: 0.388 | T21: =IF(O21="","",R21*9/P21) -> 
A22: C Salmon | C22: 48 | D22: 52 | E22: 55 | F22: 20 | G22: 60 | H22: 0.25 | I22: 0.395
A23: OUTFIELDERS
A24: D Buford | C24: 58 | D24: 56 | E24: 70 | F24: 70 | G24: 65 | H24: 0.272 | I24: 0.411
A25: P Blair | C25: 56 | D25: 62 | E25: 80 | F25: 75 | G25: 65 | H25: 0.267 | I25: 0.438
A26: F Robinson | C26: 73 | D26: 80 | E26: 55 | F26: 65 | G26: 40 | H26: 0.306 | I26: 0.52
A27: M Rettenmund | C27: 80 | D27: 85 | E27: 70 | F27: 55 | G27: 55 | H27: 0.322 | I27: 0.544
A28: C Motton | C28: 38 | D28: 52 | E28: 60 | F28: 60 | G28: 55 | H28: 0.226 | I28: 0.393
A29: D Baylor | C29: 42 | D29: 17 | E29: 55 | F29: 55 | G29: 50 | H29: 0.235 | I29: 0.235
C43: AB | D43: H | E43: RBI | F43: Run | G43: HR | H43: 3B | I43: 2B | J43: SB
A44: PITCHERS | C44: 0 | D44: 0 | E44: 0 | F44: 0 | G44: 0 | H44: 0 | I44: 0 | J44: 0
A45: J Palmer | C45: 0 | D45: 0 | E45: 0 | F45: 0 | G45: 0 | H45: 0 | I45: 0 | J45: 0
A46: M Cuellar | C46: 0 | D46: 0 | E46: 0 | F46: 0 | G46: 0 | H46: 0 | I46: 0 | J46: 0
A47: D McNally | C47: 0 | D47: 0 | E47: 0 | F47: 0 | G47: 0 | H47: 0 | I47: 0 | J47: 0
A48: T Phoebus | B48: 1 | C48: 4 | D48: 2 | E48: 1 | F48: 1 | G48: 0 | H48: 0 | I48: 0 | J48: 0
A49: P Reichert | B49: 1 | C49: 0 | D49: 0 | E49: 0 | F49: 0 | G49: 0 | H49: 0 | I49: 0 | J49: 0
A50: D Hall | B50: 1 | C50: 0 | D50: 0 | E50: 0 | F50: 0 | G50: 0 | H50: 0 | I50: 0 | J50: 0
A51: M Lopez | C51: 0 | D51: 0 | E51: 0 | F51: 0 | G51: 0 | H51: 0 | I51: 0 | J51: 0
A52: E Watt | B52: 1 | C52: 0 | D52: 0 | E52: 0 | F52: 0 | G52: 0 | H52: 0 | I52: 0 | J52: 0
A53: D Leonhard | C53: 0 | D53: 0 | E53: 0 | F53: 0 | G53: 0 | H53: 0 | I53: 0 | J53: 0
A54: J Hardin | C54: 0 | D54: 0 | E54: 0 | F54: 0 | G54: 0 | H54: 0 | I54: 0 | J54: 0
A55: M Drabowsky | C55: 0 | D55: 0 | E55: 0 | F55: 0 | G55: 0 | H55: 0 | I55: 0 | J55: 0
A56: CATCHERS | C56: 0 | D56: 0 | E56: 0 | F56: 0 | G56: 0 | H56: 0 | I56: 0 | J56: 0
A57: E Hendricks | B57: 1 | C57: 3 | D57: 2 | E57: 1 | F57: 2 | G57: 0 | H57: 0 | I57: 0 | J57: 0
A58: A Etchebarren | C58: 0 | D58: 0 | E58: 0 | F58: 0 | G58: 0 | H58: 0 | I58: 0 | J58: 0
A59: INFIELDERS | C59: 0 | D59: 0 | E59: 0 | F59: 0 | G59: 0 | H59: 0 | I59: 0 | J59: 0
A60: B Powell | B60: 1 | C60: 3 | D60: 2 | E60: 2 | F60: 1 | G60: 0 | H60: 0 | I60: 1 | J60: 0
A61: D Johnson | B61: 1 | C61: 5 | D61: 1 | E61: 0 | F61: 1 | G61: 0 | H61: 0 | I61: 1 | J61: 0
A62: M Belanger | B62: 1 | C62: 4 | D62: 2 | E62: 3 | F62: 1 | G62: 0 | H62: 0 | I62: 1 | J62: 0
A63: B Robinson | B63: 1 | C63: 5 | D63: 1 | E63: 1 | F63: 1 | G63: 0 | H63: 0 | I63: 1 | J63: 0
A64: T Crowley | C64: 0 | D64: 0 | E64: 0 | F64: 0 | G64: 0 | H64: 0 | I64: 0 | J64: 0
A65: C Salmon | C65: 0 | D65: 0 | E65: 0 | F65: 0 | G65: 0 | H65: 0 | I65: 0 | J65: 0
A66: OUTFIELDERS | C66: 0 | D66: 0 | E66: 0 | F66: 0 | G66: 0 | H66: 0 | I66: 0 | J66: 0
A67: D Buford | B67: 1 | C67: 5 | D67: 0 | E67: 0 | F67: 0 | G67: 0 | H67: 0 | I67: 0 | J67: 0
A68: P Blair | B68: 1 | C68: 5 | D68: 2 | E68: 2 | F68: 2 | G68: 1 | H68: 0 | I68: 1 | J68: 0
A69: F Robinson | B69: 1 | C69: 5 | D69: 2 | E69: 0 | F69: 1 | G69: 0 | H69: 0 | I69: 1 | J69: 0
A70: M Rettenmund | C70: 0 | D70: 0 | E70: 0 | F70: 0 | G70: 0 | H70: 0 | I70: 0 | J70: 0
A71: C Motton | C71: 0 | D71: 0 | E71: 0 | F71: 0 | G71: 0 | H71: 0 | I71: 0 | J71: 0
A72: D Baylor | C72: 0 | D72: 0 | E72: 0 | F72: 0 | G72: 0 | H72: 0 | I72: 0 | J72: 0
B73: 99 | C73: 0 | D73: 0 | E73: 0 | F73: 0 | G73: 0 | H73: 0 | I73: 0 | J73: 0

Sheet 1969Mets
A1: PITCHERS | B1: WHIP | C1: Effectiveness | D1: Stamina | E1: 1 | F1: CF | G1: T Agee | I1: 1 | J1: T Seaver | M1: 1 | N1: CF | O1: T Agee | AA1: 1969
A2: T Seaver | B2: 1.039 | C2: =IF(B2="","",ROUND((50/($AB$11-$AB$10))*(B2-$AB$11)+100,0)) -> 82 | D2: 1 | E2: 2 | F2: SS | G2: B Harrelson | I2: 2 | J2: J Koosman | M2: 2 | N2: SS | O2: B Harrelson | AA2: Avg BA (50) | AB2: =VLOOKUP(AA1,'Settings & Expansion'!M3:P137,2,FALSE) -> 0.248
A3: J Koosman | B3: 1.058 | C3: =IF(B3="","",ROUND((50/($AB$11-$AB$10))*(B3-$AB$11)+100,0)) -> 80 | D3: 1 | E3: 3 | F3: LF | G3: C Jones | I3: 3 | J3: G Gentry | M3: 3 | N3: LF | O3: C Jones | AA3: Top BA (100) | AB3: 0.348
A4: G Gentry | B4: 1.168 | C4: 67 | D4: 1 | E4: 4 | F4: 1B | G4: D Clendenon | I4: 4 | J4: D Cardwell | M4: 4 | N4: 1B | O4: D Clendenon
A5: D Cardwell | B5: 1.26 | C5: 57 | D5: 1 | E5: 5 | F5: RF | G5: R Swoboda | M5: 5 | N5: RF | O5: R Swoboda
A6: R Taylor | B6: 1.118 | C6: 73 | D6: 3 | E6: 6 | F6: 3B | G6: W Garrett | M6: 6 | N6: 3B | O6: W Garrett | AA6: Avg Slg% (50) | AB6: =VLOOKUP(AA1,'Settings & Expansion'!M3:P137,3,FALSE) -> 0.369
A7: T McGraw | B7: 1.355 | C7: 46 | D7: 2 | E7: 7 | F7: C | G7: J Grote | M7: 7 | N7: C | O7: J Grote | AA7: Top Slg% (100) | AB7: 0.656
A8: N Ryan | B8: 1.265 | C8: 56 | D8: 2 | E8: 8 | F8: 2B | G8: K Boswell | M8: 8 | N8: 2B | O8: K Boswell
A9: C Koonce | B9: 1.53 | C9: 26 | D9: 2 | E9: 9 | F9: P | G9: T Seaver | M9: 9 | N9: P | O9: T Seaver
A10: J DiLauro | B10: 1.068 | C10: 79 | D10: 3 | AA10: Avg WHIP (50) | AB10: =VLOOKUP(AA1,'Settings & Expansion'!M3:P137,4,FALSE) -> 1.319
A11: J McAndrew | B11: 1.156 | C11: 69 | D11: 2 | N11: P | O11: T Seaver | AA11: Low WHIP (100) | AB11: 0.883
A12: A Jackson | B12: 2 | C12: -28 | D12: 3
A13: CATCHERS | C13: Contact | D13: Power | E13: Speed | F13: Def/Arm | G13: Bunt | H13: Raw Avg | I13: Raw Slg% | P13: IP | Q13: H | R13: R | S13: K | T13: ERA | W13: BB
A14: J Grote | C14: =IF(H14="","",ROUND((50/($AB$3-$AB$2))*(H14-$AB$3)+100,0)) -> 52 | D14: =IF(I14="","",ROUND((50/($AB$7-$AB$6))*(I14-$AB$7)+100,0)) -> 47 | E14: 45 | F14: 85 | G14: 60 | H14: 0.252 | I14: 0.351 | N14: Starter | O14: T Seaver | T14: =IFERROR(IF(O14="","",R14*9/P14),"INF") -> INF
A15: J Martin | C15: =IF(H15="","",ROUND((50/($AB$3-$AB$2))*(H15-$AB$3)+100,0)) -> 31 | D15: =IF(I15="","",ROUND((50/($AB$7-$AB$6))*(I15-$AB$7)+100,0)) -> 41 | E15: 50 | F15: 60 | G15: 45 | H15: 0.209 | I15: 0.316
A16: INFIELDERS
A17: E Kranepool | C17: 45 | D17: 50 | E17: 45 | F17: 20 | G17: 50 | H17: 0.238 | I17: 0.368
A18: K Boswell | C18: 66 | D18: 52 | E18: 60 | F18: 20 | G18: 65 | H18: 0.279 | I18: 0.381
A19: B Harrelson | C19: 50 | D19: 39 | E19: 55 | F19: 20 | G19: 55 | H19: 0.248 | I19: 0.306
A20: W Garrett | C20: 35 | D20: 32 | E20: 65 | F20: 20 | G20: 70 | H20: 0.218 | I20: 0.268
A21: A Weis | C21: 34 | D21: 36 | E21: 60 | F21: 20 | G21: 65 | H21: 0.215 | I21: 0.291 | T21: =IF(O21="","",R21*9/P21) -> 
A22: D Clendenon | C22: 52 | D22: 65 | E22: 60 | F22: 20 | G22: 40 | H22: 0.252 | I22: 0.455
A23: OUTFIELDERS
A24: C Jones | C24: 96 | D24: 70 | E24: 70 | F24: 70 | G24: 60 | H24: 0.34 | I24: 0.482
A25: T Agee | C25: 62 | D25: 67 | E25: 70 | F25: 75 | G25: 65 | H25: 0.271 | I25: 0.464
A26: R Swoboda | C26: 44 | D26: 49 | E26: 55 | F26: 65 | G26: 55 | H26: 0.235 | I26: 0.361
A27: A Shamsky | C27: 76 | D27: 71 | E27: 60 | F27: 55 | G27: 40 | H27: 0.3 | I27: 0.488
A28: R Gaspar | C28: 40 | D28: 34 | E28: 55 | F28: 60 | G28: 70 | H28: 0.228 | I28: 0.279
A29: A Otis | C29: 1 | D29: 21 | E29: 70 | F29: 60 | G29: 70 | H29: 0.151 | I29: 0.204
C43: AB | D43: H | E43: RBI | F43: Run | G43: HR | H43: 3B | I43: 2B | J43: SB
A44: PITCHERS | C44: 0 | D44: 0 | E44: 0 | F44: 0 | G44: 0 | H44: 0 | I44: 0 | J44: 0
A45: T Seaver | C45: 0 | D45: 0 | E45: 0 | F45: 0 | G45: 0 | H45: 0 | I45: 0 | J45: 0
A46: J Koosman | C46: 0 | D46: 0 | E46: 0 | F46: 0 | G46: 0 | H46: 0 | I46: 0 | J46: 0
A47: G Gentry | B47: 1 | C47: 0 | D47: 0 | E47: 0 | F47: 0 | G47: 0 | H47: 0 | I47: 0 | J47: 0
A48: D Cardwell | C48: 0 | D48: 0 | E48: 0 | F48: 0 | G48: 0 | H48: 0 | I48: 0 | J48: 0
A49: R Taylor | C49: 0 | D49: 0 | E49: 0 | F49: 0 | G49: 0 | H49: 0 | I49: 0 | J49: 0
A50: T McGraw | C50: 0 | D50: 0 | E50: 0 | F50: 0 | G50: 0 | H50: 0 | I50: 0 | J50: 0
A51: N Ryan | C51: 0 | D51: 0 | E51: 0 | F51: 0 | G51: 0 | H51: 0 | I51: 0 | J51: 0
A52: C Koonce | C52: 0 | D52: 0 | E52: 0 | F52: 0 | G52: 0 | H52: 0 | I52: 0 | J52: 0
A53: J DiLauro | C53: 0 | D53: 0 | E53: 0 | F53: 0 | G53: 0 | H53: 0 | I53: 0 | J53: 0
A54: J McAndrew | C54: 0 | D54: 0 | E54: 0 | F54: 0 | G54: 0 | H54: 0 | I54: 0 | J54: 0
A55: A Jackson | C55: 0 | D55: 0 | E55: 0 | F55: 0 | G55: 0 | H55: 0 | I55: 0 | J55: 0
A56: CATCHERS | C56: 0 | D56: 0 | E56: 0 | F56: 0 | G56: 0 | H56: 0 | I56: 0 | J56: 0
A57: J Grote | B57: 1 | C57: 0 | D57: 0 | E57: 0 | F57: 0 | G57: 0 | H57: 0 | I57: 0 | J57: 0
A58: J Martin | C58: 0 | D58: 0 | E58: 0 | F58: 0 | G58: 0 | H58: 0 | I58: 0 | J58: 0
A59: INFIELDERS | C59: 0 | D59: 0 | E59: 0 | F59: 0 | G59: 0 | H59: 0 | I59: 0 | J59: 0
A60: E Kranepool | B60: 1 | C60: 0 | D60: 0 | E60: 0 | F60: 0 | G60: 0 | H60: 0 | I60: 0 | J60: 0
A61: K Boswell | B61: 1 | C61: 0 | D61: 0 | E61: 0 | F61: 0 | G61: 0 | H61: 0 | I61: 0 | J61: 0
A62: B Harrelson | C62: 0 | D62: 0 | E62: 0 | F62: 0 | G62: 0 | H62: 0 | I62: 0 | J62: 0
A63: W Garrett | C63: 0 | D63: 0 | E63: 0 | F63: 0 | G63: 0 | H63: 0 | I63: 0 | J63: 0
A64: A Weis | B64: 1 | C64: 0 | D64: 0 | E64: 0 | F64: 0 | G64: 0 | H64: 0 | I64: 0 | J64: 0
A65: D Clendenon | B65: 1 | C65: 0 | D65: 0 | E65: 0 | F65: 0 | G65: 0 | H65: 0 | I65: 0 | J65: 0
A66: OUTFIELDERS | C66: 0 | D66: 0 | E66: 0 | F66: 0 | G66: 0 | H66: 0 | I66: 0 | J66: 0
A67: C Jones | B67: 1 | C67: 0 | D67: 0 | E67: 0 | F67: 0 | G67: 0 | H67: 0 | I67: 0 | J67: 0
A68: T Agee | B68: 1 | C68: 0 | D68: 0 | E68: 0 | F68: 0 | G68: 0 | H68: 0 | I68: 0 | J68: 0
A69: R Swoboda | B69: 1 | C69: 0 | D69: 0 | E69: 0 | F69: 0 | G69: 0 | H69: 0 | I69: 0 | J69: 0
A70: A Shamsky | C70: 0 | D70: 0 | E70: 0 | F70: 0 | G70: 0 | H70: 0 | I70: 0 | J70: 0
A71: R Gaspar | C71: 0 | D71: 0 | E71: 0 | F71: 0 | G71: 0 | H71: 0 | I71: 0 | J71: 0
A72: A Otis | C72: 0 | D72: 0 | E72: 0 | F72: 0 | G72: 0 | H72: 0 | I72: 0 | J72: 0
B73: 99 | C73: 0 | D73: 0 | E73: 0 | F73: 0 | G73: 0 | H73: 0 | I73: 0 | J73: 0

Sheet 1968Tigers
A1: PITCHERS | B1: WHIP | C1: Effectiveness | D1: Stamina | E1: 1 | F1: 2B | G1: D McAuliffe | I1: 1 | J1: D McLain | M1: 1 | N1: 2B | O1: D McAuliffe | AA1: 1968
A2: D McLain | B2: 0.905 | C2: =IF(B2="","",ROUND((50/($AB$11-$AB$10))*(B2-$AB$11)+100,0)) -> 91 | D2: 1 | E2: 2 | F2: SS | G2: M Stanley | I2: 2 | J2: M Lolich | M2: 2 | N2: SS | O2: M Stanley | AA2: Avg BA (50) | AB2: =VLOOKUP(AA1,'Settings & Expansion'!M3:P137,2,FALSE) -> 0.2365
A3: M Lolich | B3: 1.105 | C3: =IF(B3="","",ROUND((50/($AB$11-$AB$10))*(B3-$AB$11)+100,0)) -> 63 | D3: 1 | E3: 3 | F3: RF | G3: A Kaline | I3: 3 | J3: E Wilson | M3: 3 | N3: RF | O3: A Kaline | AA3: Top BA (100) | AB3: 0.335
A4: E Wilson | B4: 1.146 | C4: 57 | D4: 1 | E4: 4 | F4: 1B | G4: N Cash | I4: 4 | J4: J Sparma | M4: 4 | N4: 1B | O4: N Cash
A5: J Sparma | B5: 1.349 | C5: 28 | D5: 1 | E5: 5 | F5: LF | G5: W Horton | M5: 5 | N5: LF | O5: W Horton
A6: P Dobson | B6: 1.096 | C6: 64 | D6: 2 | E6: 6 | F6: CF | G6: J Northrup | M6: 6 | N6: CF | O6: J Northrup | AA6: Avg Slg% (50) | AB6: =VLOOKUP(AA1,'Settings & Expansion'!M3:P137,3,FALSE) -> 0.34
A7: J Hiller | B7: 1.117 | C7: 61 | D7: 2 | E7: 7 | F7: C | G7: B Freehan | M7: 7 | N7: C | O7: B Freehan | AA7: Top Slg% (100) | AB7: 0.552
A8: D Patterson | B8: 1.176 | C8: 52 | D8: 2 | E8: 8 | F8: 3B | G8: D Wert | M8: 8 | N8: 3B | O8: D Wert
A9: F Lasher | B9: 1.212 | C9: 47 | D9: 3 | E9: 9 | F9: P | G9: D McLain | M9: 9 | N9: P | O9: D McLain
A10: J Warden | B10: 1.205 | C10: 48 | D10: 3 | AA10: Avg WHIP (50) | AB10: =VLOOKUP(AA1,'Settings & Expansion'!M3:P137,4,FALSE) -> 1.193
A11: D McMahon | B11: 0.897 | C11: 92 | D11: 3 | N11: P | O11: D McLain | AA11: Low WHIP (100) | AB11: 0.842
A12: J Wyatt | B12: 1.22 | C12: 46 | D12: 3
A13: CATCHERS | C13: Contact | D13: Power | E13: Speed | F13: Def/Arm | G13: Bunt | H13: Raw Avg | I13: Raw Slg% | P13: IP | Q13: H | R13: R | S13: K | T13: ERA | W13: BB
A14: B Freehan | C14: =IF(H14="","",ROUND((50/($AB$3-$AB$2))*(H14-$AB$3)+100,0)) -> 63 | D14: =IF(I14="","",ROUND((50/($AB$7-$AB$6))*(I14-$AB$7)+100,0)) -> 77 | E14: 40 | F14: 65 | G14: 55 | H14: 0.263 | I14: 0.454 | N14: Starter | O14: D McLain | T14: =IFERROR(IF(O14="","",R14*9/P14),"INF") -> INF
A15: J Price | C15: =IF(H15="","",ROUND((50/($AB$3-$AB$2))*(H15-$AB$3)+100,0)) -> 18 | D15: =IF(I15="","",ROUND((50/($AB$7-$AB$6))*(I15-$AB$7)+100,0)) -> 34 | E15: 45 | F15: 55 | G15: 60 | H15: 0.174 | I15: 0.273
A16: INFIELDERS
A17: N Cash | C17: 63 | D17: 85 | E17: 45 | F17: 20 | G17: 40 | H17: 0.263 | I17: 0.487
A18: D McAuliffe | C18: 56 | D18: 67 | E18: 70 | F18: 20 | G18: 70 | H18: 0.249 | I18: 0.411
A19: R Oyler | C19: -2 | D19: 14 | E19: 50 | F19: 20 | G19: 55 | H19: 0.135 | I19: 0.186
A20: D Wert | C20: 31 | D20: 40 | E20: 60 | F20: 20 | G20: 65 | H20: 0.2 | I20: 0.299
A21: T Matchick | C21: 33 | D21: 37 | E21: 60 | F21: 20 | G21: 60 | H21: 0.203 | I21: 0.286 | T21: =IF(O21="","",R21*9/P21) -> 
A22: D Tracewski | C22: 9 | D22: 25 | E22: 65 | F22: 20 | G22: 60 | H22: 0.156 | I22: 0.236
A23: OUTFIELDERS
A24: W Horton | C24: 75 | D24: 98 | E24: 50 | F24: 60 | G24: 45 | H24: 0.285 | I24: 0.543
A25: M Stanley | C25: 61 | D25: 56 | E25: 65 | F25: 65 | G25: 65 | H25: 0.259 | I25: 0.364
A26: J Northrup | C26: 64 | D26: 75 | E26: 60 | F26: 65 | G26: 50 | H26: 0.264 | I26: 0.447
A27: A Kaline | C27: 76 | D27: 71 | E27: 65 | F27: 75 | G27: 55 | H27: 0.287 | I27: 0.428
A28: G Brown | C28: 118 | D28: 131 | E28: 45 | F28: 55 | G28: 35 | H28: 0.37 | I28: 0.685
A29: W Comer | C29: -7 | D29: 24 | E29: 60 | F29: 60 | G29: 65 | H29: 0.125 | I29: 0.229
C43: AB | D43: H | E43: RBI | F43: Run | G43: HR | H43: 3B | I43: 2B | J43: SB
A44: PITCHERS | C44: 0 | D44: 0 | E44: 0 | F44: 0 | G44: 0 | H44: 0 | I44: 0 | J44: 0
A45: D McLain | C45: 0 | D45: 0 | E45: 0 | F45: 0 | G45: 0 | H45: 0 | I45: 0 | J45: 0
A46: M Lolich | C46: 0 | D46: 0 | E46: 0 | F46: 0 | G46: 0 | H46: 0 | I46: 0 | J46: 0
A47: E Wilson | B47: 1 | C47: 0 | D47: 0 | E47: 0 | F47: 0 | G47: 0 | H47: 0 | I47: 0 | J47: 0
A48: J Sparma | C48: 0 | D48: 0 | E48: 0 | F48: 0 | G48: 0 | H48: 0 | I48: 0 | J48: 0
A49: P Dobson | C49: 0 | D49: 0 | E49: 0 | F49: 0 | G49: 0 | H49: 0 | I49: 0 | J49: 0
A50: J Hiller | C50: 0 | D50: 0 | E50: 0 | F50: 0 | G50: 0 | H50: 0 | I50: 0 | J50: 0
A51: D Patterson | C51: 0 | D51: 0 | E51: 0 | F51: 0 | G51: 0 | H51: 0 | I51: 0 | J51: 0
A52: F Lasher | C52: 0 | D52: 0 | E52: 0 | F52: 0 | G52: 0 | H52: 0 | I52: 0 | J52: 0
A53: J Warden | C53: 0 | D53: 0 | E53: 0 | F53: 0 | G53: 0 | H53: 0 | I53: 0 | J53: 0
A54: D McMahon | C54: 0 | D54: 0 | E54: 0 | F54: 0 | G54: 0 | H54: 0 | I54: 0 | J54: 0
A55: J Wyatt | C55: 0 | D55: 0 | E55: 0 | F55: 0 | G55: 0 | H55: 0 | I55: 0 | J55: 0
A56: CATCHERS | C56: 0 | D56: 0 | E56: 0 | F56: 0 | G56: 0 | H56: 0 | I56: 0 | J56: 0
A57: B Freehan | B57: 1 | C57: 0 | D57: 0 | E57: 0 | F57: 0 | G57: 0 | H57: 0 | I57: 0 | J57: 0
A58: J Price | C58: 0 | D58: 0 | E58: 0 | F58: 0 | G58: 0 | H58: 0 | I58: 0 | J58: 0
A59: INFIELDERS | C59: 0 | D59: 0 | E59: 0 | F59: 0 | G59: 0 | H59: 0 | I59: 0 | J59: 0
A60: N Cash | B60: 1 | C60: 0 | D60: 0 | E60: 0 | F60: 0 | G60: 0 | H60: 0 | I60: 0 | J60: 0
A61: D McAuliffe | B61: 1 | C61: 0 | D61: 0 | E61: 0 | F61: 0 | G61: 0 | H61: 0 | I61: 0 | J61: 0
A62: R Oyler | B62: 1 | C62: 0 | D62: 0 | E62: 0 | F62: 0 | G62: 0 | H62: 0 | I62: 0 | J62: 0
A63: D Wert | B63: 1 | C63: 0 | D63: 0 | E63: 0 | F63: 0 | G63: 0 | H63: 0 | I63: 0 | J63: 0
A64: T Matchick | C64: 0 | D64: 0 | E64: 0 | F64: 0 | G64: 0 | H64: 0 | I64: 0 | J64: 0
A65: D Tracewski | C65: 0 | D65: 0 | E65: 0 | F65: 0 | G65: 0 | H65: 0 | I65: 0 | J65: 0
A66: OUTFIELDERS | C66: 0 | D66: 0 | E66: 0 | F66: 0 | G66: 0 | H66: 0 | I66: 0 | J66: 0
A67: W Horton | B67: 1 | C67: 0 | D67: 0 | E67: 0 | F67: 0 | G67: 0 | H67: 0 | I67: 0 | J67: 0
A68: M Stanley | B68: 1 | C68: 0 | D68: 0 | E68: 0 | F68: 0 | G68: 0 | H68: 0 | I68: 0 | J68: 0
A69: J Northrup | B69: 1 | C69: 0 | D69: 0 | E69: 0 | F69: 0 | G69: 0 | H69: 0 | I69: 0 | J69: 0
A70: A Kaline | C70: 0 | D70: 0 | E70: 0 | F70: 0 | G70: 0 | H70: 0 | I70: 0 | J70: 0
A71: G Brown | C71: 0 | D71: 0 | E71: 0 | F71: 0 | G71: 0 | H71: 0 | I71: 0 | J71: 0
A72: W Comer | C72: 0 | D72: 0 | E72: 0 | F72: 0 | G72: 0 | H72: 0 | I72: 0 | J72: 0
B73: 99 | C73: 0 | D73: 0 | E73: 0 | F73: 0 | G73: 0 | H73: 0 | I73: 0 | J73: 0

Sheet 1967Cardinals
A1: PITCHERS | B1: WHIP | C1: Effectiveness | D1: Stamina | E1: 1 | F1: LF | G1: L Brock | I1: 1 | J1: D Hughes | M1: 1 | N1: LF | O1: L Brock | AA1: 1967
A2: D Hughes | B2: 0.954 | C2: =IF(B2="","",ROUND((50/($AB$11-$AB$10))*(B2-$AB$11)+100,0)) -> 100 | D2: 1 | E2: 2 | F2: CF | G2: C Flood | I2: 2 | J2: S Carlton | M2: 2 | N2: CF | O2: C Flood | AA2: Avg BA (50) | AB2: =VLOOKUP(AA1,'Settings & Expansion'!M3:P137,2,FALSE) -> 0.2425
A3: S Carlton | B3: 1.218 | C3: =IF(B3="","",ROUND((50/($AB$11-$AB$10))*(B3-$AB$11)+100,0)) -> 54 | D3: 1 | E3: 3 | F3: RF | G3: R Maris | I3: 3 | J3: R Washburn | M3: 3 | N3: RF | O3: R Maris | AA3: Top BA (100) | AB3: 0.357
A4: R Washburn | B4: 1.245 | C4: 49 | D4: 1 | E4: 4 | F4: 1B | G4: O Cepeda | I4: 4 | J4: B Gibson | M4: 4 | N4: 1B | O4: O Cepeda
A5: B Gibson | B5: 1.089 | C5: 76 | D5: 1 | E5: 5 | F5: C | G5: T McCarver | M5: 5 | N5: C | O5: T McCarver
A6: J Hoerner | B6: 1.091 | C6: 76 | D6: 3 | E6: 6 | F6: 3B | G6: M Shannon | M6: 6 | N6: 3B | O6: M Shannon | AA6: Avg Slg% (50) | AB6: =VLOOKUP(AA1,'Settings & Expansion'!M3:P137,3,FALSE) -> 0.357
A7: N Briles | B7: 1.152 | C7: 65 | D7: 2 | E7: 7 | F7: 2B | G7: J Javier | M7: 7 | N7: 2B | O7: J Javier | AA7: Top Slg% (100) | AB7: 0.622
A8: A Jackson | B8: 1.364 | C8: 28 | D8: 2 | E8: 8 | F8: S | G8: D Maxvill | M8: 8 | N8: S | O8: D Maxvill
A9: R Willis | B9: 1.469 | C9: 9 | D9: 3 | E9: 9 | F9: P | G9: D Hughes | M9: 9 | N9: P | O9: D Hughes | OP9: J Davis
A10: H Woodeshick | B10: 1.656 | C10: -23 | D10: 3 | AA10: Avg WHIP (50) | AB10: =VLOOKUP(AA1,'Settings & Expansion'!M3:P137,4,FALSE) -> 1.238
A11: L Jaster | B11: 1.214 | C11: 54 | D11: 2 | N11: P | O11: D Hughes | AA11: Low WHIP (100) | AB11: 0.953
A12: J Lamabe | B12: 1.112 | C12: 72 | D12: 3
A13: CATCHERS | C13: Contact | D13: Power | E13: Speed | F13: Def/Arm | G13: Bunt | H13: Raw Avg | I13: Raw Slg% | P13: IP | Q13: H | R13: R | S13: K | T13: ERA | W13: BB
A14: T McCarver | C14: =IF(H14="","",ROUND((50/($AB$3-$AB$2))*(H14-$AB$3)+100,0)) -> 73 | D14: =IF(I14="","",ROUND((50/($AB$7-$AB$6))*(I14-$AB$7)+100,0)) -> 68 | E14: 60 | F14: 80 | G14: 60 | H14: 0.295 | I14: 0.452 | N14: Starter | O14: D Hughes | T14: =IFERROR(IF(O14="","",R14*9/P14),"INF") -> INF | Y14: 0 | Z14: 0
A15: D Ricketts | C15: =IF(H15="","",ROUND((50/($AB$3-$AB$2))*(H15-$AB$3)+100,0)) -> 63 | D15: =IF(I15="","",ROUND((50/($AB$7-$AB$6))*(I15-$AB$7)+100,0)) -> 55 | E15: 50 | F15: 55 | G15: 45 | H15: 0.273 | I15: 0.384 | Y15: 0 | Z15: 0
A16: INFIELDERS | Y16: 0 | Z16: 0
A17: O Cepeda | C17: 86 | D17: 82 | E17: 40 | F17: 20 | G17: 35 | H17: 0.325 | I17: 0.524
A18: J Javier | C18: 67 | D18: 59 | E18: 60 | F18: 20 | G18: 70 | H18: 0.281 | I18: 0.404
A19: D Maxvill | C19: 43 | D19: 35 | E19: 55 | F19: 20 | G19: 65 | H19: 0.227 | I19: 0.279
A20: M Shannon | C20: 51 | D20: 52 | E20: 50 | F20: 20 | G20: 60 | H20: 0.245 | I20: 0.369
A21: P Gagliano | C21: 41 | D21: 36 | E21: 50 | F21: 20 | G21: 60 | H21: 0.221 | I21: 0.281 | T21: =IF(O21="","",R21*9/P21) -> 
A22: E Spiezio | C22: 36 | D22: 42 | E22: 40 | F22: 20 | G22: 65 | H22: 0.21 | I22: 0.314
A23: E Bressoud | C23: 3 | D23: 25 | E23: 55 | F23: 20 | G23: 40 | H23: 0.134 | I23: 0.224
A24: OUTFIELDERS
A25: L Brock | C25: 75 | D25: 72 | E25: 85 | F25: 65 | G25: 65 | H25: 0.299 | I25: 0.472
A26: C Flood | C26: 90 | D26: 61 | E26: 60 | F26: 75 | G26: 70 | H26: 0.335 | I26: 0.414
A27: R Maris | C27: 58 | D27: 59 | E27: 55 | F27: 60 | G27: 35 | H27: 0.261 | I27: 0.405
A28: B Tolan | C28: 55 | D28: 52 | E28: 70 | F28: 60 | G28: 65 | H28: 0.253 | I28: 0.37
A29: A Johnson | C29: 41 | D29: 42 | E29: 65 | F29: 55 | G29: 55 | H29: 0.223 | I29: 0.314
C43: AB | D43: H | E43: RBI | F43: Run | G43: HR | H43: 3B | I43: 2B | J43: SB
A44: PITCHERS | C44: 0 | D44: 0 | E44: 0 | F44: 0 | G44: 0 | H44: 0 | I44: 0 | J44: 0
A45: D Hughes | C45: 0 | D45: 0 | E45: 0 | F45: 0 | G45: 0 | H45: 0 | I45: 0 | J45: 0
A46: S Carlton | B46: 1 | C46: 0 | D46: 0 | E46: 0 | F46: 0 | G46: 0 | H46: 0 | I46: 0 | J46: 0
A47: R Washburn | C47: 0 | D47: 0 | E47: 0 | F47: 0 | G47: 0 | H47: 0 | I47: 0 | J47: 0
A48: B Gibson | C48: 0 | D48: 0 | E48: 0 | F48: 0 | G48: 0 | H48: 0 | I48: 0 | J48: 0
A49: J Hoerner | C49: 0 | D49: 0 | E49: 0 | F49: 0 | G49: 0 | H49: 0 | I49: 0 | J49: 0
A50: N Briles | C50: 0 | D50: 0 | E50: 0 | F50: 0 | G50: 0 | H50: 0 | I50: 0 | J50: 0
A51: A Jackson | C51: 0 | D51: 0 | E51: 0 | F51: 0 | G51: 0 | H51: 0 | I51: 0 | J51: 0
A52: R Willis | C52: 0 | D52: 0 | E52: 0 | F52: 0 | G52: 0 | H52: 0 | I52: 0 | J52: 0
A53: H Woodeshick | C53: 0 | D53: 0 | E53: 0 | F53: 0 | G53: 0 | H53: 0 | I53: 0 | J53: 0
A54: L Jaster | C54: 0 | D54: 0 | E54: 0 | F54: 0 | G54: 0 | H54: 0 | I54: 0 | J54: 0
A55: J Lamabe | C55: 0 | D55: 0 | E55: 0 | F55: 0 | G55: 0 | H55: 0 | I55: 0 | J55: 0
A56: CATCHERS | C56: 0 | D56: 0 | E56: 0 | F56: 0 | G56: 0 | H56: 0 | I56: 0 | J56: 0
A57: T McCarver | B57: 1 | C57: 0 | D57: 0 | E57: 0 | F57: 0 | G57: 0 | H57: 0 | I57: 0 | J57: 0
A58: D Ricketts | C58: 0 | D58: 0 | E58: 0 | F58: 0 | G58: 0 | H58: 0 | I58: 0 | J58: 0
A59: INFIELDERS | C59: 0 | D59: 0 | E59: 0 | F59: 0 | G59: 0 | H59: 0 | I59: 0 | J59: 0
A60: O Cepeda | B60: 1 | C60: 0 | D60: 0 | E60: 0 | F60: 0 | G60: 0 | H60: 0 | I60: 0 | J60: 0
A61: J Javier | B61: 1 | C61: 0 | D61: 0 | E61: 0 | F61: 0 | G61: 0 | H61: 0 | I61: 0 | J61: 0
A62: D Maxvill | B62: 1 | C62: 0 | D62: 0 | E62: 0 | F62: 0 | G62: 0 | H62: 0 | I62: 0 | J62: 0
A63: M Shannon | B63: 1 | C63: 0 | D63: 0 | E63: 0 | F63: 0 | G63: 0 | H63: 0 | I63: 0 | J63: 0
A64: P Gagliano | C64: 0 | D64: 0 | E64: 0 | F64: 0 | G64: 0 | H64: 0 | I64: 0 | J64: 0
A65: E Spiezio | C65: 0 | D65: 0 | E65: 0 | F65: 0 | G65: 0 | H65: 0 | I65: 0 | J65: 0
A66: E Bressoud | C66: 0 | D66: 0 | E66: 0 | F66: 0 | G66: 0 | H66: 0 | I66: 0 | J66: 0
A67: OUTFIELDERS | C67: 0 | D67: 0 | E67: 0 | F67: 0 | G67: 0 | H67: 0 | I67: 0 | J67: 0
A68: L Brock | B68: 1 | C68: 0 | D68: 0 | E68: 0 | F68: 0 | G68: 0 | H68: 0 | I68: 0 | J68: 0
A69: C Flood | B69: 1 | C69: 0 | D69: 0 | E69: 0 | F69: 0 | G69: 0 | H69: 0 | I69: 0 | J69: 0
A70: R Maris | B70: 1 | C70: 0 | D70: 0 | E70: 0 | F70: 0 | G70: 0 | H70: 0 | I70: 0 | J70: 0
A71: B Tolan | C71: 0 | D71: 0 | E71: 0 | F71: 0 | G71: 0 | H71: 0 | I71: 0 | J71: 0
A72: A Johnson | C72: 0 | D72: 0 | E72: 0 | F72: 0 | G72: 0 | H72: 0 | I72: 0 | J72: 0
B73: 99 | C73: 0 | D73: 0 | E73: 0 | F73: 0 | G73: 0 | H73: 0 | I73: 0 | J73: 0

Sheet 1963Dodgers
A1: PITCHERS | B1: WHIP | C1: Effectiveness | D1: Stamina | E1: 1 | F1: SS | G1: M Wills | I1: 1 | J1: S Koufax | M1: 1 | N1: SS | O1: M Wills | AA1: 1963
A2: S Koufax | B2: 0.875 | C2: =IF(B2="","",ROUND((50/($AB$11-$AB$10))*(B2-$AB$11)+100,0)) -> 100 | D2: 1 | E2: 2 | F2: 2B | G2: J Gilliam | I2: 2 | J2: D Drysdale | M2: 2 | N2: 2B | O2: J Gilliam | AA2: Avg BA (50) | AB2: =VLOOKUP(AA1,'Settings & Expansion'!M3:P137,2,FALSE) -> 0.246
A3: D Drysdale | B3: 1.091 | C3: =IF(B3="","",ROUND((50/($AB$11-$AB$10))*(B3-$AB$11)+100,0)) -> 72 | D3: 1 | E3: 3 | F3: CF | G3: W Davis | I3: 3 | J3: J Podres | M3: 3 | N3: CF | O3: W Davis | AA3: Top BA (100) | AB3: 0.326
A4: J Podres | B4: 1.311 | C4: 43 | D4: 1 | E4: 4 | F4: LF | G4: T Davis | I4: 4 | J4: B Miller | M4: 4 | N4: LF | O4: T Davis
A5: B Miller | B5: 1.262 | C5: 50 | D5: 1 | E5: 5 | F5: RF | G5: F Howard | M5: 5 | N5: RF | O5: F Howard
A6: R Perranoski | B6: 1.202 | C6: 57 | D6: 2 | E6: 6 | F6: 1B | G6: R Fairly | M6: 6 | N6: 1B | O6: R Fairly | AA6: Avg Slg% (50) | AB6: =VLOOKUP(AA1,'Settings & Expansion'!M3:P137,3,FALSE) -> 0.372
A7: L Sherry | B7: 1.331 | C7: 41 | D7: 2 | E7: 7 | F7: 3B | G7: K McMullen | M7: 7 | N7: 3B | O7: K McMullen | AA7: Top Slg% (100) | AB7: 0.586
A8: D Calmus | B8: 1.091 | C8: 72 | D8: 3 | E8: 8 | F8: C | G8: J Roseboro | M8: 8 | N8: C | O8: J Roseboro
A9: E Roebuck | B9: 1.86 | C9: -28 | D9: 3 | E9: 9 | F9: P | G9: S Koufax | M9: 9 | N9: P | O9: S Koufax
A10: K Rowe | B10: 1.41 | C10: 30 | D10: 3 | AA10: Avg WHIP (50) | AB10: =VLOOKUP(AA1,'Settings & Expansion'!M3:P137,4,FALSE) -> 1.2585
A11: P Richert | B11: 1.385 | C11: 34 | D11: 2 | N11: P | O11: S Koufax | AA11: Low WHIP (100) | AB11: 0.875
A12: N Willhite | B12: 1.421 | C12: 29 | D12: 2
A13: CATCHERS | C13: Contact | D13: Power | E13: Speed | F13: Def/Arm | G13: Bunt | H13: Raw Avg | I13: Raw Slg% | P13: IP | Q13: H | R13: R | S13: K | T13: ERA | W13: BB
A14: J Roseboro | C14: =IF(H14="","",ROUND((50/($AB$3-$AB$2))*(H14-$AB$3)+100,0)) -> 44 | D14: =IF(I14="","",ROUND((50/($AB$7-$AB$6))*(I14-$AB$7)+100,0)) -> 45 | E14: 45 | F14: 70 | G14: 55 | H14: 0.236 | I14: 0.351 | N14: Starter | O14: S Koufax | T14: =IFERROR(IF(O14="","",R14*9/P14),"INF") -> INF
A15: D Camilli | C15: =IF(H15="","",ROUND((50/($AB$3-$AB$2))*(H15-$AB$3)+100,0)) -> -2 | D15: =IF(I15="","",ROUND((50/($AB$7-$AB$6))*(I15-$AB$7)+100,0)) -> 25 | E15: 40 | F15: 55 | G15: 60 | H15: 0.162 | I15: 0.265
A16: INFIELDERS
A17: R Fairly | C17: 66 | D17: 54 | E17: 40 | F17: 20 | G17: 40 | H17: 0.271 | I17: 0.388
A18: J Gilliam | C18: 73 | D18: 53 | E18: 65 | F18: 20 | G18: 70 | H18: 0.282 | I18: 0.383
A19: M Wills | C19: 85 | D19: 45 | E19: 80 | F19: 20 | G19: 80 | H19: 0.302 | I19: 0.349
A20: K McMullen | C20: 44 | D20: 42 | E20: 55 | F20: 20 | G20: 55 | H20: 0.236 | I20: 0.339
A21: M Skowron | C21: 23 | D21: 30 | E21: 40 | F21: 45 | G21: 50 | H21: 0.203 | I21: 0.287 | T21: =IF(O21="","",R21*9/P21) -> 
A22: D Tracewski | C22: 38 | D22: 23 | E22: 60 | F22: 20 | G22: 60 | H22: 0.226 | I22: 0.258
A23: N Oliver | C23: 46 | D23: 35 | E23: 55 | F23: 20 | G23: 55 | H23: 0.239 | I23: 0.307
A24: OUTFIELDERS
A25: T Davis | C25: 100 | D25: 70 | E25: 65 | F25: 65 | G25: 55 | H25: 0.326 | I25: 0.457
A26: W Davis | C26: 49 | D26: 48 | E26: 75 | F26: 70 | G26: 60 | H26: 0.245 | I26: 0.365
A27: F Howard | C27: 67 | D27: 84 | E27: 40 | F27: 40 | G27: 30 | H27: 0.273 | I27: 0.518
A28: W Moon | C28: 60 | D28: 52 | E28: 55 | F28: 60 | G28: 60 | H28: 0.262 | I28: 0.382
A29: L Walls | C29: 42 | D29: 45 | E29: 50 | F29: 50 | G29: 65 | H29: 0.233 | I29: 0.349
C43: AB | D43: H | E43: RBI | F43: Run | G43: HR | H43: 3B | I43: 2B | J43: SB
A44: PITCHERS | C44: 0 | D44: 0 | E44: 0 | F44: 0 | G44: 0 | H44: 0 | I44: 0 | J44: 0
A45: S Koufax | B45: 1 | C45: 0 | D45: 0 | E45: 0 | F45: 0 | G45: 0 | H45: 0 | I45: 0 | J45: 0
A46: D Drysdale | C46: 0 | D46: 0 | E46: 0 | F46: 0 | G46: 0 | H46: 0 | I46: 0 | J46: 0
A47: J Podres | C47: 0 | D47: 0 | E47: 0 | F47: 0 | G47: 0 | H47: 0 | I47: 0 | J47: 0
A48: B Miller | C48: 0 | D48: 0 | E48: 0 | F48: 0 | G48: 0 | H48: 0 | I48: 0 | J48: 0
A49: R Perranoski | C49: 0 | D49: 0 | E49: 0 | F49: 0 | G49: 0 | H49: 0 | I49: 0 | J49: 0
A50: L Sherry | C50: 0 | D50: 0 | E50: 0 | F50: 0 | G50: 0 | H50: 0 | I50: 0 | J50: 0
A51: D Calmus | C51: 0 | D51: 0 | E51: 0 | F51: 0 | G51: 0 | H51: 0 | I51: 0 | J51: 0
A52: E Roebuck | C52: 0 | D52: 0 | E52: 0 | F52: 0 | G52: 0 | H52: 0 | I52: 0 | J52: 0
A53: K Rowe | C53: 0 | D53: 0 | E53: 0 | F53: 0 | G53: 0 | H53: 0 | I53: 0 | J53: 0
A54: P Richert | C54: 0 | D54: 0 | E54: 0 | F54: 0 | G54: 0 | H54: 0 | I54: 0 | J54: 0
A55: N Willhite | C55: 0 | D55: 0 | E55: 0 | F55: 0 | G55: 0 | H55: 0 | I55: 0 | J55: 0
A56: CATCHERS | C56: 0 | D56: 0 | E56: 0 | F56: 0 | G56: 0 | H56: 0 | I56: 0 | J56: 0
A57: J Roseboro | B57: 1 | C57: 0 | D57: 0 | E57: 0 | F57: 0 | G57: 0 | H57: 0 | I57: 0 | J57: 0
A58: D Camilli | C58: 0 | D58: 0 | E58: 0 | F58: 0 | G58: 0 | H58: 0 | I58: 0 | J58: 0
A59: INFIELDERS | C59: 0 | D59: 0 | E59: 0 | F59: 0 | G59: 0 | H59: 0 | I59: 0 | J59: 0
A60: R Fairly | B60: 1 | C60: 0 | D60: 0 | E60: 0 | F60: 0 | G60: 0 | H60: 0 | I60: 0 | J60: 0
A61: J Gilliam | B61: 1 | C61: 0 | D61: 0 | E61: 0 | F61: 0 | G61: 0 | H61: 0 | I61: 0 | J61: 0
A62: M Wills | B62: 1 | C62: 0 | D62: 0 | E62: 0 | F62: 0 | G62: 0 | H62: 0 | I62: 0 | J62: 0
A63: K McMullen | B63: 1 | C63: 0 | D63: 0 | E63: 0 | F63: 0 | G63: 0 | H63: 0 | I63: 0 | J63: 0
A64: M Skowron | C64: 0 | D64: 0 | E64: 0 | F64: 0 | G64: 0 | H64: 0 | I64: 0 | J64: 0
A65: D Tracewski | C65: 0 | D65: 0 | E65: 0 | F65: 0 | G65: 0 | H65: 0 | I65: 0 | J65: 0
A66: N Oliver | C66: 0 | D66: 0 | E66: 0 | F66: 0 | G66: 0 | H66: 0 | I66: 0 | J66: 0
A67: OUTFIELDERS | C67: 0 | D67: 0 | E67: 0 | F67: 0 | G67: 0 | H67: 0 | I67: 0 | J67: 0
A68: T Davis | B68: 1 | C68: 0 | D68: 0 | E68: 0 | F68: 0 | G68: 0 | H68: 0 | I68: 0 | J68: 0
A69: W Davis | B69: 1 | C69: 0 | D69: 0 | E69: 0 | F69: 0 | G69: 0 | H69: 0 | I69: 0 | J69: 0
A70: F Howard | B70: 1 | C70: 0 | D70: 0 | E70: 0 | F70: 0 | G70: 0 | H70: 0 | I70: 0 | J70: 0
A71: W Moon | C71: 0 | D71: 0 | E71: 0 | F71: 0 | G71: 0 | H71: 0 | I71: 0 | J71: 0
A72: L Walls | B72: 1 | C72: 0 | D72: 0 | E72: 0 | F72: 0 | G72: 0 | H72: 0 | I72: 0 | J72: 0
B73: 99 | C73: 0 | D73: 0 | E73: 0 | F73: 0 | G73: 0 | H73: 0 | I73: 0 | J73: 0

Sheet 1961Yankees
A1: PITCHERS | B1: WHIP | C1: Effectiveness | D1: Stamina | E1: 1 | F1: 2B | G1: B Richardson | I1: 1 | J1: W Ford | M1: 1 | N1: 2B | O1: B Richardson | AA1: 1961
A2: W Ford | B2: 1.18 | C2: =IF(B2="","",ROUND((50/($AB$11-$AB$10))*(B2-$AB$11)+100,0)) -> 75 | D2: 1 | E2: 2 | F2: SS | G2: T Kubek | I2: 2 | J2: B Stafford | M2: 2 | N2: SS | O2: T Kubek | AA2: Avg BA (50) | AB2: =VLOOKUP(AA1,'Settings & Expansion'!M3:P137,2,FALSE) -> 0.259
A3: B Stafford | B3: 1.164 | C3: =IF(B3="","",ROUND((50/($AB$11-$AB$10))*(B3-$AB$11)+100,0)) -> 77 | D3: 1 | E3: 3 | F3: CF | G3: M Mantle | I3: 3 | J3: R Terry | M3: 3 | N3: CF | O3: M Mantle | AA3: Top BA (100) | AB3: 0.361
A4: R Terry | B4: 1.083 | C4: 88 | D4: 1 | E4: 4 | F4: RF | G4: R Maris | I4: 4 | J4: R Sheldon | M4: 4 | N4: RF | O4: R Maris
A5: R Sheldon | B5: 1.254 | C5: 66 | D5: 1 | E5: 5 | F5: C | G5: E Howard | M5: 5 | N5: C | O5: E Howard
A6: L Arroyo | B6: 1.109 | C6: 85 | D6: 2 | E6: 6 | F6: LF | G6: Y Berra | M6: 6 | N6: LF | O6: Y Berra | AA6: Avg Slg% (50) | AB6: =VLOOKUP(AA1,'Settings & Expansion'!M3:P137,3,FALSE) -> 0.4
A7: J Coates | B7: 1.281 | C7: 62 | D7: 2 | E7: 7 | F7: 1B | G7: M Skowron | M7: 7 | N7: 1B | O7: M Skowron | AA7: Top Slg% (100) | AB7: 0.687
A8: H Reniff | B8: 1.368 | C8: 51 | D8: 3 | E8: 8 | F8: 3B | G8: C Boyer | M8: 8 | N8: 3B | O8: C Boyer
A9: T Clevenger | B9: 1.768 | C9: -2 | D9: 3 | E9: 9 | F9: P | G9: W Ford | M9: 9 | N9: P | O9: W Ford
A10: D McDevitt | B10: 2 | C10: -33 | D10: 3 | AA10: Avg WHIP (50) | AB10: =VLOOKUP(AA1,'Settings & Expansion'!M3:P137,4,FALSE) -> 1.3725
A11: B Daley | B11: 1.373 | C11: 50 | D11: 2 | N11: P | O11: W Ford | AA11: Low WHIP (100) | AB11: 0.993
A12: B Turley | B12: 1.736 | C12: 2 | D12: 2
A13: CATCHERS | C13: Contact | D13: Power | E13: Speed | F13: Def/Arm | G13: Bunt | H13: Raw Avg | I13: Raw Slg% | P13: IP | Q13: H | R13: R | S13: K | T13: ERA | W13: BB
A14: E Howard | C14: =IF(H14="","",ROUND((50/($AB$3-$AB$2))*(H14-$AB$3)+100,0)) -> 94 | D14: =IF(I14="","",ROUND((50/($AB$7-$AB$6))*(I14-$AB$7)+100,0)) -> 76 | E14: 40 | F14: 80 | G14: 55 | H14: 0.348 | I14: 0.549 | N14: Starter | O14: W Ford | T14: =IFERROR(IF(O14="","",R14*9/P14),"INF") -> INF
A15: J Blanchard | C15: =IF(H15="","",ROUND((50/($AB$3-$AB$2))*(H15-$AB$3)+100,0)) -> 73 | D15: =IF(I15="","",ROUND((50/($AB$7-$AB$6))*(I15-$AB$7)+100,0)) -> 87 | E15: 45 | F15: 60 | G15: 60 | H15: 0.305 | I15: 0.613
A16: INFIELDERS
A17: M Skowron | C17: 54 | D17: 63 | E17: 50 | F17: 50 | G17: 40 | H17: 0.267 | I17: 0.472
A18: B Richardson | C18: 51 | D18: 35 | E18: 65 | F18: 20 | G18: 70 | H18: 0.261 | I18: 0.316
A19: T Kubek | C19: 58 | D19: 49 | E19: 65 | F19: 20 | G19: 60 | H19: 0.276 | I19: 0.395
A20: C Boyer | C20: 33 | D20: 41 | E20: 60 | F20: 20 | G20: 65 | H20: 0.224 | I20: 0.347
A21: B Gardner | C21: 27 | D21: 31 | E21: 55 | F21: 20 | G21: 55 | H21: 0.212 | I21: 0.293 | T21: =IF(O21="","",R21*9/P21) -> 
A22: J DeMaestri | C22: -5 | D22: 6 | E22: 60 | F22: 20 | G22: 65 | H22: 0.146 | I22: 0.146
A23: OUTFIELDERS
A24: Y Berra | C24: 56 | D24: 61 | E24: 50 | F24: 55 | G24: 60 | H24: 0.271 | I24: 0.466
A25: M Mantle | C25: 78 | D25: 100 | E25: 75 | F25: 75 | G25: 30 | H25: 0.317 | I25: 0.687
A26: R Maris | C26: 55 | D26: 88 | E26: 60 | F26: 60 | G26: 35 | H26: 0.269 | I26: 0.62
A27: H Lopez | C27: 32 | D27: 33 | E27: 60 | F27: 65 | G27: 55 | H27: 0.222 | I27: 0.305
A28: B Cerv | C28: 56 | D28: 64 | E28: 55 | F28: 60 | G28: 60 | H28: 0.271 | I28: 0.483
A29: J Reed | C29: -1 | D29: 7 | E29: 65 | F29: 40 | G29: 55 | H29: 0.154 | I29: 0.154
C43: AB | D43: H | E43: RBI | F43: Run | G43: HR | H43: 3B | I43: 2B | J43: SB
A44: PITCHERS | C44: 0 | D44: 0 | E44: 0 | F44: 0 | G44: 0 | H44: 0 | I44: 0 | J44: 0
A45: W Ford | C45: 0 | D45: 0 | E45: 0 | F45: 0 | G45: 0 | H45: 0 | I45: 0 | J45: 0
A46: B Stafford | C46: 0 | D46: 0 | E46: 0 | F46: 0 | G46: 0 | H46: 0 | I46: 0 | J46: 0
A47: R Terry | B47: 1 | C47: 0 | D47: 0 | E47: 0 | F47: 0 | G47: 0 | H47: 0 | I47: 0 | J47: 0
A48: R Sheldon | C48: 0 | D48: 0 | E48: 0 | F48: 0 | G48: 0 | H48: 0 | I48: 0 | J48: 0
A49: L Arroyo | C49: 0 | D49: 0 | E49: 0 | F49: 0 | G49: 0 | H49: 0 | I49: 0 | J49: 0
A50: J Coates | C50: 0 | D50: 0 | E50: 0 | F50: 0 | G50: 0 | H50: 0 | I50: 0 | J50: 0
A51: H Reniff | C51: 0 | D51: 0 | E51: 0 | F51: 0 | G51: 0 | H51: 0 | I51: 0 | J51: 0
A52: T Clevenger | C52: 0 | D52: 0 | E52: 0 | F52: 0 | G52: 0 | H52: 0 | I52: 0 | J52: 0
A53: D McDevitt | C53: 0 | D53: 0 | E53: 0 | F53: 0 | G53: 0 | H53: 0 | I53: 0 | J53: 0
A54: B Daley | C54: 0 | D54: 0 | E54: 0 | F54: 0 | G54: 0 | H54: 0 | I54: 0 | J54: 0
A55: B Turley | C55: 0 | D55: 0 | E55: 0 | F55: 0 | G55: 0 | H55: 0 | I55: 0 | J55: 0
A56: CATCHERS | C56: 0 | D56: 0 | E56: 0 | F56: 0 | G56: 0 | H56: 0 | I56: 0 | J56: 0
A57: E Howard | B57: 1 | C57: 0 | D57: 0 | E57: 0 | F57: 0 | G57: 0 | H57: 0 | I57: 0 | J57: 0
A58: J Blanchard | C58: 0 | D58: 0 | E58: 0 | F58: 0 | G58: 0 | H58: 0 | I58: 0 | J58: 0
A59: INFIELDERS | C59: 0 | D59: 0 | E59: 0 | F59: 0 | G59: 0 | H59: 0 | I59: 0 | J59: 0
A60: M Skowron | B60: 1 | C60: 0 | D60: 0 | E60: 0 | F60: 0 | G60: 0 | H60: 0 | I60: 0 | J60: 0
A61: B Richardson | C61: 0 | D61: 0 | E61: 0 | F61: 0 | G61: 0 | H61: 0 | I61: 0 | J61: 0
A62: T Kubek | B62: 1 | C62: 0 | D62: 0 | E62: 0 | F62: 0 | G62: 0 | H62: 0 | I62: 0 | J62: 0
A63: C Boyer | B63: 1 | C63: 0 | D63: 0 | E63: 0 | F63: 0 | G63: 0 | H63: 0 | I63: 0 | J63: 0
A64: B Gardner | C64: 0 | D64: 0 | E64: 0 | F64: 0 | G64: 0 | H64: 0 | I64: 0 | J64: 0
A65: J DeMaestri | B65: 1 | C65: 0 | D65: 0 | E65: 0 | F65: 0 | G65: 0 | H65: 0 | I65: 0 | J65: 0
A66: OUTFIELDERS | C66: 0 | D66: 0 | E66: 0 | F66: 0 | G66: 0 | H66: 0 | I66: 0 | J66: 0
A67: Y Berra | B67: 1 | C67: 0 | D67: 0 | E67: 0 | F67: 0 | G67: 0 | H67: 0 | I67: 0 | J67: 0
A68: M Mantle | B68: 1 | C68: 0 | D68: 0 | E68: 0 | F68: 0 | G68: 0 | H68: 0 | I68: 0 | J68: 0
A69: R Maris | B69: 1 | C69: 0 | D69: 0 | E69: 0 | F69: 0 | G69: 0 | H69: 0 | I69: 0 | J69: 0
A70: H Lopez | B70: 1 | C70: 0 | D70: 0 | E70: 0 | F70: 0 | G70: 0 | H70: 0 | I70: 0 | J70: 0
A71: B Cerv | C71: 0 | D71: 0 | E71: 0 | F71: 0 | G71: 0 | H71: 0 | I71: 0 | J71: 0
A72: J Reed | C72: 0 | D72: 0 | E72: 0 | F72: 0 | G72: 0 | H72: 0 | I72: 0 | J72: 0
B73: 99 | C73: 0 | D73: 0 | E73: 0 | F73: 0 | G73: 0 | H73: 0 | I73: 0 | J73: 0

Sheet 1955Dodgers
A1: PITCHERS | B1: WHIP | C1: Effectiveness | D1: Stamina | E1: 1 | F1: 2B | G1: J Gilliam | I1: 1 | J1: D Newcombe | M1: 1 | N1: 2B | O1: J Gilliam | AA1: 1955
A2: D Newcombe | B2: 1.113 | C2: =IF(B2="","",ROUND((50/($AB$11-$AB$10))*(B2-$AB$11)+100,0)) -> 95 | D2: 1 | E2: 2 | F2: SS | G2: P Reese | I2: 2 | J2: C Erskine | M2: 2 | N2: SS | O2: P Reese | AA2: Avg BA (50) | AB2: =VLOOKUP(AA1,'Settings & Expansion'!M3:P137,2,FALSE) -> 0.2585
A3: C Erskine | B3: 1.279 | C3: =IF(B3="","",ROUND((50/($AB$11-$AB$10))*(B3-$AB$11)+100,0)) -> 68 | D3: 1 | E3: 3 | F3: CF | G3: D Snider | I3: 3 | J3: J Podres | M3: 3 | N3: CF | O3: D Snider | AA3: Top BA (100) | AB3: 0.34
A4: J Podres | B4: 1.362 | C4: 55 | D4: 1 | E4: 4 | F4: C | G4: R Campanella | I4: 4 | J4: B Loes | M4: 4 | N4: C | O4: R Campanella
A5: B Loes | B5: 1.266 | C5: 70 | D5: 1 | E5: 5 | F5: RF | G5: C Furillo | M5: 5 | N5: RF | O5: C Furillo
A6: E Roebuck | B6: 1.429 | C6: 44 | D6: 3 | E6: 6 | F6: 1B | G6: G Hodges | M6: 6 | N6: 1B | O6: G Hodges | AA6: Avg Slg% (50) | AB6: =VLOOKUP(AA1,'Settings & Expansion'!M3:P137,3,FALSE) -> 0.394
A7: C Labine | B7: 1.219 | C7: 78 | D7: 2 | E7: 7 | F7: 3B | G7: J Robinson | M7: 7 | N7: 3B | O7: J Robinson | AA7: Top Slg% (100) | AB7: 0.659
A8: K Spooner | B8: 1.216 | C8: 78 | D8: 2 | E8: 8 | F8: LF | G8: S Amaros | M8: 8 | N8: LF | O8: S Amaros
A9: D Bessent | B9: 1.137 | C9: 91 | D9: 3 | E9: 9 | F9: P | G9: D Newcombe | M9: 9 | N9: P | O9: D Newcombe
A10: J Hughes | B10: 1.406 | C10: 48 | D10: 3 | AA10: Avg WHIP (50) | AB10: =VLOOKUP(AA1,'Settings & Expansion'!M3:P137,4,FALSE) -> 1.393
A11: R Meyer | B11: 1.603 | C11: 16 | D11: 2 | N11: P | O11: D Newcombe | AA11: Low WHIP (100) | AB11: 1.08
A12: S Koufax | B12: 1.464 | C12: 39 | D12: 2
A13: CATCHERS | C13: Contact | D13: Power | E13: Speed | F13: Def/Arm | G13: Bunt | H13: Raw Avg | I13: Raw Slg% | P13: IP | Q13: H | R13: R | S13: K | T13: ERA | W13: BB
A14: R Campanella | C14: =IF(H14="","",ROUND((50/($AB$3-$AB$2))*(H14-$AB$3)+100,0)) -> 87 | D14: =IF(I14="","",ROUND((50/($AB$7-$AB$6))*(I14-$AB$7)+100,0)) -> 86 | E14: 40 | F14: 75 | G14: 50 | H14: 0.318 | I14: 0.583 | N14: Starter | O14: D Newcombe | T14: =IFERROR(IF(O14="","",R14*9/P14),"INF") -> INF
A15: R Walker | C15: =IF(H15="","",ROUND((50/($AB$3-$AB$2))*(H15-$AB$3)+100,0)) -> 46 | D15: =IF(I15="","",ROUND((50/($AB$7-$AB$6))*(I15-$AB$7)+100,0)) -> 43 | E15: 55 | F15: 55 | G15: 60 | H15: 0.252 | I15: 0.359
A16: INFIELDERS
A17: G Hodges | C17: 69 | D17: 70 | E17: 45 | F17: 20 | G17: 45 | H17: 0.289 | I17: 0.5
A18: J Gilliam | C18: 44 | D18: 43 | E18: 75 | F18: 20 | G18: 65 | H18: 0.249 | I18: 0.355
A19: P Reese | C19: 64 | D19: 52 | E19: 70 | F19: 20 | G19: 80 | H19: 0.282 | I19: 0.403
A20: J Robinson | C20: 48 | D20: 44 | E20: 80 | F20: 20 | G20: 80 | H20: 0.256 | I20: 0.363
A21: D Hoak | C21: 39 | D21: 44 | E21: 65 | F21: 20 | G21: 65 | H21: 0.24 | I21: 0.362
A22: D Zimmer | C22: 38 | D22: 59 | E22: 60 | F22: 20 | G22: 55 | H22: 0.239 | I22: 0.443 | T22: =IF(O22="","",R22*9/P22) -> 
A23: F Kellert | C23: 91 | D23: 84 | E23: 40 | F23: 20 | G23: 30 | H23: 0.325 | I23: 0.575
A24: OUTFIELDERS
A25: S Amaros | C25: 43 | D25: 52 | E25: 70 | F25: 75 | G25: 55 | H25: 0.247 | I25: 0.402
A26: D Snider | C26: 81 | D26: 94 | E26: 60 | F26: 65 | G26: 40 | H26: 0.309 | I26: 0.628
A27: C Furillo | C27: 84 | D27: 74 | E27: 60 | F27: 80 | G27: 60 | H27: 0.314 | I27: 0.52
A28: G Shuba | C28: 60 | D28: 46 | E28: 55 | F28: 75 | G28: 40 | H28: 0.275 | I28: 0.373
A29: W Moryn | C29: 53 | D29: 65 | E29: 60 | F29: 55 | G29: 60 | H29: 0.263 | I29: 0.474
C43: AB | D43: H | E43: RBI | F43: Run | G43: HR | H43: 3B | I43: 2B | J43: SB
A44: PITCHERS | C44: 0 | D44: 0 | E44: 0 | F44: 0 | G44: 0 | H44: 0 | I44: 0 | J44: 0
A45: D Newcombe | C45: 0 | D45: 0 | E45: 0 | F45: 0 | G45: 0 | H45: 0 | I45: 0 | J45: 0
A46: C Erskine | C46: 0 | D46: 0 | E46: 0 | F46: 0 | G46: 0 | H46: 0 | I46: 0 | J46: 0
A47: J Podres | B47: 1 | C47: 0 | D47: 0 | E47: 0 | F47: 0 | G47: 0 | H47: 0 | I47: 0 | J47: 0
A48: B Loes | C48: 0 | D48: 0 | E48: 0 | F48: 0 | G48: 0 | H48: 0 | I48: 0 | J48: 0
A49: E Roebuck | C49: 0 | D49: 0 | E49: 0 | F49: 0 | G49: 0 | H49: 0 | I49: 0 | J49: 0
A50: C Labine | C50: 0 | D50: 0 | E50: 0 | F50: 0 | G50: 0 | H50: 0 | I50: 0 | J50: 0
A51: K Spooner | C51: 0 | D51: 0 | E51: 0 | F51: 0 | G51: 0 | H51: 0 | I51: 0 | J51: 0
A52: D Bessent | C52: 0 | D52: 0 | E52: 0 | F52: 0 | G52: 0 | H52: 0 | I52: 0 | J52: 0
A53: J Hughes | C53: 0 | D53: 0 | E53: 0 | F53: 0 | G53: 0 | H53: 0 | I53: 0 | J53: 0
A54: R Meyer | C54: 0 | D54: 0 | E54: 0 | F54: 0 | G54: 0 | H54: 0 | I54: 0 | J54: 0
A55: S Koufax | C55: 0 | D55: 0 | E55: 0 | F55: 0 | G55: 0 | H55: 0 | I55: 0 | J55: 0
A56: CATCHERS | C56: 0 | D56: 0 | E56: 0 | F56: 0 | G56: 0 | H56: 0 | I56: 0 | J56: 0
A57: R Campanella | B57: 1 | C57: 0 | D57: 0 | E57: 0 | F57: 0 | G57: 0 | H57: 0 | I57: 0 | J57: 0
A58: R Walker | C58: 0 | D58: 0 | E58: 0 | F58: 0 | G58: 0 | H58: 0 | I58: 0 | J58: 0
A59: INFIELDERS | C59: 0 | D59: 0 | E59: 0 | F59: 0 | G59: 0 | H59: 0 | I59: 0 | J59: 0
A60: G Hodges | B60: 1 | C60: 0 | D60: 0 | E60: 0 | F60: 0 | G60: 0 | H60: 0 | I60: 0 | J60: 0
A61: J Gilliam | B61: 1 | C61: 0 | D61: 0 | E61: 0 | F61: 0 | G61: 0 | H61: 0 | I61: 0 | J61: 0
A62: P Reese | B62: 1 | C62: 0 | D62: 0 | E62: 0 | F62: 0 | G62: 0 | H62: 0 | I62: 0 | J62: 0
A63: J Robinson | B63: 1 | C63: 0 | D63: 0 | E63: 0 | F63: 0 | G63: 0 | H63: 0 | I63: 0 | J63: 0
A64: D Hoak | B64: 1 | C64: 0 | D64: 0 | E64: 0 | F64: 0 | G64: 0 | H64: 0 | I64: 0 | J64: 0
A65: D Zimmer | C65: 0 | D65: 0 | E65: 0 | F65: 0 | G65: 0 | H65: 0 | I65: 0 | J65: 0
A66: F Kellert | B66: 1 | C66: 0 | D66: 0 | E66: 0 | F66: 0 | G66: 0 | H66: 0 | I66: 0 | J66: 0
A67: OUTFIELDERS | C67: 0 | D67: 0 | E67: 0 | F67: 0 | G67: 0 | H67: 0 | I67: 0 | J67: 0
A68: S Amaros | C68: 0 | D68: 0 | E68: 0 | F68: 0 | G68: 0 | H68: 0 | I68: 0 | J68: 0
A69: D Snider | B69: 1 | C69: 0 | D69: 0 | E69: 0 | F69: 0 | G69: 0 | H69: 0 | I69: 0 | J69: 0
A70: C Furillo | B70: 1 | C70: 0 | D70: 0 | E70: 0 | F70: 0 | G70: 0 | H70: 0 | I70: 0 | J70: 0
A71: G Shuba | C71: 0 | D71: 0 | E71: 0 | F71: 0 | G71: 0 | H71: 0 | I71: 0 | J71: 0
A72: W Moryn | C72: 0 | D72: 0 | E72: 0 | F72: 0 | G72: 0 | H72: 0 | I72: 0 | J72: 0
B73: 99 | C73: 0 | D73: 0 | E73: 0 | F73: 0 | G73: 0 | H73: 0 | I73: 0 | J73: 0

Sheet 1954Giants
A1: PITCHERS | B1: WHIP | C1: Effectiveness | D1: Stamina | E1: 1 | F1: 1B | G1: W Lockman | I1: 1 | J1: J Antonelli | M1: 1 | N1: 1B | O1: W Lockman | AA1: 1954
A2: J Antonelli | B2: 1.171 | C2: =IF(B2="","",ROUND((50/($AB$11-$AB$10))*(B2-$AB$11)+100,0)) -> 80 | D2: 1 | E2: 2 | F2: SS | G2: A Dark | I2: 2 | J2: R Gomez | M2: 2 | N2: SS | O2: A Dark | AA2: Avg BA (50) | AB2: =VLOOKUP(AA1,'Settings & Expansion'!M3:P137,2,FALSE) -> 0.261
A3: R Gomez | B3: 1.403 | C3: =IF(B3="","",ROUND((50/($AB$11-$AB$10))*(B3-$AB$11)+100,0)) -> 49 | D3: 1 | E3: 3 | F3: RF | G3: D Mueller | I3: 3 | J3: S Maglie | M3: 3 | N3: RF | O3: D Mueller | AA3: Top BA (100) | AB3: 0.345
A4: S Maglie | B4: 1.337 | C4: 58 | D4: 1 | E4: 4 | F4: CF | G4: W Mays | I4: 4 | J4: J Hearn | M4: 4 | N4: CF | O4: W Mays
A5: J Hearn | B5: 1.562 | C5: 28 | D5: 1 | E5: 5 | F5: 3B | G5: H Thompson | M5: 5 | N5: 3B | O5: H Thompson
A6: M Grissom | B6: 1.226 | C6: 73 | D6: 2 | E6: 6 | F6: LF | G6: M Irvin | M6: 6 | N6: LF | O6: M Irvin | AA6: Avg Slg% (50) | AB6: =VLOOKUP(AA1,'Settings & Expansion'!M3:P137,3,FALSE) -> 0.39
A7: H Wilhelm | B7: 1.159 | C7: 82 | D7: 2 | E7: 7 | F7: 2B | G7: D Williams | M7: 7 | N7: 2B | O7: D Williams | AA7: Top Slg% (100) | AB7: 0.667
A8: W McCall | B8: 1.295 | C8: 64 | D8: 3 | E8: 8 | F8: C | G8: W Westrum | M8: 8 | N8: C | O8: W Westrum
A9: L Jansen | B9: 1.77 | C9: 1 | D9: 3 | E9: 9 | F9: P | G9: J Antonelli | M9: 9 | N9: P | O9: J Antonelli
A10: A Corwin | B10: 1.564 | C10: 28 | D10: 3 | AA10: Avg WHIP (50) | AB10: =VLOOKUP(AA1,'Settings & Expansion'!M3:P137,4,FALSE) -> 1.398
A11: D Liddle | B11: 1.224 | C11: 73 | D11: 2 | N11: P | O11: J Antonelli | AA11: Low WHIP (100) | AB11: 1.022
A12: A Worthington | B12: 2 | C12: -30 | D12: 3
A13: CATCHERS | C13: Contact | D13: Power | E13: Speed | F13: Def/Arm | G13: Bunt | H13: Raw Avg | I13: Raw Slg% | P13: IP | Q13: H | R13: R | S13: K | T13: ERA | W13: BB
A14: W Westrum | C14: =IF(H14="","",ROUND((50/($AB$3-$AB$2))*(H14-$AB$3)+100,0)) -> 6 | D14: =IF(I14="","",ROUND((50/($AB$7-$AB$6))*(I14-$AB$7)+100,0)) -> 35 | E14: 55 | F14: 75 | G14: 60 | H14: 0.187 | I14: 0.305 | N14: Starter | O14: J Antonelli | T14: =IFERROR(IF(O14="","",R14*9/P14),"INF") -> INF
A15: R Katt | C15: =IF(H15="","",ROUND((50/($AB$3-$AB$2))*(H15-$AB$3)+100,0)) -> 46 | D15: =IF(I15="","",ROUND((50/($AB$7-$AB$6))*(I15-$AB$7)+100,0)) -> 58 | E15: 45 | F15: 70 | G15: 55 | H15: 0.255 | I15: 0.435
A16: INFIELDERS
A17: W Lockman | C17: 44 | D17: 47 | E17: 45 | F17: 20 | G17: 55 | H17: 0.251 | I17: 0.375
A18: D Williams | C18: 27 | D18: 37 | E18: 65 | F18: 20 | G18: 65 | H18: 0.222 | I18: 0.316
A19: A Dark | C19: 69 | D19: 60 | E19: 75 | F19: 20 | G19: 75 | H19: 0.293 | I19: 0.446
A20: H Thompson | C20: 51 | D20: 67 | E20: 60 | F20: 20 | G20: 60 | H20: 0.263 | I20: 0.482
A21: B Hofman | C21: 28 | D21: 62 | E21: 60 | F21: 20 | G21: 55 | H21: 0.224 | I21: 0.456 | T21: =IF(O21="","",R21*9/P21) -> 
A22: B Gardner | C22: 21 | D22: 31 | E22: 60 | F22: 20 | G22: 55 | H22: 0.213 | I22: 0.287
A23: F Castleman | C23: 43 | D23: 25 | E23: 50 | F23: 20 | G23: 60 | H23: 0.25 | I23: 0.25
A24: OUTFIELDERS
A25: M Irvin | C25: 51 | D25: 59 | E25: 70 | F25: 75 | G25: 55 | H25: 0.262 | I25: 0.438
A26: W Mays | C26: 100 | D26: 100 | E26: 85 | F26: 90 | G26: 70 | H26: 0.345 | I26: 0.667
A27: D Mueller | C27: 98 | D27: 60 | E27: 55 | F27: 65 | G27: 55 | H27: 0.342 | I27: 0.444
A28: D Rhodes | C28: 98 | D28: 105 | E28: 45 | F28: 60 | G28: 55 | H28: 0.341 | I28: 0.695
A29: B Taylor | C29: 5 | D29: 32 | E29: 70 | F29: 40 | G29: 70 | H29: 0.185 | I29: 0.292
C43: AB | D43: H | E43: RBI | F43: Run | G43: HR | H43: 3B | I43: 2B | J43: SB
A44: PITCHERS | C44: 0 | D44: 0 | E44: 0 | F44: 0 | G44: 0 | H44: 0 | I44: 0 | J44: 0
A45: J Antonelli | C45: 0 | D45: 0 | E45: 0 | F45: 0 | G45: 0 | H45: 0 | I45: 0 | J45: 0
A46: R Gomez | B46: 1 | C46: 0 | D46: 0 | E46: 0 | F46: 0 | G46: 0 | H46: 0 | I46: 0 | J46: 0
A47: S Maglie | C47: 0 | D47: 0 | E47: 0 | F47: 0 | G47: 0 | H47: 0 | I47: 0 | J47: 0
A48: J Hearn | C48: 0 | D48: 0 | E48: 0 | F48: 0 | G48: 0 | H48: 0 | I48: 0 | J48: 0
A49: M Grissom | C49: 0 | D49: 0 | E49: 0 | F49: 0 | G49: 0 | H49: 0 | I49: 0 | J49: 0
A50: H Wilhelm | C50: 0 | D50: 0 | E50: 0 | F50: 0 | G50: 0 | H50: 0 | I50: 0 | J50: 0
A51: W McCall | C51: 0 | D51: 0 | E51: 0 | F51: 0 | G51: 0 | H51: 0 | I51: 0 | J51: 0
A52: L Jansen | C52: 0 | D52: 0 | E52: 0 | F52: 0 | G52: 0 | H52: 0 | I52: 0 | J52: 0
A53: A Corwin | C53: 0 | D53: 0 | E53: 0 | F53: 0 | G53: 0 | H53: 0 | I53: 0 | J53: 0
A54: D Liddle | C54: 0 | D54: 0 | E54: 0 | F54: 0 | G54: 0 | H54: 0 | I54: 0 | J54: 0
A55: A Worthington | C55: 0 | D55: 0 | E55: 0 | F55: 0 | G55: 0 | H55: 0 | I55: 0 | J55: 0
A56: CATCHERS | C56: 0 | D56: 0 | E56: 0 | F56: 0 | G56: 0 | H56: 0 | I56: 0 | J56: 0
A57: W Westrum | B57: 1 | C57: 0 | D57: 0 | E57: 0 | F57: 0 | G57: 0 | H57: 0 | I57: 0 | J57: 0
A58: R Katt | C58: 0 | D58: 0 | E58: 0 | F58: 0 | G58: 0 | H58: 0 | I58: 0 | J58: 0
A59: INFIELDERS | C59: 0 | D59: 0 | E59: 0 | F59: 0 | G59: 0 | H59: 0 | I59: 0 | J59: 0
A60: W Lockman | B60: 1 | C60: 0 | D60: 0 | E60: 0 | F60: 0 | G60: 0 | H60: 0 | I60: 0 | J60: 0
A61: D Williams | B61: 1 | C61: 0 | D61: 0 | E61: 0 | F61: 0 | G61: 0 | H61: 0 | I61: 0 | J61: 0
A62: A Dark | B62: 1 | C62: 0 | D62: 0 | E62: 0 | F62: 0 | G62: 0 | H62: 0 | I62: 0 | J62: 0
A63: H Thompson | B63: 1 | C63: 0 | D63: 0 | E63: 0 | F63: 0 | G63: 0 | H63: 0 | I63: 0 | J63: 0
A64: B Hofman | C64: 0 | D64: 0 | E64: 0 | F64: 0 | G64: 0 | H64: 0 | I64: 0 | J64: 0
A65: B Gardner | C65: 0 | D65: 0 | E65: 0 | F65: 0 | G65: 0 | H65: 0 | I65: 0 | J65: 0
A66: F Castleman | C66: 0 | D66: 0 | E66: 0 | F66: 0 | G66: 0 | H66: 0 | I66: 0 | J66: 0
A67: OUTFIELDERS | C67: 0 | D67: 0 | E67: 0 | F67: 0 | G67: 0 | H67: 0 | I67: 0 | J67: 0
A68: M Irvin | B68: 1 | C68: 0 | D68: 0 | E68: 0 | F68: 0 | G68: 0 | H68: 0 | I68: 0 | J68: 0
A69: W Mays | B69: 1 | C69: 0 | D69: 0 | E69: 0 | F69: 0 | G69: 0 | H69: 0 | I69: 0 | J69: 0
A70: D Mueller | B70: 1 | C70: 0 | D70: 0 | E70: 0 | F70: 0 | G70: 0 | H70: 0 | I70: 0 | J70: 0
A71: D Rhodes | C71: 0 | D71: 0 | E71: 0 | F71: 0 | G71: 0 | H71: 0 | I71: 0 | J71: 0
A72: B Taylor | C72: 0 | D72: 0 | E72: 0 | F72: 0 | G72: 0 | H72: 0 | I72: 0 | J72: 0
B73: 99 | C73: 0 | D73: 0 | E73: 0 | F73: 0 | G73: 0 | H73: 0 | I73: 0 | J73: 0

Sheet 1948Indians
A1: PITCHERS | B1: WHIP | C1: Effectiveness | D1: Stamina | E1: 1 | F1: LF | G1: D Mitchell | I1: 1 | J1: B Lemon | M1: 1 | N1: LF | O1: D Mitchell | AA1: 1948
A2: B Lemon | B2: 1.226 | C2: =IF(B2="","",ROUND((50/($AB$11-$AB$10))*(B2-$AB$11)+100,0)) -> 77 | D2: 1 | E2: 2 | F2: CF | G2: L Doby | I2: 2 | J2: B Feller | M2: 2 | N2: CF | O2: L Doby | AA2: Avg BA (50) | AB2: =VLOOKUP(AA1,'Settings & Expansion'!M3:P137,2,FALSE) -> 0.2635
A3: B Feller | B3: 1.323 | C3: =IF(B3="","",ROUND((50/($AB$11-$AB$10))*(B3-$AB$11)+100,0)) -> 66 | D3: 1 | E3: 3 | F3: SS | G3: L Boudreau | I3: 3 | J3: G Bearden | M3: 3 | N3: SS | O3: L Boudreau | AA3: Top BA (100) | AB3: 0.376
A4: G Bearden | B4: 1.276 | C4: 71 | D4: 1 | E4: 4 | F4: 2B | G4: J Gordon | I4: 4 | J4: S Zoldak | M4: 4 | N4: 2B | O4: J Gordon
A5: S Zoldak | B5: 1.211 | C5: 79 | D5: 1 | E5: 5 | F5: 3B | G5: K Keltner | M5: 5 | N5: 3B | O5: K Keltner
A6: R Christopher | B6: 1.39 | C6: 57 | D6: 3 | E6: 6 | F6: RF | G6: W Judnich | M6: 6 | N6: RF | O6: W Judnich | AA6: Avg Slg% (50) | AB6: =VLOOKUP(AA1,'Settings & Expansion'!M3:P137,3,FALSE) -> 0.3825
A7: S Gromek | B7: 1.231 | C7: 77 | D7: 2 | E7: 7 | F7: 1B | G7: E Robinson | M7: 7 | N7: 1B | O7: E Robinson | AA7: Top Slg% (100) | AB7: 0.702
A8: E Klieman | B8: 1.356 | C8: 62 | D8: 2 | E8: 8 | F8: C | G8: J Hegan | M8: 8 | N8: C | O8: J Hegan
A9: S Paige | B9: 1.142 | C9: 87 | D9: 2 | E9: 9 | F9: P | G9: B Lemon | M9: 9 | N9: P | O9: B Lemon
A10: B Muncrief | B10: 1.479 | C10: 47 | D10: 2 | AA10: Avg WHIP (50) | AB10: =VLOOKUP(AA1,'Settings & Expansion'!M3:P137,4,FALSE) -> 1.452
A11: D Black | B11: 1.865 | C11: 0 | D11: 3 | N11: P | O11: B Lemon | AA11: Low WHIP (100) | AB11: 1.037
A12: B Kennedy | B12: 2.559 | C12: -83 | D12: 3
A13: CATCHERS | C13: Contact | D13: Power | E13: Speed | F13: Def/Arm | G13: Bunt | H13: Raw Avg | I13: Raw Slg% | P13: IP | Q13: H | R13: R | S13: K | T13: ERA | W13: BB
A14: J Hegan | C14: =IF(H14="","",ROUND((50/($AB$3-$AB$2))*(H14-$AB$3)+100,0)) -> 43 | D14: =IF(I14="","",ROUND((50/($AB$7-$AB$6))*(I14-$AB$7)+100,0)) -> 54 | E14: 55 | F14: 75 | G14: 60 | H14: 0.248 | I14: 0.407 | N14: Starter | O14: B Lemon | T14: =IFERROR(IF(O14="","",R14*9/P14),"INF") -> INF
A15: J Tipton | C15: =IF(H15="","",ROUND((50/($AB$3-$AB$2))*(H15-$AB$3)+100,0)) -> 61 | D15: =IF(I15="","",ROUND((50/($AB$7-$AB$6))*(I15-$AB$7)+100,0)) -> 46 | E15: 60 | F15: 55 | G15: 55 | H15: 0.289 | I15: 0.356
A16: INFIELDERS | C16: =IF(H16="","",ROUND((50/($AB$3-$AB$2))*(H16-$AB$3)+100,0)) -> 
A17: E Robinson | C17: 46 | D17: 54 | E17: 40 | F17: 20 | G17: 40 | H17: 0.254 | I17: 0.408
A18: J Gordon | C18: 57 | D18: 69 | E18: 70 | F18: 20 | G18: 75 | H18: 0.28 | I18: 0.507
A19: L Boudreau | C19: 91 | D19: 74 | E19: 65 | F19: 20 | G19: 65 | H19: 0.355 | I19: 0.534
A20: K Keltner | C20: 65 | D20: 72 | E20: 60 | F20: 20 | G20: 55 | H20: 0.297 | I20: 0.522
A21: W Judnich | C21: 47 | D21: 48 | E21: 60 | F21: 20 | G21: 45 | H21: 0.257 | I21: 0.372 | T21: =IF(O21="","",R21*9/P21) -> 
A22: J Berardino | C22: 17 | D22: 34 | E22: 75 | F22: 20 | G22: 65 | H22: 0.19 | I22: 0.279
A23: A Rosen | C23: 22 | D23: 21 | E23: 55 | F23: 20 | G23: 55 | H23: 0.2 | I23: 0.2
A24: OUTFIELDERS
A25: T Tucker | C25: 48 | D25: 44 | E25: 70 | F25: 65 | G25: 60 | H25: 0.26 | I25: 0.343
A26: L Doby | C26: 67 | D26: 67 | E26: 65 | F26: 70 | G26: 45 | H26: 0.301 | I26: 0.49
A27: D Mitchell | C27: 82 | D27: 58 | E27: 60 | F27: 70 | G27: 60 | H27: 0.336 | I27: 0.431
A28: A Clark | C28: 71 | D28: 59 | E28: 55 | F28: 60 | G28: 55 | H28: 0.31 | I28: 0.443
A29: H Edwards | C29: 52 | D29: 54 | E29: 65 | F29: 55 | G29: 70 | H29: 0.269 | I29: 0.406
C43: AB | D43: H | E43: RBI | F43: Run | G43: HR | H43: 3B | I43: 2B | J43: SB
A44: PITCHERS | C44: 0 | D44: 0 | E44: 0 | F44: 0 | G44: 0 | H44: 0 | I44: 0 | J44: 0
A45: B Lemon | C45: 0 | D45: 0 | E45: 0 | F45: 0 | G45: 0 | H45: 0 | I45: 0 | J45: 0
A46: B Feller | C46: 0 | D46: 0 | E46: 0 | F46: 0 | G46: 0 | H46: 0 | I46: 0 | J46: 0
A47: G Bearden | B47: 1 | C47: 0 | D47: 0 | E47: 0 | F47: 0 | G47: 0 | H47: 0 | I47: 0 | J47: 0
A48: S Zoldak | C48: 0 | D48: 0 | E48: 0 | F48: 0 | G48: 0 | H48: 0 | I48: 0 | J48: 0
A49: R Christopher | C49: 0 | D49: 0 | E49: 0 | F49: 0 | G49: 0 | H49: 0 | I49: 0 | J49: 0
A50: S Gromek | C50: 0 | D50: 0 | E50: 0 | F50: 0 | G50: 0 | H50: 0 | I50: 0 | J50: 0
A51: E Klieman | C51: 0 | D51: 0 | E51: 0 | F51: 0 | G51: 0 | H51: 0 | I51: 0 | J51: 0
A52: S Paige | C52: 0 | D52: 0 | E52: 0 | F52: 0 | G52: 0 | H52: 0 | I52: 0 | J52: 0
A53: B Muncrief | C53: 0 | D53: 0 | E53: 0 | F53: 0 | G53: 0 | H53: 0 | I53: 0 | J53: 0
A54: D Black | C54: 0 | D54: 0 | E54: 0 | F54: 0 | G54: 0 | H54: 0 | I54: 0 | J54: 0
A55: B Kennedy | C55: 0 | D55: 0 | E55: 0 | F55: 0 | G55: 0 | H55: 0 | I55: 0 | J55: 0
A56: CATCHERS | C56: 0 | D56: 0 | E56: 0 | F56: 0 | G56: 0 | H56: 0 | I56: 0 | J56: 0
A57: J Hegan | B57: 1 | C57: 0 | D57: 0 | E57: 0 | F57: 0 | G57: 0 | H57: 0 | I57: 0 | J57: 0
A58: J Tipton | C58: 0 | D58: 0 | E58: 0 | F58: 0 | G58: 0 | H58: 0 | I58: 0 | J58: 0
A59: INFIELDERS | C59: 0 | D59: 0 | E59: 0 | F59: 0 | G59: 0 | H59: 0 | I59: 0 | J59: 0
A60: E Robinson | B60: 1 | C60: 0 | D60: 0 | E60: 0 | F60: 0 | G60: 0 | H60: 0 | I60: 0 | J60: 0
A61: J Gordon | C61: 0 | D61: 0 | E61: 0 | F61: 0 | G61: 0 | H61: 0 | I61: 0 | J61: 0
A62: L Boudreau | B62: 1 | C62: 0 | D62: 0 | E62: 0 | F62: 0 | G62: 0 | H62: 0 | I62: 0 | J62: 0
A63: K Keltner | C63: 0 | D63: 0 | E63: 0 | F63: 0 | G63: 0 | H63: 0 | I63: 0 | J63: 0
A64: W Judnich | B64: 1 | C64: 0 | D64: 0 | E64: 0 | F64: 0 | G64: 0 | H64: 0 | I64: 0 | J64: 0
A65: J Berardino | B65: 1 | C65: 0 | D65: 0 | E65: 0 | F65: 0 | G65: 0 | H65: 0 | I65: 0 | J65: 0
A66: A Rosen | C66: 0 | D66: 0 | E66: 0 | F66: 0 | G66: 0 | H66: 0 | I66: 0 | J66: 0
A67: OUTFIELDERS | C67: 0 | D67: 0 | E67: 0 | F67: 0 | G67: 0 | H67: 0 | I67: 0 | J67: 0
A68: T Tucker | C68: 0 | D68: 0 | E68: 0 | F68: 0 | G68: 0 | H68: 0 | I68: 0 | J68: 0
A69: L Doby | B69: 1 | C69: 0 | D69: 0 | E69: 0 | F69: 0 | G69: 0 | H69: 0 | I69: 0 | J69: 0
A70: D Mitchell | C70: 0 | D70: 0 | E70: 0 | F70: 0 | G70: 0 | H70: 0 | I70: 0 | J70: 0
A71: A Clark | B71: 1 | C71: 0 | D71: 0 | E71: 0 | F71: 0 | G71: 0 | H71: 0 | I71: 0 | J71: 0
A72: H Edwards | B72: 1 | C72: 0 | D72: 0 | E72: 0 | F72: 0 | G72: 0 | H72: 0 | I72: 0 | J72: 0
B73: 99 | C73: 0 | D73: 0 | E73: 0 | F73: 0 | G73: 0 | H73: 0 | I73: 0 | J73: 0

Sheet 1941Yankees
A1: PITCHERS | C1: Effectiveness | D1: Stamina | E1: 1 | F1: CF | G1: D DeJesus | I1: 1 | J1: Z Greinke | M1: 1 | N1: CF | O1: D DeJesus
A2: Z Greinke | C2: 60 | D2: 1 | E2: 2 | F2: C | G2: J Kendall | I2: 2 | J2: K Davies | M2: 2 | N2: C | O2: J Kendall
A3: K Davies | C3: 31 | D3: 1 | E3: 3 | F3: 1B | G3: B Butler | I3: 3 | J3: B Chen | M3: 3 | N3: 1B | O3: B Butler
A4: B Chen | C4: 48 | D4: 1 | E4: 4 | F4: 3B | G4: W Betemit | I4: 4 | J4: B Bannister | M4: 4 | N4: 3B | O4: W Betemit
A5: B Bannister | C5: 25 | D5: 1 | E5: 5 | F5: DH | G5: K Ka'aihue | M5: 5 | N5: DH | O5: K Ka'aihue
A6: J Soria | C6: 77 | D6: 3 | E6: 6 | F6: LF | G6: A Gordon | M6: 6 | N6: LF | O6: A Gordon
A7: R Tejeda | C7: 52 | D7: 3 | E7: 7 | F7: 2B | G7: M Aviles | M7: 7 | N7: 2B | O7: M Aviles
A8: D Hughes | C8: 39 | D8: 3 | E8: 8 | F8: RF | G8: M Maier | M8: 8 | N8: RF | O8: M Maier
A9: B Wood | C9: 34 | D9: 3 | E9: 9 | F9: SS | G9: Y Betancourt | M9: 9 | N9: SS | O9: Y Betancourt
A10: K Farnsworth | C10: 67 | D10: 3
A11: L Hochevar | C11: 43 | D11: 2 | N11: P | O11: Z Greinke
A12: S O'Sullivan | C12: 31 | D12: 2
A13: CATCHERS | C13: Contact | D13: Power | E13: Speed | F13: Def/Arm | G13: Bunt | P13: IP | Q13: H | R13: R | S13: K | T13: ERA | W13: BB
A14: J Kendall | C14: 47 | D14: 29 | E14: 55 | F14: 55 | G14: 70 | N14: Starter | O14: Z Greinke | T14: =IFERROR(IF(O14="","",R14*9/P14),"INF") -> INF
A15: B Pena | C15: 46 | D15: 37 | E15: 40 | F15: 55 | G15: 60
A16: INFIELDERS
A17: B Butler | C17: 82 | D17: 64 | E17: 50 | F17: 20 | G17: 40
A18: M Aviles | C18: 74 | D18: 53 | E18: 65 | F18: 20 | G18: 60
A19: Y Betancourt | C19: 49 | D19: 51 | E19: 65 | F19: 20 | G19: 45
A20: A Callaspo | C20: 58 | D20: 52 | E20: 65 | F20: 20 | G20: 65
A21: W Betemit | C21: 70 | D21: 72 | E21: 65 | F21: 40 | G21: 50 | T21: =IF(O21="","",R21*9/P21) -> 
A22: C Getz | C22: 37 | D22: 25 | E22: 60 | F22: 20 | G22: 60
A23: K Ka'aihue | C23: 25 | D23: 49 | E23: 45 | F23: 20 | G23: 40
A24: OUTFIELDERS
A25: S Podsednik | C25: 78 | D25: 50 | E25: 80 | F25: 40 | G25: 75
A26: M Maier | C26: 51 | D26: 45 | E26: 60 | F26: 65 | G26: 55
A27: D DeJesus | C27: 82 | D27: 59 | E27: 75 | F27: 80 | G27: 75
A28: J Guillen | C28: 47 | D28: 56 | E28: 60 | F28: 85 | G28: 35
A29: A Gordon | C29: 24 | D29: 41 | E29: 60 | F29: 60 | G29: 60
C43: AB | D43: H | E43: RBI | F43: Run | G43: HR | H43: 3B | I43: 2B | J43: SB
A44: PITCHERS | C44: 0 | D44: 0 | E44: 0 | F44: 0 | G44: 0 | H44: 0 | I44: 0 | J44: 0
A45: Z Greinke | B45: 1 | C45: 0 | D45: 0 | E45: 0 | F45: 0 | G45: 0 | H45: 0 | I45: 0 | J45: 0
A46: K Davies | C46: 0 | D46: 0 | E46: 0 | F46: 0 | G46: 0 | H46: 0 | I46: 0 | J46: 0
A47: B Chen | C47: 0 | D47: 0 | E47: 0 | F47: 0 | G47: 0 | H47: 0 | I47: 0 | J47: 0
A48: B Bannister | C48: 0 | D48: 0 | E48: 0 | F48: 0 | G48: 0 | H48: 0 | I48: 0 | J48: 0
A49: J Soria | C49: 0 | D49: 0 | E49: 0 | F49: 0 | G49: 0 | H49: 0 | I49: 0 | J49: 0
A50: R Tejeda | C50: 0 | D50: 0 | E50: 0 | F50: 0 | G50: 0 | H50: 0 | I50: 0 | J50: 0
A51: D Hughes | C51: 0 | D51: 0 | E51: 0 | F51: 0 | G51: 0 | H51: 0 | I51: 0 | J51: 0
A52: B Wood | C52: 0 | D52: 0 | E52: 0 | F52: 0 | G52: 0 | H52: 0 | I52: 0 | J52: 0
A53: K Farnsworth | C53: 0 | D53: 0 | E53: 0 | F53: 0 | G53: 0 | H53: 0 | I53: 0 | J53: 0
A54: L Hochevar | C54: 0 | D54: 0 | E54: 0 | F54: 0 | G54: 0 | H54: 0 | I54: 0 | J54: 0
A55: S O'Sullivan | C55: 0 | D55: 0 | E55: 0 | F55: 0 | G55: 0 | H55: 0 | I55: 0 | J55: 0
A56: CATCHERS | C56: 0 | D56: 0 | E56: 0 | F56: 0 | G56: 0 | H56: 0 | I56: 0 | J56: 0
A57: J Kendall | B57: 1 | C57: 0 | D57: 0 | E57: 0 | F57: 0 | G57: 0 | H57: 0 | I57: 0 | J57: 0
A58: B Pena | C58: 0 | D58: 0 | E58: 0 | F58: 0 | G58: 0 | H58: 0 | I58: 0 | J58: 0
A59: INFIELDERS | C59: 0 | D59: 0 | E59: 0 | F59: 0 | G59: 0 | H59: 0 | I59: 0 | J59: 0
A60: B Butler | B60: 1 | C60: 0 | D60: 0 | E60: 0 | F60: 0 | G60: 0 | H60: 0 | I60: 0 | J60: 0
A61: M Aviles | B61: 1 | C61: 0 | D61: 0 | E61: 0 | F61: 0 | G61: 0 | H61: 0 | I61: 0 | J61: 0
A62: Y Betancourt | B62: 1 | C62: 0 | D62: 0 | E62: 0 | F62: 0 | G62: 0 | H62: 0 | I62: 0 | J62: 0
A63: A Callaspo | C63: 0 | D63: 0 | E63: 0 | F63: 0 | G63: 0 | H63: 0 | I63: 0 | J63: 0
A64: W Betemit | B64: 1 | C64: 0 | D64: 0 | E64: 0 | F64: 0 | G64: 0 | H64: 0 | I64: 0 | J64: 0
A65: C Getz | C65: 0 | D65: 0 | E65: 0 | F65: 0 | G65: 0 | H65: 0 | I65: 0 | J65: 0
A66: K Ka'aihue | B66: 1 | C66: 0 | D66: 0 | E66: 0 | F66: 0 | G66: 0 | H66: 0 | I66: 0 | J66: 0
A67: OUTFIELDERS | C67: 0 | D67: 0 | E67: 0 | F67: 0 | G67: 0 | H67: 0 | I67: 0 | J67: 0
A68: S Podsednik | C68: 0 | D68: 0 | E68: 0 | F68: 0 | G68: 0 | H68: 0 | I68: 0 | J68: 0
A69: M Maier | B69: 1 | C69: 0 | D69: 0 | E69: 0 | F69: 0 | G69: 0 | H69: 0 | I69: 0 | J69: 0
A70: D DeJesus | B70: 1 | C70: 0 | D70: 0 | E70: 0 | F70: 0 | G70: 0 | H70: 0 | I70: 0 | J70: 0
A71: J Guillen | C71: 0 | D71: 0 | E71: 0 | F71: 0 | G71: 0 | H71: 0 | I71: 0 | J71: 0
A72: A Gordon | B72: 1 | C72: 0 | D72: 0 | E72: 0 | F72: 0 | G72: 0 | H72: 0 | I72: 0 | J72: 0
B73: 99 | C73: 0 | D73: 0 | E73: 0 | F73: 0 | G73: 0 | H73: 0 | I73: 0 | J73: 0

Sheet 1941RedSox
A1: PITCHERS | C1: Effectiveness | D1: Stamina | E1: 1 | F1: CF | G1: A Jackson | I1: 1 | J1: J Verlander | M1: 1 | N1: CF | O1: A Jackson
A2: J Verlander | C2: 67 | D2: 1 | E2: 2 | F2: 2B | G2: W Rhymes | I2: 2 | J2: M Scherzer | M2: 2 | N2: 2B | O2: W Rhymes
A3: M Scherzer | C3: 59 | D3: 1 | E3: 3 | F3: 1B | G3: M Cabrera | I3: 3 | J3: J Bonderman | M3: 3 | N3: 1B | O3: M Cabrera
A4: J Bonderman | C4: 41 | D4: 1 | E4: 4 | F4: LF | G4: B Boesch | I4: 4 | J4: R Porcello | M4: 4 | N4: LF | O4: B Boesch
A5: R Porcello | C5: 46 | D5: 1 | E5: 5 | F5: 3B | G5: J Peralta | M5: 5 | N5: 3B | O5: J Peralta
A6: J Valverde | C6: 67 | D6: 3 | E6: 6 | F6: RF | G6: R Raburn | M6: 6 | N6: RF | O6: R Raburn
A7: B Thomas | C7: 34 | D7: 2 | E7: 7 | F7: DH | G7: C Guillen | M7: 7 | N7: DH | O7: C Guillen
A8: E Bonine | C8: 31 | D8: 2 | E8: 8 | F8: C | G8: A Avila | M8: 8 | N8: C | O8: A Avila
A9: P Coke | C9: 42 | D9: 3 | E9: 9 | F9: SS | G9: R Santiago | M9: 9 | N9: SS | O9: R Santiago
A10: R Perry | C10: 60 | D10: 3
A11: A Galarraga | C11: 51 | D11: 2 | N11: P | O11: J Bonderman
A12: J Zumaya | C12: 71 | D12: 3
A13: CATCHERS | C13: Contact | D13: Power | E13: Speed | F13: Def/Arm | G13: Bunt | P13: IP | Q13: H | R13: R | S13: K | T13: ERA | W13: BB
A14: A Avila | C14: 31 | D14: 38 | E14: 55 | F14: 65 | G14: 60 | N14: Starter | O14: J Bonderman | T14: =IFERROR(IF(O14="","",R14*9/P14),"INF") -> INF
A15: G Laird | C15: 20 | D15: 31 | E15: 40 | F15: 60 | G15: 65
A16: INFIELDERS
A17: M Cabrera | C17: 88 | D17: 94 | E17: 55 | F17: 55 | G17: 35
A18: W Rhymes | C18: 74 | D18: 53 | E18: 70 | F18: 20 | G18: 70
A19: R Santiago | C19: 51 | D19: 35 | E19: 70 | F19: 20 | G19: 75
A20: B Inge | C20: 42 | D20: 49 | E20: 65 | F20: 40 | G20: 60
A21: C Guillen | C21: 57 | D21: 54 | E21: 35 | F21: 20 | G21: 70 | T21: =IF(O21="","",R21*9/P21) -> 
A22: J Peralta | C22: 46 | D22: 49 | E22: 40 | F22: 20 | G22: 40
A23: S Sizemore | C23: 29 | D23: 37 | E23: 70 | F23: 20 | G23: 65
A24: OUTFIELDERS
A25: R Raburn | C25: 61 | D25: 65 | E25: 70 | F25: 70 | G25: 65
A26: M Ordonez | C26: 74 | D26: 65 | E26: 60 | F26: 60 | G26: 50
A27: J Damon | C27: 56 | D27: 50 | E27: 65 | F27: 30 | G27: 65
A28: B Boesch | C28: 47 | D28: 53 | E28: 65 | F28: 70 | G28: 60
A29: A Jackson | C29: 68 | D29: 50 | E29: 75 | F29: 75 | G29: 55
C43: AB | D43: H | E43: RBI | F43: Run | G43: HR | H43: 3B | I43: 2B | J43: SB
A44: PITCHERS | C44: 0 | D44: 0 | E44: 0 | F44: 0 | G44: 0 | H44: 0 | I44: 0 | J44: 0
A45: J Verlander | C45: 0 | D45: 0 | E45: 0 | F45: 0 | G45: 0 | H45: 0 | I45: 0 | J45: 0
A46: M Scherzer | C46: 0 | D46: 0 | E46: 0 | F46: 0 | G46: 0 | H46: 0 | I46: 0 | J46: 0
A47: J Bonderman | B47: 1 | C47: 0 | D47: 0 | E47: 0 | F47: 0 | G47: 0 | H47: 0 | I47: 0 | J47: 0
A48: R Porcello | C48: 0 | D48: 0 | E48: 0 | F48: 0 | G48: 0 | H48: 0 | I48: 0 | J48: 0
A49: J Valverde | C49: 0 | D49: 0 | E49: 0 | F49: 0 | G49: 0 | H49: 0 | I49: 0 | J49: 0
A50: B Thomas | C50: 0 | D50: 0 | E50: 0 | F50: 0 | G50: 0 | H50: 0 | I50: 0 | J50: 0
A51: E Bonine | C51: 0 | D51: 0 | E51: 0 | F51: 0 | G51: 0 | H51: 0 | I51: 0 | J51: 0
A52: P Coke | C52: 0 | D52: 0 | E52: 0 | F52: 0 | G52: 0 | H52: 0 | I52: 0 | J52: 0
A53: R Perry | C53: 0 | D53: 0 | E53: 0 | F53: 0 | G53: 0 | H53: 0 | I53: 0 | J53: 0
A54: A Galarraga | C54: 0 | D54: 0 | E54: 0 | F54: 0 | G54: 0 | H54: 0 | I54: 0 | J54: 0
A55: J Zumaya | C55: 0 | D55: 0 | E55: 0 | F55: 0 | G55: 0 | H55: 0 | I55: 0 | J55: 0
A56: CATCHERS | C56: 0 | D56: 0 | E56: 0 | F56: 0 | G56: 0 | H56: 0 | I56: 0 | J56: 0
A57: A Avila | B57: 1 | C57: 0 | D57: 0 | E57: 0 | F57: 0 | G57: 0 | H57: 0 | I57: 0 | J57: 0
A58: G Laird | C58: 0 | D58: 0 | E58: 0 | F58: 0 | G58: 0 | H58: 0 | I58: 0 | J58: 0
A59: INFIELDERS | C59: 0 | D59: 0 | E59: 0 | F59: 0 | G59: 0 | H59: 0 | I59: 0 | J59: 0
A60: M Cabrera | B60: 1 | C60: 0 | D60: 0 | E60: 0 | F60: 0 | G60: 0 | H60: 0 | I60: 0 | J60: 0
A61: W Rhymes | B61: 1 | C61: 0 | D61: 0 | E61: 0 | F61: 0 | G61: 0 | H61: 0 | I61: 0 | J61: 0
A62: R Santiago | B62: 1 | C62: 0 | D62: 0 | E62: 0 | F62: 0 | G62: 0 | H62: 0 | I62: 0 | J62: 0
A63: B Inge | C63: 0 | D63: 0 | E63: 0 | F63: 0 | G63: 0 | H63: 0 | I63: 0 | J63: 0
A64: C Guillen | B64: 1 | C64: 0 | D64: 0 | E64: 0 | F64: 0 | G64: 0 | H64: 0 | I64: 0 | J64: 0
A65: J Peralta | B65: 1 | C65: 0 | D65: 0 | E65: 0 | F65: 0 | G65: 0 | H65: 0 | I65: 0 | J65: 0
A66: S Sizemore | C66: 0 | D66: 0 | E66: 0 | F66: 0 | G66: 0 | H66: 0 | I66: 0 | J66: 0
A67: OUTFIELDERS | C67: 0 | D67: 0 | E67: 0 | F67: 0 | G67: 0 | H67: 0 | I67: 0 | J67: 0
A68: R Raburn | B68: 1 | C68: 0 | D68: 0 | E68: 0 | F68: 0 | G68: 0 | H68: 0 | I68: 0 | J68: 0
A69: M Ordonez | C69: 0 | D69: 0 | E69: 0 | F69: 0 | G69: 0 | H69: 0 | I69: 0 | J69: 0
A70: J Damon | C70: 0 | D70: 0 | E70: 0 | F70: 0 | G70: 0 | H70: 0 | I70: 0 | J70: 0
A71: B Boesch | B71: 1 | C71: 0 | D71: 0 | E71: 0 | F71: 0 | G71: 0 | H71: 0 | I71: 0 | J71: 0
A72: A Jackson | B72: 1 | C72: 0 | D72: 0 | E72: 0 | F72: 0 | G72: 0 | H72: 0 | I72: 0 | J72: 0
B73: 99 | C73: 0 | D73: 0 | E73: 0 | F73: 0 | G73: 0 | H73: 0 | I73: 0 | J73: 0

Sheet 1935Tigers
A1: PITCHERS | C1: Effectiveness | D1: Stamina | E1: 1 | F1: CF | G1: D Span | I1: 1 | J1: C Pavano | M1: 1 | N1: CF | O1: D Span
A2: C Pavano | C2: 64 | D2: 1 | E2: 2 | F2: 2B | G2: O Hudson | I2: 2 | J2: F Liriano | M2: 2 | N2: 2B | O2: O Hudson
A3: F Liriano | C3: 58 | D3: 1 | E3: 3 | F3: C | G3: J Mauer | I3: 3 | J3: S Baker | M3: 3 | N3: C | O3: J Mauer
A4: S Baker | C4: 51 | D4: 1 | E4: 4 | F4: 1B | G4: J Morneau | I4: 4 | J4: N Blackburn | M4: 4 | N4: 1B | O4: J Morneau
A5: N Blackburn | C5: 41 | D5: 1 | E5: 5 | F5: LF | G5: D Young | M5: 5 | N5: LF | O5: D Young
A6: M Capps | C6: 65 | D6: 3 | E6: 6 | F6: DH | G6: J Thome | M6: 6 | N6: DH | O6: J Thome
A7: J Rauch | C7: 54 | D7: 3 | E7: 7 | F7: 3B | G7: D Valencia | M7: 7 | N7: 3B | O7: D Valencia
A8: B Duensing | C8: 63 | D8: 2 | E8: 8 | F8: SS | G8: J Hardy | M8: 8 | N8: SS | O8: J Hardy
A9: M Guerrier | C9: 73 | D9: 3 | E9: 9 | F9: RF | G9: M Cuddyer | M9: 9 | N9: RF | O9: M Cuddyer
A10: J Crain | C10: 66 | D10: 3
A11: J Mijares | C11: 53 | D11: 3 | N11: P | O11: S Baker
A12: R Mahay | C12: 63 | D12: 3
A13: CATCHERS | C13: Contact | D13: Power | E13: Speed | F13: Def/Arm | G13: Bunt | P13: IP | Q13: H | R13: R | S13: K | T13: ERA | W13: BB
A14: J Mauer | C14: 87 | D14: 64 | E14: 60 | F14: 75 | G14: 60 | N14: Starter | O14: S Baker | T14: =IFERROR(IF(O14="","",R14*9/P14),"INF") -> INF
A15: D Butera | C15: 14 | D15: 29 | E15: 50 | F15: 60 | G15: 55
A16: INFIELDERS
A17: O Hudson | C17: 54 | D17: 44 | E17: 75 | F17: 20 | G17: 75
A18: J Hardy | C18: 54 | D18: 49 | E18: 60 | F18: 20 | G18: 60
A19: D Valencia | C19: 78 | D19: 60 | E19: 60 | F19: 20 | G19: 55
A20: J Thome | C20: 62 | D20: 95 | E20: 30 | F20: 20 | G20: 20
A21: J Morneau | C21: 97 | D21: 94 | E21: 50 | F21: 20 | G21: 25 | T21: =IF(O21="","",R21*9/P21) -> 
A22: N Punto | C22: 37 | D22: 30 | E22: 70 | F22: 20 | G22: 80
A23: A Casilla | C23: 58 | D23: 49 | E23: 70 | F23: 20 | G23: 75
A24: OUTFIELDERS
A25: M Cuddyer | C25: 56 | D25: 53 | E25: 60 | F25: 60 | G25: 70
A26: D Young | C26: 71 | D26: 69 | E26: 65 | F26: 70 | G26: 60
A27: D Span | C27: 52 | D27: 40 | E27: 75 | F27: 70 | G27: 75
A28: J Kubel | C28: 43 | D28: 55 | E28: 50 | F28: 65 | G28: 40
A29: J Repko | C29: 31 | D29: 39 | E29: 70 | F29: 50 | G29: 60
C43: AB | D43: H | E43: RBI | F43: Run | G43: HR
A44: PITCHERS | C44: 0 | D44: 0 | E44: 0 | F44: 0 | G44: 0 | H44: 0 | I44: 0 | J44: 0
A45: C Pavano | C45: 0 | D45: 0 | E45: 0 | F45: 0 | G45: 0 | H45: 0 | I45: 0 | J45: 0
A46: F Liriano | C46: 0 | D46: 0 | E46: 0 | F46: 0 | G46: 0 | H46: 0 | I46: 0 | J46: 0
A47: S Baker | B47: 1 | C47: 0 | D47: 0 | E47: 0 | F47: 0 | G47: 0 | H47: 0 | I47: 0 | J47: 0
A48: N Blackburn | C48: 0 | D48: 0 | E48: 0 | F48: 0 | G48: 0 | H48: 0 | I48: 0 | J48: 0
A49: M Capps | C49: 0 | D49: 0 | E49: 0 | F49: 0 | G49: 0 | H49: 0 | I49: 0 | J49: 0
A50: J Rauch | C50: 0 | D50: 0 | E50: 0 | F50: 0 | G50: 0 | H50: 0 | I50: 0 | J50: 0
A51: B Duensing | C51: 0 | D51: 0 | E51: 0 | F51: 0 | G51: 0 | H51: 0 | I51: 0 | J51: 0
A52: M Guerrier | C52: 0 | D52: 0 | E52: 0 | F52: 0 | G52: 0 | H52: 0 | I52: 0 | J52: 0
A53: J Crain | C53: 0 | D53: 0 | E53: 0 | F53: 0 | G53: 0 | H53: 0 | I53: 0 | J53: 0
A54: J Mijares | C54: 0 | D54: 0 | E54: 0 | F54: 0 | G54: 0 | H54: 0 | I54: 0 | J54: 0
A55: R Mahay | C55: 0 | D55: 0 | E55: 0 | F55: 0 | G55: 0 | H55: 0 | I55: 0 | J55: 0
A56: CATCHERS | C56: 0 | D56: 0 | E56: 0 | F56: 0 | G56: 0 | H56: 0 | I56: 0 | J56: 0
A57: J Mauer | B57: 1 | C57: 0 | D57: 0 | E57: 0 | F57: 0 | G57: 0 | H57: 0 | I57: 0 | J57: 0
A58: D Butera | C58: 0 | D58: 0 | E58: 0 | F58: 0 | G58: 0 | H58: 0 | I58: 0 | J58: 0
A59: INFIELDERS | C59: 0 | D59: 0 | E59: 0 | F59: 0 | G59: 0 | H59: 0 | I59: 0 | J59: 0
A60: M Cuddyer | B60: 1 | C60: 0 | D60: 0 | E60: 0 | F60: 0 | G60: 0 | H60: 0 | I60: 0 | J60: 0
A61: O Hudson | B61: 1 | C61: 0 | D61: 0 | E61: 0 | F61: 0 | G61: 0 | H61: 0 | I61: 0 | J61: 0
A62: J Hardy | B62: 1 | C62: 0 | D62: 0 | E62: 0 | F62: 0 | G62: 0 | H62: 0 | I62: 0 | J62: 0
A63: D Valencia | B63: 1 | C63: 0 | D63: 0 | E63: 0 | F63: 0 | G63: 0 | H63: 0 | I63: 0 | J63: 0
A64: J Thome | B64: 1 | C64: 0 | D64: 0 | E64: 0 | F64: 0 | G64: 0 | H64: 0 | I64: 0 | J64: 0
A65: J Morneau | B65: 1 | C65: 0 | D65: 0 | E65: 0 | F65: 0 | G65: 0 | H65: 0 | I65: 0 | J65: 0
A66: N Punto | C66: 0 | D66: 0 | E66: 0 | F66: 0 | G66: 0 | H66: 0 | I66: 0 | J66: 0
A67: A Casilla | C67: 0 | D67: 0 | E67: 0 | F67: 0 | G67: 0 | H67: 0 | I67: 0 | J67: 0
A68: OUTFIELDERS | C68: 0 | D68: 0 | E68: 0 | F68: 0 | G68: 0 | H68: 0 | I68: 0 | J68: 0
A69: D Young | B69: 1 | C69: 0 | D69: 0 | E69: 0 | F69: 0 | G69: 0 | H69: 0 | I69: 0 | J69: 0
A70: D Span | B70: 1 | C70: 0 | D70: 0 | E70: 0 | F70: 0 | G70: 0 | H70: 0 | I70: 0 | J70: 0
A71: J Kubel | C71: 0 | D71: 0 | E71: 0 | F71: 0 | G71: 0 | H71: 0 | I71: 0 | J71: 0
A72: J Repko | C72: 0 | D72: 0 | E72: 0 | F72: 0 | G72: 0 | H72: 0 | I72: 0 | J72: 0
B73: 99 | C73: 0 | D73: 0 | E73: 0 | F73: 0 | G73: 0 | H73: 0 | I73: 0 | J73: 0

Sheet 1934Cardinals
A1: PITCHERS | C1: Effectiveness | D1: Stamina | E1: 1 | F1: LF | G1: J Pierre | I1: 1 | J1: J Danks | M1: 1 | N1: LF | O1: J Pierre
A2: J Danks | C2: 62 | D2: 1 | E2: 2 | F2: SS | G2: A Ramirez | I2: 2 | J2: M Buehrle | M2: 2 | N2: SS | O2: A Ramirez
A3: M Buehrle | C3: 45 | D3: 1 | E3: 3 | F3: CF | G3: A Rios | I3: 3 | J3: G Floyd | M3: 3 | N3: CF | O3: A Rios
A4: G Floyd | C4: 48 | D4: 1 | E4: 4 | F4: 1B | G4: P Konerko | I4: 4 | J4: F Garcia | M4: 4 | N4: 1B | O4: P Konerko
A5: F Garcia | C5: 48 | D5: 1 | E5: 5 | F5: RF | G5: A Jones | M5: 5 | N5: RF | O5: A Jones
A6: B Jenks | C6: 48 | D6: 3 | E6: 6 | F6: C | G6: A Pierzynski | M6: 6 | N6: C | O6: A Pierzynski
A7: T Pena | C7: 35 | D7: 2 | E7: 7 | F7: 3B | G7: D Viciedo | M7: 7 | N7: 3B | O7: D Viciedo
A8: M Thornton | C8: 81 | D8: 3 | E8: 8 | F8: 2B | G8: G Beckham | M8: 8 | N8: 2B | O8: G Beckham
A9: J Putz | C9: 78 | D9: 3 | E9: 9 | F9: DH | G9: C Quentin | M9: 9 | N9: DH | O9: C Quentin
A10: S Santos | C10: 34 | D10: 3
A11: S Linebrink | C11: 52 | D11: 3 | N11: P | O11: M Buehrle
A12: J Peavy | C12: 61 | D12: 2
A13: CATCHERS | C13: Contact | D13: Power | E13: Speed | F13: Def/Arm | G13: Bunt | P13: IP | Q13: H | R13: R | S13: K | T13: ERA | W13: BB
A14: A Pierzynski | C14: 55 | D14: 48 | E14: 55 | F14: 40 | G14: 60 | N14: Starter | O14: M Buehrle | Q14: 1 | T14: =IFERROR(IF(O14="","",R14*9/P14),"INF") -> INF
A15: R Castro | C15: 60 | D15: 71 | E15: 30 | F15: 60 | G15: 60
A16: INFIELDERS
A17: P Konerko | C17: 79 | D17: 87 | E17: 35 | F17: 20 | G17: 30
A18: G Beckham | C18: 45 | D18: 46 | E18: 65 | F18: 20 | G18: 65
A19: A Ramirez | C19: 62 | D19: 56 | E19: 65 | F19: 20 | G19: 55
A20: O Vizquel | C20: 58 | D20: 36 | E20: 50 | F20: 20 | G20: 70
A21: M Teahen | C21: 48 | D21: 46 | E21: 60 | F21: 20 | G21: 60 | T21: =IF(O21="","",R21*9/P21) -> 
A22: D Viciedo | C22: 76 | D22: 74 | E22: 55 | F22: 20 | G22: 60
A23: M Kotsay | C23: 38 | D23: 45 | E23: 60 | F23: 70 | G23: 45
A24: OUTFIELDERS
A25: J Pierre | C25: 58 | D25: 33 | E25: 90 | F25: 40 | G25: 70
A26: A Rios | C26: 63 | D26: 61 | E26: 75 | F26: 80 | G26: 55
A27: C Quentin | C27: 40 | D27: 66 | E27: 40 | F27: 50 | G27: 35
A28: A Jones | C28: 33 | D28: 67 | E28: 60 | F28: 65 | G28: 40
A29: M Ramirez | C29: 50 | D29: 34 | E29: 40 | F29: 40 | G29: 25
C43: AB | D43: H | E43: RBI | F43: Run | G43: HR | H43: 3B | I43: 2B | J43: SB
A44: PITCHERS | C44: 0 | D44: 0 | E44: 0 | F44: 0 | G44: 0 | H44: 0 | I44: 0 | J44: 0
A45: J Danks | C45: 0 | D45: 0 | E45: 0 | F45: 0 | G45: 0 | H45: 0 | I45: 0 | J45: 0
A46: M Buehrle | B46: 1 | C46: 0 | D46: 0 | E46: 0 | F46: 0 | G46: 0 | H46: 0 | I46: 0 | J46: 0
A47: G Floyd | C47: 0 | D47: 0 | E47: 0 | F47: 0 | G47: 0 | H47: 0 | I47: 0 | J47: 0
A48: F Garcia | C48: 0 | D48: 0 | E48: 0 | F48: 0 | G48: 0 | H48: 0 | I48: 0 | J48: 0
A49: B Jenks | C49: 0 | D49: 0 | E49: 0 | F49: 0 | G49: 0 | H49: 0 | I49: 0 | J49: 0
A50: T Pena | C50: 0 | D50: 0 | E50: 0 | F50: 0 | G50: 0 | H50: 0 | I50: 0 | J50: 0
A51: M Thornton | C51: 0 | D51: 0 | E51: 0 | F51: 0 | G51: 0 | H51: 0 | I51: 0 | J51: 0
A52: J Putz | C52: 0 | D52: 0 | E52: 0 | F52: 0 | G52: 0 | H52: 0 | I52: 0 | J52: 0
A53: S Santos | C53: 0 | D53: 0 | E53: 0 | F53: 0 | G53: 0 | H53: 0 | I53: 0 | J53: 0
A54: S Linebrink | C54: 0 | D54: 0 | E54: 0 | F54: 0 | G54: 0 | H54: 0 | I54: 0 | J54: 0
A55: J Peavy | C55: 0 | D55: 0 | E55: 0 | F55: 0 | G55: 0 | H55: 0 | I55: 0 | J55: 0
A56: CATCHERS | C56: 0 | D56: 0 | E56: 0 | F56: 0 | G56: 0 | H56: 0 | I56: 0 | J56: 0
A57: A Pierzynski | B57: 1 | C57: 0 | D57: 0 | E57: 0 | F57: 0 | G57: 0 | H57: 0 | I57: 0 | J57: 0
A58: R Castro | C58: 0 | D58: 0 | E58: 0 | F58: 0 | G58: 0 | H58: 0 | I58: 0 | J58: 0
A59: INFIELDERS | C59: 0 | D59: 0 | E59: 0 | F59: 0 | G59: 0 | H59: 0 | I59: 0 | J59: 0
A60: P Konerko | B60: 1 | C60: 0 | D60: 0 | E60: 0 | F60: 0 | G60: 0 | H60: 0 | I60: 0 | J60: 0
A61: G Beckham | B61: 1 | C61: 0 | D61: 0 | E61: 0 | F61: 0 | G61: 0 | H61: 0 | I61: 0 | J61: 0
A62: A Ramirez | B62: 1 | C62: 0 | D62: 0 | E62: 0 | F62: 0 | G62: 0 | H62: 0 | I62: 0 | J62: 0
A63: O Vizquel | C63: 0 | D63: 0 | E63: 0 | F63: 0 | G63: 0 | H63: 0 | I63: 0 | J63: 0
A64: M Teahen | C64: 0 | D64: 0 | E64: 0 | F64: 0 | G64: 0 | H64: 0 | I64: 0 | J64: 0
A65: D Viciedo | B65: 1 | C65: 0 | D65: 0 | E65: 0 | F65: 0 | G65: 0 | H65: 0 | I65: 0 | J65: 0
A66: M Kotsay | C66: 0 | D66: 0 | E66: 0 | F66: 0 | G66: 0 | H66: 0 | I66: 0 | J66: 0
A67: OUTFIELDERS | C67: 0 | D67: 0 | E67: 0 | F67: 0 | G67: 0 | H67: 0 | I67: 0 | J67: 0
A68: J Pierre | B68: 1 | C68: 0 | D68: 0 | E68: 0 | F68: 0 | G68: 0 | H68: 0 | I68: 0 | J68: 0
A69: A Rios | B69: 1 | C69: 0 | D69: 0 | E69: 0 | F69: 0 | G69: 0 | H69: 0 | I69: 0 | J69: 0
A70: C Quentin | B70: 1 | C70: 0 | D70: 0 | E70: 0 | F70: 0 | G70: 0 | H70: 0 | I70: 0 | J70: 0
A71: A Jones | B71: 1 | C71: 0 | D71: 0 | E71: 0 | F71: 0 | G71: 0 | H71: 0 | I71: 0 | J71: 0
A72: M Ramirez | C72: 0 | D72: 0 | E72: 0 | F72: 0 | G72: 0 | H72: 0 | I72: 0 | J72: 0
B73: 99 | C73: 0 | D73: 0 | E73: 0 | F73: 0 | G73: 0 | H73: 0 | I73: 0 | J73: 0

Sheet 1927Yankees
A1: PITCHERS | C1: Effectiveness | D1: Stamina | E1: 1 | F1: SS | G1: D Jeter | I1: 1 | J1: C Sabathia | M1: 1 | N1: SS | O1: D Jeter
A2: C Sabathia | C2: 64 | D2: 1 | E2: 2 | F2: RF | G2: N Swisher | I2: 2 | J2: A Burnett | M2: 2 | N2: RF | O2: N Swisher
A3: A Burnett | C3: 35 | D3: 1 | E3: 3 | F3: 1B | G3: M Teixeira | I3: 3 | J3: P Hughes | M3: 3 | N3: 1B | O3: M Teixeira
A4: P Hughes | C4: 59 | D4: 1 | E4: 4 | F4: 3B | G4: A Rodriguez | I4: 4 | J4: A Pettitte | M4: 4 | N4: 3B | O4: A Rodriguez
A5: A Pettitte | C5: 57 | D5: 1 | E5: 5 | F5: 2B | G5: R Cano | M5: 5 | N5: 2B | O5: R Cano
A6: M Rivera | C6: 97 | D6: 3 | E6: 6 | F6: DH | G6: M Thames | M6: 6 | N6: DH | O6: M Thames
A7: J Chamberlin | C7: 55 | D7: 3 | E7: 7 | F7: C | G7: J Posada | M7: 7 | N7: C | O7: J Posada
A8: D Robertson | C8: 36 | D8: 3 | E8: 8 | F8: CF | G8: C Granderson | M8: 8 | N8: CF | O8: C Granderson
A9: C Gaudin | C9: 48 | D9: 2 | E9: 9 | F9: LF | G9: B Gardner | M9: 9 | N9: LF | O9: B Gardner
A10: B Logan | C10: 50 | D10: 3
A11: J Vazquez | C11: 46 | D11: 2 | N11: P | O11: A Burnett
A12: D Moseley | C12: 43 | D12: 2
A13: CATCHERS | C13: Contact | D13: Power | E13: Speed | F13: Def/Arm | G13: Bunt | P13: IP | Q13: H | R13: R | S13: K | T13: ERA | W13: BB
A14: J Posada | C14: 43 | D14: 61 | E14: 30 | F14: 65 | G14: 65 | N14: Starter | O14: A Burnett | T14: =IFERROR(IF(O14="","",R14*9/P14),"INF") -> INF
A15: F Cervelli | C15: 56 | D15: 37 | E15: 45 | F15: 60 | G15: 60
A16: INFIELDERS
A17: M Teixeira | C17: 47 | D17: 66 | E17: 50 | F17: 20 | G17: 35
A18: R Cano | C18: 83 | D18: 77 | E18: 60 | F18: 20 | G18: 55
A19: D Jeter | C19: 55 | D19: 44 | E19: 70 | F19: 20 | G19: 70
A20: A Rodriguez | C20: 55 | D20: 71 | E20: 60 | F20: 20 | G20: 40
A21: R Pena | C21: 31 | D21: 19 | E21: 70 | F21: 20 | G21: 60 | T21: =IF(O21="","",R21*9/P21) -> 
A22: L Berkman | C22: 47 | D22: 40 | E22: 35 | F22: 50 | G22: 35
A23: N Johnson | C23: -3 | D23: 31 | E23: 30 | F23: 20 | G23: 30
A24: OUTFIELDERS
A25: B Gardner | C25: 59 | D25: 46 | E25: 75 | F25: 65 | G25: 70
A26: C Granderson | C26: 42 | D26: 64 | E26: 75 | F26: 70 | G26: 60
A27: N Swisher | C27: 65 | D27: 72 | E27: 60 | F27: 60 | G27: 30
A28: M Thames | C28: 65 | D28: 68 | E28: 55 | F28: 55 | G28: 50
A29: A Kearns | C29: 35 | D29: 35 | E29: 50 | F29: 60 | G29: 45
C43: AB | D43: H | E43: RBI | F43: Run | G43: HR | H43: 3B | I43: 2B | J43: SB
A44: PITCHERS | C44: 0 | D44: 0 | E44: 0 | F44: 0 | G44: 0 | H44: 0 | I44: 0 | J44: 0
A45: C Sabathia | C45: 0 | D45: 0 | E45: 0 | F45: 0 | G45: 0 | H45: 0 | I45: 0 | J45: 0
A46: A Burnett | B46: 1 | C46: 0 | D46: 0 | E46: 0 | F46: 0 | G46: 0 | H46: 0 | I46: 0 | J46: 0
A47: P Hughes | C47: 0 | D47: 0 | E47: 0 | F47: 0 | G47: 0 | H47: 0 | I47: 0 | J47: 0
A48: A Pettitte | C48: 0 | D48: 0 | E48: 0 | F48: 0 | G48: 0 | H48: 0 | I48: 0 | J48: 0
A49: M Rivera | C49: 0 | D49: 0 | E49: 0 | F49: 0 | G49: 0 | H49: 0 | I49: 0 | J49: 0
A50: J Chamberlin | C50: 0 | D50: 0 | E50: 0 | F50: 0 | G50: 0 | H50: 0 | I50: 0 | J50: 0
A51: D Robertson | C51: 0 | D51: 0 | E51: 0 | F51: 0 | G51: 0 | H51: 0 | I51: 0 | J51: 0
A52: C Gaudin | C52: 0 | D52: 0 | E52: 0 | F52: 0 | G52: 0 | H52: 0 | I52: 0 | J52: 0
A53: B Logan | C53: 0 | D53: 0 | E53: 0 | F53: 0 | G53: 0 | H53: 0 | I53: 0 | J53: 0
A54: J Vazquez | C54: 0 | D54: 0 | E54: 0 | F54: 0 | G54: 0 | H54: 0 | I54: 0 | J54: 0
A55: D Moseley | C55: 0 | D55: 0 | E55: 0 | F55: 0 | G55: 0 | H55: 0 | I55: 0 | J55: 0
A56: CATCHERS | C56: 0 | D56: 0 | E56: 0 | F56: 0 | G56: 0 | H56: 0 | I56: 0 | J56: 0
A57: J Posada | B57: 1 | C57: 0 | D57: 0 | E57: 0 | F57: 0 | G57: 0 | H57: 0 | I57: 0 | J57: 0
A58: F Cervelli | C58: 0 | D58: 0 | E58: 0 | F58: 0 | G58: 0 | H58: 0 | I58: 0 | J58: 0
A59: INFIELDERS | C59: 0 | D59: 0 | E59: 0 | F59: 0 | G59: 0 | H59: 0 | I59: 0 | J59: 0
A60: M Teixeira | B60: 1 | C60: 0 | D60: 0 | E60: 0 | F60: 0 | G60: 0 | H60: 0 | I60: 0 | J60: 0
A61: R Cano | B61: 1 | C61: 0 | D61: 0 | E61: 0 | F61: 0 | G61: 0 | H61: 0 | I61: 0 | J61: 0
A62: D Jeter | B62: 1 | C62: 1 | D62: 1 | E62: 0 | F62: 0 | G62: 0 | H62: 0 | I62: 0 | J62: 0
A63: A Rodriguez | B63: 1 | C63: 0 | D63: 0 | E63: 0 | F63: 0 | G63: 0 | H63: 0 | I63: 0 | J63: 0
A64: R Pena | C64: 0 | D64: 0 | E64: 0 | F64: 0 | G64: 0 | H64: 0 | I64: 0 | J64: 0
A65: L Berkman | C65: 0 | D65: 0 | E65: 0 | F65: 0 | G65: 0 | H65: 0 | I65: 0 | J65: 0
A66: N Johnson | C66: 0 | D66: 0 | E66: 0 | F66: 0 | G66: 0 | H66: 0 | I66: 0 | J66: 0
A67: OUTFIELDERS | C67: 0 | D67: 0 | E67: 0 | F67: 0 | G67: 0 | H67: 0 | I67: 0 | J67: 0
A68: B Gardner | B68: 1 | C68: 0 | D68: 0 | E68: 0 | F68: 0 | G68: 0 | H68: 0 | I68: 0 | J68: 0
A69: C Granderson | B69: 1 | C69: 0 | D69: 0 | E69: 0 | F69: 0 | G69: 0 | H69: 0 | I69: 0 | J69: 0
A70: N Swisher | B70: 1 | C70: 0 | D70: 0 | E70: 0 | F70: 0 | G70: 0 | H70: 0 | I70: 0 | J70: 0
A71: M Thames | B71: 1 | C71: 0 | D71: 0 | E71: 0 | F71: 0 | G71: 0 | H71: 0 | I71: 0 | J71: 0
A72: A Kearns | C72: 0 | D72: 0 | E72: 0 | F72: 0 | G72: 0 | H72: 0 | I72: 0 | J72: 0
B73: 99 | C73: 0 | D73: 0 | E73: 0 | F73: 0 | G73: 0 | H73: 0 | I73: 0 | J73: 0

Sheet Production (hidden)
A21: Date | B21: Units | C21: Shipped to | D21: Units Sold | E21: Profit | F21: Valuable transaction?
A22: 2007-01-14 | B22: 302 | C22: 4 | D22: 278 | E22: =(B22-D22)*31.58 -> 757.92 | F22: =IF(E22>5000,"Y","N") -> N
A23: 2007-03-18 | B23: 286 | C23: 10 | D23: 91 | E23: =(B23-D23)*31.58 -> 6158.1 | F23: =IF(E23>5000,"Y","N") -> Y
A24: 2007-04-25 | B24: 646 | C24: 3 | D24: 480 | E24: 5242.28 | F24: Y
A25: 2007-07-05 | B25: 580 | C25: 7 | D25: 331 | E25: 7863.42 | F25: Y
A26: 2007-07-13 | B26: 627 | C26: 10 | D26: 455 | E26: 5431.76 | F26: Y
A27: 2007-08-14 | B27: 520 | C27: 2 | D27: 269 | E27: 7926.58 | F27: Y
A28: 2007-08-20 | B28: 541 | C28: 7 | D28: 346 | E28: 6158.1 | F28: Y
A29: 2007-10-08 | B29: 515 | C29: 8 | D29: 226 | E29: 9126.62 | F29: Y
A30: 2008-03-04 | B30: 199 | C30: 7 | D30: -89 | E30: 9095.04 | F30: Y
A31: 2008-04-05 | B31: 224 | C31: 11 | D31: 16 | E31: 6568.64 | F31: Y
A32: 2008-04-28 | B32: 378 | C32: 10 | D32: 327 | E32: 1610.58 | F32: N
A33: 2008-06-06 | B33: 423 | C33: 11 | D33: 305 | E33: 3726.44 | F33: N
A34: 2008-08-24 | B34: 308 | C34: 5 | D34: 256 | E34: 1642.16 | F34: N
A35: 2008-08-29 | B35: 563 | C35: 3 | D35: 386 | E35: 5589.66 | F35: Y
A36: 2008-09-26 | B36: 562 | C36: 8 | D36: 336 | E36: 7137.08 | F36: Y
A37: 2008-09-27 | B37: 660 | C37: 9 | D37: 550 | E37: 3473.8 | F37: N
A38: 2008-10-24 | B38: 400 | C38: 1 | D38: 130 | E38: 8526.6 | F38: Y
